Trans No.,Service Area Categorisation,Service Division Categorisation,Responsible Unit,Unit Code,Expenses Type,Expenses Sub Type,Expense Code,Narrative,Amount,InvoiceDate,Cap/Rev,Supplier Name
1,Central Services,Corporate Mangmt not separated,Chief Exec's Office,A01001,Supplies & Services           ,Grants and Subscriptions      ,DJ04,Subscriptions                           ,"35,000.00",10/06/2016,R,L.B OF RICHMOND UPON THAMES   
2,Central Services,SupS Chief Execs,Local Involvement Network,A01039,Third Party Payments          ,Private Contractors           ,EH10,Contract Payments                       ,"1,756.00",31/05/2016,R,VOICEABILITY                  
3,Cultural Env Reg&Plan Services,Comm Safety (Crime Reduction),Crime and Strategy Team,A01100,Third Party Payments          ,Private Contractors           ,EH04,C1 Viridor SLWP Landfill Contract       ,"1,000.00",24/06/2016,R,CAPSTICKS SOLICITORS LLP      
4,Cultural Env Reg&Plan Services,Comm Safety (Crime Reduction),CCTV,A01200,Supplies & Services           ,Equip Furniture/Materials     ,DA01,Equipment - R & M                       ,"3,554.12",17/06/2016,R,TYCO FIRE & INTEGR'TD SOL (UK 
5,Central Services,SupS Chief Execs,NON-STATUTORY MARKETING & COMM,A02019,Supplies & Services           ,Services                      ,DF02,Misc Advertising/Publicity              ,"1,676.00",11/06/2016,R,NET NATIVES LTD               
6,Central Services,SupS Chief Execs,NON-STATUTORY MARKETING & COMM,A02019,Supplies & Services           ,Services                      ,DF35,Graphic Design                          ,907.50,31/05/2016,R,DOMINO 4 LIMITED              
7,Central Services,SupS Chief Execs,Sales and Marketing                     ,A02034,Supplies & Services           ,Services                      ,DF36,Photography                             ,625.00,06/06/2016,R,REDACTED
8,CS -Oth Operating Inc & Expend,T/A Corporate Services,Prting Jobs - Internal,A03040,Supplies & Services           ,Prntng Stnry Gen Off Exp      ,DE05,Micro-filming                           ,515.06,31/05/2016,R,MISL LTD                      
9,CS -Oth Operating Inc & Expend,T/A Corporate Services,Prting Jobs - Internal,A03040,Supplies & Services           ,Prntng Stnry Gen Off Exp      ,DE05,Micro-filming                           ,571.25,08/06/2016,R,MISL LTD                      
10,CS -Oth Operating Inc & Expend,T/A Corporate Services,Prting Jobs - Internal,A03040,Supplies & Services           ,Prntng Stnry Gen Off Exp      ,DE05,Micro-filming                           ,622.53,27/05/2016,R,MISL LTD                      
11,CS -Oth Operating Inc & Expend,T/A Corporate Services,Prting Jobs - Internal,A03040,Supplies & Services           ,Prntng Stnry Gen Off Exp      ,DE05,Micro-filming                           ,821.43,31/05/2016,R,MISL LTD                      
12,CS -Oth Operating Inc & Expend,T/A Corporate Services,Prting Jobs - Internal,A03040,Supplies & Services           ,Prntng Stnry Gen Off Exp      ,DE05,Micro-filming                           ,888.53,23/06/2016,R,MISL LTD                      
13,CS -Oth Operating Inc & Expend,T/A Corporate Services,Prting Jobs - Internal,A03040,Supplies & Services           ,Prntng Stnry Gen Off Exp      ,DE05,Micro-filming                           ,"1,388.81",31/05/2016,R,MISL LTD                      
14,CS -Oth Operating Inc & Expend,T/A Corporate Services,Prting Jobs - Internal,A03040,Supplies & Services           ,Prntng Stnry Gen Off Exp      ,DE05,Micro-filming                           ,"1,523.71",31/05/2016,R,MISL LTD                      
15,CS -Oth Operating Inc & Expend,T/A Corporate Services,Prting Jobs - Internal,A03040,Supplies & Services           ,Prntng Stnry Gen Off Exp      ,DE05,Micro-filming                           ,"1,610.14",13/06/2016,R,MISL LTD                      
16,CS -Oth Operating Inc & Expend,T/A Corporate Services,Prting Jobs - Internal,A03040,Supplies & Services           ,Prntng Stnry Gen Off Exp      ,DE05,Micro-filming                           ,"1,823.21",20/06/2016,R,MISL LTD                      
17,CS -Oth Operating Inc & Expend,T/A Corporate Services,Prting Jobs - Internal,A03040,Supplies & Services           ,Prntng Stnry Gen Off Exp      ,DE05,Micro-filming                           ,"1,880.00",17/05/2016,R,MISL LTD                      
18,CS -Oth Operating Inc & Expend,T/A Corporate Services,Prting Jobs - Internal,A03040,Supplies & Services           ,Prntng Stnry Gen Off Exp      ,DE05,Micro-filming                           ,"3,600.95",31/05/2016,R,MISL LTD                      
19,CS -Oth Operating Inc & Expend,T/A Corporate Services,Prting Jobs - Internal,A03040,Supplies & Services           ,Prntng Stnry Gen Off Exp      ,DE05,Micro-filming                           ,"4,346.18",21/05/2016,R,MISL LTD                      
20,CS -Oth Operating Inc & Expend,T/A Corporate Services,Prting Jobs - Internal,A03040,Supplies & Services           ,Prntng Stnry Gen Off Exp      ,DE05,Micro-filming                           ,"4,961.28",31/05/2016,R,MISL LTD                      
21,CS -Oth Operating Inc & Expend,T/A Corporate Services,Prting Jobs - Internal,A03040,Supplies & Services           ,Prntng Stnry Gen Off Exp      ,DE05,Micro-filming                           ,"20,000.00",27/05/2016,R,MISL LTD                      
22,CS -Oth Operating Inc & Expend,T/A Corporate Services,Prtng Jobs - Ext Agncy,A03041,Supplies & Services           ,Prntng Stnry Gen Off Exp      ,DE01,External Printing                       ,523.00,23/06/2016,R,IMAGE DATA GOUP               
23,CS -Oth Operating Inc & Expend,T/A Corporate Services,Prtng Jobs - Ext Agncy,A03041,Supplies & Services           ,Prntng Stnry Gen Off Exp      ,DE01,External Printing                       ,830.00,10/06/2016,R,CLIFFE ENTERPRISE LTD         
24,CS -Oth Operating Inc & Expend,T/A Corporate Services,Prtng Jobs - Ext Agncy,A03041,Supplies & Services           ,Prntng Stnry Gen Off Exp      ,DE01,External Printing                       ,880.00,23/06/2016,R,OFFICE DEPOT UK LTD           
25,CS -Oth Operating Inc & Expend,T/A Corporate Services,Prtng Jobs - Ext Agncy,A03041,Supplies & Services           ,Prntng Stnry Gen Off Exp      ,DE01,External Printing                       ,"1,169.00",26/05/2016,R,NORTHERN FLAGS LTD            
26,CS -Oth Operating Inc & Expend,T/A Corporate Services,Prtng Jobs - Ext Agncy,A03041,Supplies & Services           ,Prntng Stnry Gen Off Exp      ,DE01,External Printing                       ,"2,476.00",23/06/2016,R,IMAGE DATA GOUP               
27,Central Services,SupS Comm and Member Services,Local Strategic Partnership,A04080,Supplies & Services           ,Grants and Subscriptions      ,DJ01,Grants                                  ,"6,000.00",09/06/2016,R,MERTON VOLUNTARY SERV COUNCIL 
28,Central Services,SupS Comm and Member Services,COMMERICIAL SERVICES,A04085,Employees                     ,Direct Employee Expenses      ,AA17,Agency Staff & Casual Paymts            ,"1,732.50",12/05/2016,R,HAYS SPECIALIST RECRUITM'T LTD
29,Central Services,SupS Comm and Member Services,COMMERICIAL SERVICES,A04085,Employees                     ,Direct Employee Expenses      ,AA17,Agency Staff & Casual Paymts            ,"2,109.00",08/06/2016,R,HAYS SPECIALIST RECRUITM'T LTD
30,Central Services,SupS Comm and Member Services,COMMERICIAL SERVICES,A04085,Employees                     ,Direct Employee Expenses      ,AA17,Agency Staff & Casual Paymts            ,"2,475.00",12/05/2016,R,HAYS SPECIALIST RECRUITM'T LTD
31,Central Services,SupS Comm and Member Services,COMMERICIAL SERVICES,A04085,Employees                     ,Direct Employee Expenses      ,AA17,Agency Staff & Casual Paymts            ,"2,636.25",18/05/2016,R,REDACTED
32,Central Services,SupS Comm and Member Services,COMMERICIAL SERVICES,A04085,Employees                     ,Direct Employee Expenses      ,AA17,Agency Staff & Casual Paymts            ,"2,636.25",25/05/2016,R,HAYS SPECIALIST RECRUITM'T LTD
33,Central Services,SupS Comm and Member Services,COMMERICIAL SERVICES,A04085,Employees                     ,Direct Employee Expenses      ,AA17,Agency Staff & Casual Paymts            ,"2,636.25",01/06/2016,R,HAYS SPECIALIST RECRUITM'T LTD
34,Central Services,SupS Comm and Member Services,COMMERICIAL SERVICES,A04085,Employees                     ,Direct Employee Expenses      ,AA17,Agency Staff & Casual Paymts            ,"2,636.25",15/06/2016,R,HAYS SPECIALIST RECRUITM'T LTD
35,Central Services,SupS Comm and Member Services,COMMERICIAL SERVICES,A04085,Employees                     ,Indirect Employee Expenses    ,AB02,Recruitment Adverts                     ,"1,200.00",31/05/2016,R,HAYMARKET MEDIA GROUP LIMITED 
36,Central Services,SupS Comm and Member Services,COMMERICIAL SERVICES,A04085,Employees                     ,Indirect Employee Expenses    ,AB02,Recruitment Adverts                     ,"50,000.00",29/05/2016,R,GUARDIAN NEWS AND MEDIA LTD   
37,Highways & Transport Services,On-street parking,Blue Badge Service,A04088,Supplies & Services           ,Comms and Computing           ,DG15,Network Maintenance                     ,972.16,01/06/2016,R,NORTHGATE PUBLIC SERVICES (UK)
38,Central Services,SupS Health & Safety,Learning and Development,B06146,Employees                     ,Indirect Employee Expenses    ,AB57,EXTERNAL TRAINING COSTS                 ,500.00,16/05/2016,R,INSTITUTE OF LICENSING EVENTS 
39,Central Services,SupS Health & Safety,Learning and Development,B06146,Employees                     ,Indirect Employee Expenses    ,AB57,EXTERNAL TRAINING COSTS                 ,550.00,02/06/2016,R,MSH TRAINING & CONSULTANCY LTD
40,Central Services,SupS Health & Safety,Learning and Development,B06146,Employees                     ,Indirect Employee Expenses    ,AB57,EXTERNAL TRAINING COSTS                 ,550.00,02/06/2016,R,MSH TRAINING & CONSULTANCY LTD
41,Central Services,SupS Health & Safety,Learning and Development,B06146,Employees                     ,Indirect Employee Expenses    ,AB57,EXTERNAL TRAINING COSTS                 ,550.00,10/06/2016,R,MSH TRAINING & CONSULTANCY LTD
42,Central Services,SupS Health & Safety,Learning and Development,B06146,Employees                     ,Indirect Employee Expenses    ,AB57,EXTERNAL TRAINING COSTS                 ,550.00,10/06/2016,R,MSH TRAINING & CONSULTANCY LTD
43,Central Services,SupS Health & Safety,Learning and Development,B06146,Employees                     ,Indirect Employee Expenses    ,AB57,EXTERNAL TRAINING COSTS                 ,550.00,23/06/2016,R,MSH TRAINING & CONSULTANCY LTD
44,Central Services,SupS Health & Safety,Learning and Development,B06146,Employees                     ,Indirect Employee Expenses    ,AB57,EXTERNAL TRAINING COSTS                 ,550.00,24/06/2016,R,MSH TRAINING & CONSULTANCY LTD
45,Central Services,SupS Health & Safety,Learning and Development,B06146,Employees                     ,Indirect Employee Expenses    ,AB57,EXTERNAL TRAINING COSTS                 ,580.00,05/05/2016,R,CIPFA                         
46,Central Services,SupS Health & Safety,Learning and Development,B06146,Employees                     ,Indirect Employee Expenses    ,AB57,EXTERNAL TRAINING COSTS                 ,795.00,22/06/2016,R,SYSTEMS LINK                  
47,Central Services,SupS Health & Safety,Learning and Development,B06146,Employees                     ,Indirect Employee Expenses    ,AB57,EXTERNAL TRAINING COSTS                 ,830.00,09/06/2016,R,MAYBO LTD                     
48,Central Services,SupS Health & Safety,Learning and Development,B06146,Employees                     ,Indirect Employee Expenses    ,AB57,EXTERNAL TRAINING COSTS                 ,889.00,20/05/2016,R,THE KNOWLEDGE ACADEMY         
49,Central Services,SupS Health & Safety,Learning and Development,B06146,Employees                     ,Indirect Employee Expenses    ,AB57,EXTERNAL TRAINING COSTS                 ,"1,200.00",13/05/2016,R,EXPERIA SOLUTIONS LIMITED     
50,Central Services,SupS Health & Safety,Learning and Development,B06146,Employees                     ,Indirect Employee Expenses    ,AB57,EXTERNAL TRAINING COSTS                 ,"1,220.00",14/06/2016,R,BTFI LIMITED                  
51,Central Services,SupS Health & Safety,Learning and Development,B06146,Employees                     ,Indirect Employee Expenses    ,AB57,EXTERNAL TRAINING COSTS                 ,"2,156.40",01/06/2016,R,CIPD ENTERPRISES LIMITED      
52,Central Services,SupS Health & Safety,Learning and Development,B06146,Employees                     ,Indirect Employee Expenses    ,AB57,EXTERNAL TRAINING COSTS                 ,"2,950.00",22/06/2016,R,IDR EUROPE LIMITED            
53,,,Library Self Service                    ,CC011AB,New Construction Conversion and Renovation,,B5,Suppliers - Site works                  ,603.10,16/06/2016,C,TERRALEC LTD                  
54,,,Library Self Service                    ,CC011AB,New Construction Conversion and Renovation,,B5,Suppliers - Site works                  ,"1,534.63",16/06/2016,C,TERRALEC LTD                  
55,,,Library Self Service                    ,CC011AB,New Construction Conversion and Renovation,,B5,Suppliers - Site works                  ,"2,659.18",16/06/2016,C,TERRALEC LTD                  
56,,,Library Self Service                    ,CC011AB,New Construction Conversion and Renovation,,B5,Suppliers - Site works                  ,"2,999.76",16/06/2016,C,TERRALEC LTD                  
57,,,CCTV (match funding)                    ,CE002EA,Vehicles Plant Equipment and Machinery,,D3,Equipment                               ,"1,770.00",14/06/2016,C,TYCO FIRE & INTEGR'TD SOL (UK 
58,,,Disabled Facilities Grant DCLG          ,CE004RA,Other Capital Expenditure,,E1,Grants                                  ,598.00,22/06/2016,C,STAYING FIRST                 
59,,,Disabled Facilities Grant DCLG          ,CE004RA,Other Capital Expenditure,,E1,Grants                                  ,"1,014.67",16/06/2016,C,CBS ADAPTATION                
60,,,Disabled Facilities Grant DCLG          ,CE004RA,Other Capital Expenditure,,E1,Grants                                  ,"1,123.19",21/06/2016,C,CBS ADAPTATION                
61,,,Disabled Facilities Grant DCLG          ,CE004RA,Other Capital Expenditure,,E1,Grants                                  ,"1,488.53",22/06/2016,C,CBS ADAPTATION                
62,,,Disabled Facilities Grant DCLG          ,CE004RA,Other Capital Expenditure,,E1,Grants                                  ,"2,250.00",22/06/2016,C,ASCENDIT LIFTS LTD            
63,,,Disabled Facilities Grant DCLG          ,CE004RA,Other Capital Expenditure,,E1,Grants                                  ,"2,615.61",22/06/2016,C,CBS ADAPTATION                
64,,,Disabled Facilities Grant DCLG          ,CE004RA,Other Capital Expenditure,,E1,Grants                                  ,"6,832.00",22/06/2016,C,W C EVANS & SONS LTD          
65,,,Disabled Facilities Grant DCLG          ,CE004RA,Other Capital Expenditure,,E1,Grants                                  ,"6,965.00",22/06/2016,C,AQUANEED LIMITED              
66,,,Disabled Facilities Grant DCLG          ,CE004RA,Other Capital Expenditure,,E1,Grants                                  ,"8,772.00",22/06/2016,C,THE LIFECARE CENTRE           
67,,,Colliers Wd- Regeneration Fund          ,CE006FB,New Construction Conversion and Renovation,,B4,Contractor - Site works                 ,"2,008.00",23/06/2016,C,TK CONSTRUCT & ELECTRIC INSTAL
68,,,Mitcham Major schemes                   ,CE006FD,New Construction Conversion and Renovation,,B6,Other Costs - Site works                ,522.00,21/06/2016,C,UK POWER NETWORKS (OPERATIONS)
69,,,Parks Investment                        ,CE013SA,New Construction Conversion and Renovation,,B4,Contractor - Site works                 ,854.25,10/06/2016,C,USTIGATE LTD                  
70,,,Parks Investment                        ,CE013SA,New Construction Conversion and Renovation,,B4,Contractor - Site works                 ,"3,900.00",24/06/2016,C,TAYLOR BUILDING COMPANY LTD   
71,,,Parks Investment                        ,CE013SA,New Construction Conversion and Renovation,,B4,Contractor - Site works                 ,"4,870.00",24/06/2016,C,TAYLOR BUILDING COMPANY LTD   
72,,,Parks Investment                        ,CE013SA,New Construction Conversion and Renovation,,B4,Contractor - Site works                 ,"8,250.00",14/06/2016,C,TAYLOR BUILDING COMPANY LTD   
73,,,Parks Investment                        ,CE013SA,New Construction Conversion and Renovation,,B4,Contractor - Site works                 ,"8,300.00",24/06/2016,C,TAYLOR BUILDING COMPANY LTD   
74,,,Parks Investment                        ,CE013SA,New Construction Conversion and Renovation,,B4,Contractor - Site works                 ,"9,500.00",24/06/2016,C,TAYLOR BUILDING COMPANY LTD   
75,,,B617a-c Wimbledon Park upgrade          ,CE017CD,New Construction Conversion and Renovation,,B4,Contractor - Site works                 ,"2,330.00",08/06/2016,C,REDDINGTON GROUNDWORKS LTD    
76,,,Borough Roads Maintenance               ,CE026FA,New Construction Conversion and Renovation,,C3,Public Notices - Structure              ,516.00,20/05/2016,C,NEWSQUEST MEDIA GROUP LTD     
77,,,Borough Roads Maintenance               ,CE026FA,New Construction Conversion and Renovation,,C3,Public Notices - Structure              ,696.00,27/05/2016,C,NEWSQUEST MEDIA GROUP LTD     
78,,,TFL Projected Slippage                  ,CE026SA,New Construction Conversion and Renovation,,B4,Contractor - Site works                 ,696.00,10/06/2016,C,TK CONSTRUCT & ELECTRIC INSTAL
79,,,TFL Projected Slippage                  ,CE026SA,New Construction Conversion and Renovation,,B4,Contractor - Site works                 ,"2,784.88",31/05/2016,C,KIER INTEGRATED SERVICES LTD  
80,,,TFL Projected Slippage                  ,CE026SA,New Construction Conversion and Renovation,,B5,Suppliers - Site works                  ,821.00,08/06/2016,C,GRASS BARBERS LONDON LTD      
81,,,TFL Projected Slippage                  ,CE026SA,New Construction Conversion and Renovation,,B6,Other Costs - Site works                ,748.00,18/05/2016,C,UK POWER NETWORKS (OPERATIONS)
82,,,TFL Projected Slippage                  ,CE026SA,New Construction Conversion and Renovation,,B6,Other Costs - Site works                ,"1,928.00",20/06/2016,C,UK POWER NETWORKS (OPERATIONS)
83,,,TFL Projected Slippage                  ,CE026SA,New Construction Conversion and Renovation,,B6,Other Costs - Site works                ,"2,500.00",25/05/2016,C,LITTLE OAK TREE CARE          
84,,,B683 Cannizaro Park                     ,CE027CB,New Construction Conversion and Renovation,,B4,Contractor - Site works                 ,"2,630.00",24/06/2016,C,TAYLOR BUILDING COMPANY LTD   
85,,,Repairs to Footways                     ,CE029FA,Vehicles Plant Equipment and Machinery,,D3,Equipment                               ,"5,500.00",06/06/2016,C,ABBEY NAMEPLATES              
86,,,Leisure Centre Plant & Machine          ,CE038MA,New Construction Conversion and Renovation,,B4,Contractor - Site works                 ,645.00,17/06/2016,C,GREENWICH LEISURE LTD         
87,,,Leisure Centre Plant & Machine          ,CE038MA,New Construction Conversion and Renovation,,B4,Contractor - Site works                 ,"11,096.00",09/06/2016,C,NATIONCARE WINDOWS LTD        
88,,,Leisure Centre Plant & Machine          ,CE038MA,New Construction Conversion and Renovation,,B4,Contractor - Site works                 ,"14,275.00",14/06/2016,C,APA CONCRETE REPAIRS LTD      
89,,,Leisure Centre Plant & Machine          ,CE038MA,Vehicles Plant Equipment and Machinery,,D3,Equipment                               ,"40,555.51",06/06/2016,C,HELEC                         
90,,,Leisure Centre Plant & Machine          ,CE038MA,Vehicles Plant Equipment and Machinery,,D3,Equipment                               ,"40,555.51",29/06/2016,C,HELEC                         
91,,,Morden Leisure Centre                   ,CE045AA,Acquisition of Land and Existing Buildings,,A2,External Fees                           ,904.00,27/05/2016,C,REDACTED
92,,,Morden Leisure Centre                   ,CE045AA,New Construction Conversion and Renovation,,B1,Consultants Fees D&S Structure          ,"1,000.00",31/05/2016,C,SWEETT (UK) LIMITED           
93,,,Morden Leisure Centre                   ,CE045AA,New Construction Conversion and Renovation,,B1,Consultants Fees D&S Structure          ,"2,280.00",20/06/2016,C,FAITHFUL AND GOULD            
94,,,Morden Leisure Centre                   ,CE045AA,New Construction Conversion and Renovation,,B1,Consultants Fees D&S Structure          ,"4,033.00",27/05/2016,C,GARDINER & THEOBALD LLP       
95,,,Morden Leisure Centre                   ,CE045AA,New Construction Conversion and Renovation,,B1,Consultants Fees D&S Structure          ,"5,500.00",20/06/2016,C,GREATER LONDON AUTHORITY      
96,,,Morden Leisure Centre                   ,CE045AA,New Construction Conversion and Renovation,,B1,Consultants Fees D&S Structure          ,"6,120.00",31/05/2016,C,OOBE LTD                      
97,,,Morden Leisure Centre                   ,CE045AA,New Construction Conversion and Renovation,,B1,Consultants Fees D&S Structure          ,"61,657.00",20/06/2016,C,FAITHFUL AND GOULD            
98,,,Morden Leisure Centre                   ,CE045AA,New Construction Conversion and Renovation,,B2,Site Surveys D&S Structure              ,510.00,31/05/2016,C,GPM ECOLOGY                   
99,,,Morden Leisure Centre                   ,CE045AA,New Construction Conversion and Renovation,,B2,Site Surveys D&S Structure              ,800.00,31/05/2016,C,MUSEUM OF LONDON              
100,,,Morden Leisure Centre                   ,CE045AA,New Construction Conversion and Renovation,,B2,Site Surveys D&S Structure              ,"1,895.00",31/05/2016,C,GPM ECOLOGY                   
101,,,Morden Leisure Centre                   ,CE045AA,New Construction Conversion and Renovation,,B2,Site Surveys D&S Structure              ,"4,664.00",31/05/2016,C,MUSEUM OF LONDON              
102,,,Brighter Business,CE061FJ,Other Capital Expenditure,,E1,Grants                                  ,714.00,17/06/2016,C,NELSON NEWSAGENTS             
103,,,B591b Shop Front Improvement,CE066FG,Other Capital Expenditure,,E1,Grants                                  ,"14,483.18",30/06/2016,C,KYDD AND KYDD VETS            
104,,,Street Lighting Replacement Pr          ,CE068FA,New Construction Conversion and Renovation,,B4,Contractor - Site works                 ,525.00,16/06/2016,C,TK CONSTRUCT & ELECTRIC INSTAL
105,,,Street Lighting Replacement Pr          ,CE068FA,New Construction Conversion and Renovation,,B4,Contractor - Site works                 ,609.00,15/06/2016,C,TK CONSTRUCT & ELECTRIC INSTAL
106,,,Street Lighting Replacement Pr          ,CE068FA,New Construction Conversion and Renovation,,B4,Contractor - Site works                 ,734.00,13/06/2016,C,TK CONSTRUCT & ELECTRIC INSTAL
107,,,Street Lighting Replacement Pr          ,CE068FA,New Construction Conversion and Renovation,,B4,Contractor - Site works                 ,945.00,15/06/2016,C,TK CONSTRUCT & ELECTRIC INSTAL
108,,,Street Lighting Replacement Pr          ,CE068FA,New Construction Conversion and Renovation,,B4,Contractor - Site works                 ,"1,026.00",13/06/2016,C,TK CONSTRUCT & ELECTRIC INSTAL
109,,,Street Lighting Replacement Pr          ,CE068FA,New Construction Conversion and Renovation,,B4,Contractor - Site works                 ,"2,520.00",13/06/2016,C,TK CONSTRUCT & ELECTRIC INSTAL
110,,,Street Lighting Replacement Pr          ,CE068FA,New Construction Conversion and Renovation,,B4,Contractor - Site works                 ,"4,560.00",31/05/2016,C,KIER INTEGRATED SERVICES LTD  
111,,,Street Lighting Replacement Pr          ,CE068FA,New Construction Conversion and Renovation,,B4,Contractor - Site works                 ,"5,193.60",31/05/2016,C,KIER INTEGRATED SERVICES LTD  
112,,,Street Lighting Replacement Pr          ,CE068FA,New Construction Conversion and Renovation,,B4,Contractor - Site works                 ,"6,252.51",31/05/2016,C,KIER INTEGRATED SERVICES LTD  
113,,,Street Lighting Replacement Pr          ,CE068FA,New Construction Conversion and Renovation,,B4,Contractor - Site works                 ,"20,270.51",31/05/2016,C,KIER INTEGRATED SERVICES LTD  
114,,,Street Lighting Replacement Pr          ,CE068FA,New Construction Conversion and Renovation,,B4,Contractor - Site works                 ,"30,400.50",31/05/2016,C,KIER INTEGRATED SERVICES LTD  
115,,,Street Lighting Replacement Pr          ,CE068FA,New Construction Conversion and Renovation,,B6,Other Costs - Site works                ,500.00,13/06/2016,C,WIMBLEDON TREE SURGEONS       
116,,,Street Lighting Replacement Pr          ,CE068FA,New Construction Conversion and Renovation,,B6,Other Costs - Site works                ,"1,155.00",14/06/2016,C,UK POWER NETWORKS (OPERATIONS)
117,,,Street Lighting Replacement Pr          ,CE068FA,New Construction Conversion and Renovation,,B6,Other Costs - Site works                ,"13,482.00",14/06/2016,C,UK POWER NETWORKS (OPERATIONS)
118,,,Alley Gating Scheme - Fly Tip           ,CE087FA,Other Capital Expenditure,,E1,Grants                                  ,"1,054.08",23/06/2016,C,P J HARVEY & CO LTD           
119,,,Cycle access/parking                    ,CE104FG,New Construction Conversion and Renovation,,B6,Other Costs - Site works                ,"2,568.00",20/06/2016,C,UK POWER NETWORKS (OPERATIONS)
120,,,Casualty Reduction & Schools            ,CE104RA,New Construction Conversion and Renovation,,B4,Contractor - Site works                 ,844.29,07/06/2016,C,KIER INTEGRATED SERVICES LTD  
121,,,Casualty Reduction & Schools            ,CE104RA,New Construction Conversion and Renovation,,B4,Contractor - Site works                 ,"1,000.00",31/05/2016,C,KIER INTEGRATED SERVICES LTD  
122,,,Casualty Reduction & Schools            ,CE104RA,New Construction Conversion and Renovation,,B4,Contractor - Site works                 ,"1,000.00",31/05/2016,C,KIER INTEGRATED SERVICES LTD  
123,,,Casualty Reduction & Schools            ,CE104RA,New Construction Conversion and Renovation,,B4,Contractor - Site works                 ,"1,104.00",13/06/2016,C,TK CONSTRUCT & ELECTRIC INSTAL
124,,,Casualty Reduction & Schools            ,CE104RA,New Construction Conversion and Renovation,,B6,Other Costs - Site works                ,"1,539.00",31/05/2016,C,UK POWER NETWORKS (OPERATIONS)
125,,,Cycle Improvements                      ,CE104RM,New Construction Conversion and Renovation,,B6,Other Costs - Site works                ,"2,000.00",02/06/2016,C,TRANSPORT FOR LONDON          
126,,,Cycle Improvements                      ,CE104RM,New Construction Conversion and Renovation,,B6,Other Costs - Site works                ,"22,428.08",02/06/2016,C,TRANSPORT FOR LONDON          
127,,,Tamworth Paddling Pool,CE110CL,New Construction Conversion and Renovation,,B4,Contractor - Site works                 ,"2,410.00",14/06/2016,C,TAYLOR BUILDING COMPANY LTD   
128,,,Tackling Traffic Congestion             ,CE150AA,New Construction Conversion and Renovation,,B6,Other Costs - Site works                ,"1,266.00",22/06/2016,C,UK POWER NETWORKS (OPERATIONS)
129,,,Tackling Traffic Congestion             ,CE150AA,New Construction Conversion and Renovation,,B6,Other Costs - Site works                ,"1,587.00",20/06/2016,C,UK POWER NETWORKS (OPERATIONS)
130,,,Tackling Traffic Congestion             ,CE150AA,New Construction Conversion and Renovation,,B6,Other Costs - Site works                ,"1,587.00",22/06/2016,C,UK POWER NETWORKS (OPERATIONS)
131,,,Tackling Traffic Congestion             ,CE150AA,Vehicles Plant Equipment and Machinery,,D5,Software                                ,"7,342.50",31/05/2016,C,IMPERIAL CIVIL ENFORC.SOLUT.  
132,,,Canons Parks for People                 ,CE157AA,New Construction Conversion and Renovation,,B1,Consultants Fees D&S Structure          ,"10,418.75",31/05/2016,C,SOUTHERN GREEN LIMITED        
133,,,Invest to Save schemes-General          ,CF003SA,New Construction Conversion and Renovation,,B4,Contractor - Site works                 ,560.00,10/05/2016,C,REDACTED
134,,,Invest to Save schemes-General          ,CF003SA,New Construction Conversion and Renovation,,B4,Contractor - Site works                 ,620.00,10/05/2016,C,REDACTED
135,,,Invest to Save schemes-General          ,CF003SA,New Construction Conversion and Renovation,,B4,Contractor - Site works                 ,"1,176.00",10/05/2016,C,REDACTED
136,,,Invest to Save schemes-General          ,CF003SA,New Construction Conversion and Renovation,,B4,Contractor - Site works                 ,"2,478.85",19/05/2016,C,REDACTED
137,,,Invest to Save schemes-General          ,CF003SA,New Construction Conversion and Renovation,,B4,Contractor - Site works                 ,"2,705.00",10/05/2016,C,REDACTED
138,,,Invest to Save schemes-General          ,CF003SA,New Construction Conversion and Renovation,,B4,Contractor - Site works                 ,"3,812.00",10/05/2016,C,REDACTED
139,,,Invest to Save schemes-General          ,CF003SA,New Construction Conversion and Renovation,,B4,Contractor - Site works                 ,"4,787.00",19/05/2016,C,REDACTED
140,,,Invest to Save schemes-General          ,CF003SA,New Construction Conversion and Renovation,,B4,Contractor - Site works                 ,"5,194.00",10/05/2016,C,REDACTED
141,,,Repair and Maintenance                  ,CF004SA,New Construction Conversion and Renovation,,B4,Contractor - Site works                 ,"33,490.95",03/05/2016,C,ERGRO BUILDING SERVICES LTD   
142,,,Dundonald expansion                     ,CS031AC,New Construction Conversion and Renovation,,B1,Consultants Fees D&S Structure          ,"12,767.00",01/06/2016,C,HAVERSTOCK ASSOCIATES LLP     
143,,,Dundonald expansion                     ,CS031AC,New Construction Conversion and Renovation,,B4,Contractor - Site works                 ,"340,000.00",21/06/2016,C,KIND & COMPANY (BUILDERS) LTD 
144,,,Singlegate expansion                    ,CS049AA,New Construction Conversion and Renovation,,B1,Consultants Fees D&S Structure          ,"7,817.54",25/05/2016,C,ATKINS LIMITED                
145,,,Singlegate expansion                    ,CS049AA,New Construction Conversion and Renovation,,B4,Contractor - Site works                 ,"39,300.00",15/06/2016,C,BALFOUR BEATTY REGIONAL CONST.
146,,,Singlegate expansion                    ,CS049AA,New Construction Conversion and Renovation,,B4,Contractor - Site works                 ,"140,823.09",21/06/2016,C,KIND & COMPANY (BUILDERS) LTD 
147,,,Harris Merton 2fe                       ,CS085SG,New Construction Conversion and Renovation,,B1,Consultants Fees D&S Structure          ,"1,292.00",31/05/2016,C,SUMMERS INMAN                 
148,,,IT Equipment                            ,CT006EA,Vehicles Plant Equipment and Machinery,,D3,Equipment                               ,"4,320.00",03/05/2016,C,SPECIALIST COMPUTER CENT. PLC 
149,,,Transformation (IT)                     ,CT012EA,Vehicles Plant Equipment and Machinery,,D4,Specialist furniture                    ,985.00,23/05/2016,C,CIVICA SERVICES LTD           
150,,,Improving Information Systems           ,CT020NB,Vehicles Plant Equipment and Machinery,,D5,Software                                ,"5,970.00",31/05/2016,C,ADVANCED BUSINESS SOLUTIONS   
151,,,Improving Information Systems           ,CT020NB,Vehicles Plant Equipment and Machinery,,D5,Software                                ,"7,462.50",31/05/2016,C,ADVANCED BUSINESS SOLUTIONS   
152,,,Improving Information Systems           ,CT020NB,Vehicles Plant Equipment and Machinery,,D5,Software                                ,"18,000.00",31/05/2016,C,ADVANCED BUSINESS SOLUTIONS   
153,Central Services,Council tax collection,Local Taxation Services,E02100,Supplies & Services           ,Services                      ,DF11,Counsel's Fees                          ,"1,107.00",06/06/2016,R,WELBECK LAW LLP               
154,Central Services,Council tax collection,Local Taxation Services,E02100,Supplies & Services           ,Services                      ,DF11,Counsel's Fees                          ,"2,498.01",14/06/2016,R,HMCTS                         
155,Central Services,Council tax collection,Local Taxation Services,E02100,Supplies & Services           ,Comms and Computing           ,DG09,Computer Purchases - Misc               ,857.35,03/06/2016,R,CIVICA UK LIMITED             
156,Central Services,Council tax collection,Local Taxation Services,E02100,Supplies & Services           ,Comms and Computing           ,DG09,Computer Purchases - Misc               ,"2,594.87",03/06/2016,R,CIVICA UK LIMITED             
157,Central Services,Council tax collection,Local Taxation Services,E02100,Supplies & Services           ,Comms and Computing           ,DG09,Computer Purchases - Misc               ,"2,820.00",21/06/2016,R,MAG:NET SOLUTIONS             
158,Central Services,Council tax collection,Local Taxation Services,E02100,Supplies & Services           ,Comms and Computing           ,DG09,Computer Purchases - Misc               ,"2,945.00",10/06/2016,R,CIVICA UK LIMITED             
159,Central Services,Council tax collection,Local Taxation Services,E02100,Supplies & Services           ,Comms and Computing           ,DG09,Computer Purchases - Misc               ,"3,626.00",03/06/2016,R,CIVICA UK LIMITED             
160,Central Services,Council tax collection,Local Taxation Services,E02100,Supplies & Services           ,Comms and Computing           ,DG09,Computer Purchases - Misc               ,"3,779.13",03/06/2016,R,CIVICA UK LIMITED             
161,Central Services,Council tax collection,Local Taxation Services,E02100,Supplies & Services           ,Comms and Computing           ,DG09,Computer Purchases - Misc               ,"13,168.95",14/06/2016,R,CIVICA UK LIMITED             
162,Central Services,Council tax collection,Local Taxation Services,E02100,Supplies & Services           ,Comms and Computing           ,DG09,Computer Purchases - Misc               ,"13,750.00",10/06/2016,R,CIVICA UK LIMITED             
163,Central Services,Council tax collection,Local Taxation Services,E02100,Third Party Payments          ,Private Contractors           ,EH01,Miscellaneous Agency Services           ,"1,721.93",01/05/2016,R,COMMERCIAL COLLECTION SERVICES
164,Central Services,Council tax collection,Local Taxation Bailiffs,E02101,Supplies & Services           ,Services                      ,DF18,Bailiffs' fees                          ,618.56,30/04/2016,R,HPI LIMITED                   
165,Central Services,Council tax collection,Local Taxation Bailiffs,E02101,Supplies & Services           ,Services                      ,DF18,Bailiffs' fees                          ,748.30,03/06/2016,R,QUARTIX                       
166,Central Services,Council tax collection,Local Taxation Bailiffs,E02101,Supplies & Services           ,Services                      ,DF18,Bailiffs' fees                          ,"1,457.00",09/06/2016,R,QUARTIX                       
167,Central Services,Council tax collection,Local Taxation Bailiffs,E02101,Supplies & Services           ,Services                      ,DF18,Bailiffs' fees                          ,"3,750.00",17/06/2016,R,CLEARTONE TELECOMS LTD        
168,Central Services,Council tax collection,Sutton Shared Bailiffs Service          ,E02102,Third Party Payments          ,Other Local Authorities       ,EB01,Payments to OLAs                        ,"44,383.71",21/06/2016,R,LONDON BOROUGH OF SUTTON      
169,Housing Services,HB Administration,Benefits Administration,E02120,Supplies & Services           ,Comms and Computing           ,DG09,Computer Purchases - Misc               ,612.32,03/06/2016,R,CIVICA UK LIMITED             
170,Housing Services,HB Administration,Benefits Administration,E02120,Supplies & Services           ,Comms and Computing           ,DG09,Computer Purchases - Misc               ,"1,765.41",03/06/2016,R,CIVICA UK LIMITED             
171,Housing Services,HB Administration,Benefits Administration,E02120,Supplies & Services           ,Comms and Computing           ,DG09,Computer Purchases - Misc               ,"3,442.25",03/06/2016,R,CIVICA UK LIMITED             
172,Central Services,SupS Pensions,Pensions,E02160,Third Party Payments          ,Other Local Authorities       ,EB01,Payments to OLAs                        ,"38,123.00",05/05/2016,R,WANDSWORTH CORPORATION        
173,Central Services,SupS Facilities,Post Room,E02220,Supplies & Services           ,Comms and Computing           ,DG04,Postage - General                       ,592.75,13/06/2016,R,STREETWISE COURIERS           
174,Central Services,SupS Facilities,Post Room,E02220,Supplies & Services           ,Comms and Computing           ,DG04,Postage - General                       ,"5,000.00",14/06/2016,R,NEOPOST FINANCE LIMITED       
175,Central Services,SupS Facilities,Civic Centre,E02222,Supplies & Services           ,Equip Furniture/Materials     ,DA09,Equip-Purchases                         ,"1,426.30",28/06/2016,R,BILFINGER EUROPA FACILITY     
176,Central Services,SupS Facilities,Civic Centre,E02222,Supplies & Services           ,Equip Furniture/Materials     ,DA09,Equip-Purchases                         ,"1,702.14",23/06/2016,R,BILFINGER EUROPA FACILITY     
177,Central Services,SupS Facilities,Facilities,E02231,Premises Related Expenditure  ,RepairsAlterations&MtceOfBldgs,BA02,ENERGY CONSERVATION                     ,519.84,15/06/2016,R,ENERGY ASSETS LIMITED         
178,Central Services,SupS Facilities,Facilities,E02231,Premises Related Expenditure  ,RepairsAlterations&MtceOfBldgs,BA02,ENERGY CONSERVATION                     ,650.00,22/06/2016,R,SYSTEMS LINK                  
179,Central Services,SupS Facilities,Facilities,E02231,Premises Related Expenditure  ,RepairsAlterations&MtceOfBldgs,BA02,ENERGY CONSERVATION                     ,"10,599.17",09/06/2016,R,JOJU SOLA                     
180,Central Services,SupS Facilities,Facilities,E02231,Premises Related Expenditure  ,RepairsAlterations&MtceOfBldgs,BA03,DDM - Mechanical                        ,"7,485.00",14/06/2016,R,ASHTEAD PLANT HIRE CO LTD     
181,Central Services,SupS Facilities,Facilities,E02231,Premises Related Expenditure  ,RepairsAlterations&MtceOfBldgs,BA03,DDM - Mechanical                        ,"13,267.80",13/05/2016,R,FLETCHERS FACILITIES LIMITED  
182,Central Services,SupS Facilities,FM External Fees,E02239,Premises Related Expenditure  ,RepairsAlterations&MtceOfBldgs,BA29,Build Maint Mgt Fees                    ,900.00,31/05/2016,R,BUXTON ASSOCS (CONS) ENG.LTD  
183,Central Services,SupS Facilities,FM External Fees,E02239,Premises Related Expenditure  ,RepairsAlterations&MtceOfBldgs,BA29,Build Maint Mgt Fees                    ,"1,000.00",06/06/2016,R,HB ARCHITECTS LTD             
184,Central Services,SupS Facilities,Corporate Services Buildings,E02240,Premises Related Expenditure  ,RepairsAlterations&MtceOfBldgs,BA01,DDM - General Building                  ,953.01,31/05/2016,R,CHARTWELL DOORS LIMITED       
185,Central Services,SupS Facilities,Corporate Services Buildings,E02240,Premises Related Expenditure  ,RepairsAlterations&MtceOfBldgs,BA03,DDM - Mechanical                        ,554.49,20/06/2016,R,BILFINGER EUROPA FACILITY     
186,Central Services,SupS Facilities,Corporate Services Buildings,E02240,Premises Related Expenditure  ,RepairsAlterations&MtceOfBldgs,BA03,DDM - Mechanical                        ,"1,500.00",25/05/2016,R,BILFINGER EUROPA FACILITY     
187,Central Services,SupS Facilities,Corporate Services Buildings,E02240,Premises Related Expenditure  ,RepairsAlterations&MtceOfBldgs,BA03,DDM - Mechanical                        ,"1,500.00",25/05/2016,R,BILFINGER EUROPA FACILITY     
188,Central Services,SupS Facilities,Corporate Services Buildings,E02240,Premises Related Expenditure  ,RepairsAlterations&MtceOfBldgs,BA03,DDM - Mechanical                        ,"1,500.00",25/05/2016,R,BILFINGER EUROPA FACILITY     
189,Central Services,SupS Facilities,Corporate Services Buildings,E02240,Premises Related Expenditure  ,RepairsAlterations&MtceOfBldgs,BA03,DDM - Mechanical                        ,"1,963.02",25/05/2016,R,BILFINGER EUROPA FACILITY     
190,Central Services,SupS Facilities,Corporate Services Buildings,E02240,Premises Related Expenditure  ,RepairsAlterations&MtceOfBldgs,BA03,DDM - Mechanical                        ,"3,000.00",25/05/2016,R,BILFINGER EUROPA FACILITY     
191,Central Services,SupS Facilities,Corporate Services Buildings,E02240,Premises Related Expenditure  ,RepairsAlterations&MtceOfBldgs,BA03,DDM - Mechanical                        ,"3,000.00",25/05/2016,R,BILFINGER EUROPA FACILITY     
192,Central Services,SupS Facilities,Corporate Services Buildings,E02240,Premises Related Expenditure  ,RepairsAlterations&MtceOfBldgs,BA03,DDM - Mechanical                        ,"3,000.00",25/05/2016,R,BILFINGER EUROPA FACILITY     
193,Central Services,SupS Facilities,Corporate Services Buildings,E02240,Premises Related Expenditure  ,RepairsAlterations&MtceOfBldgs,BA03,DDM - Mechanical                        ,"3,787.99",20/06/2016,R,BILFINGER EUROPA FACILITY     
194,Central Services,SupS Facilities,Corporate Services Buildings,E02240,Premises Related Expenditure  ,RepairsAlterations&MtceOfBldgs,BA03,DDM - Mechanical                        ,"7,806.26",23/05/2016,R,FUTURE TECH                   
195,Central Services,SupS Facilities,Corporate Services Buildings,E02240,Premises Related Expenditure  ,RepairsAlterations&MtceOfBldgs,BA05,DDM - ELECTRICAL                        ,561.22,03/06/2016,R,BILFINGER EUROPA FACILITY     
196,Central Services,SupS Facilities,Corporate Services Buildings,E02240,Premises Related Expenditure  ,RepairsAlterations&MtceOfBldgs,BA05,DDM - ELECTRICAL                        ,611.26,15/06/2016,R,BILFINGER EUROPA FACILITY     
197,Central Services,SupS Facilities,Corporate Services Buildings,E02240,Premises Related Expenditure  ,RepairsAlterations&MtceOfBldgs,BA05,DDM - ELECTRICAL                        ,"1,673.10",17/06/2016,R,BILFINGER EUROPA FACILITY     
198,Central Services,SupS Facilities,Corporate Services Buildings,E02240,Premises Related Expenditure  ,RepairsAlterations&MtceOfBldgs,BA29,Build Maint Mgt Fees                    ,"2,567.25",20/06/2016,R,BILFINGER EUROPA FACILITY     
199,Central Services,SupS Facilities,Corporate Services Buildings,E02240,Premises Related Expenditure  ,RepairsAlterations&MtceOfBldgs,BA29,Build Maint Mgt Fees                    ,"2,567.25",20/06/2016,R,BILFINGER EUROPA FACILITY     
200,Central Services,SupS Facilities,Corporate Services Buildings,E02240,Premises Related Expenditure  ,Energy Costs                  ,BB03,Gas (incl. Butane)                      ,"3,001.05",03/06/2016,R,GAZPROM MARKETING&TRADING LTD 
201,Childrens & Education Services,Strategic Management,PDC,E02254,Premises Related Expenditure  ,Cleaning and Domestic Supplies,BH03,Cleaning Services                       ,"2,397.50",30/05/2016,R,JULIUS RUTHERFOORD & CO LTD   
202,Adult Social Care,OP 65 & Over Day Care,Pollards Hill Day Centre,E02270,Premises Related Expenditure  ,Cleaning and Domestic Supplies,BH01,Cleaning Materials                      ,504.00,13/06/2016,R,GREENHAM TRADING LTD          
203,Adult Social Care,OP 65 & Over Day Care,Pollards Hill Day Centre,E02270,Premises Related Expenditure  ,Cleaning and Domestic Supplies,BH03,Cleaning Services                       ,885.31,30/04/2016,R,BIRKIN CLEANING SERVICES LTD  
204,Adult Social Care,OP 65 & Over Day Care,Pollards Hill Day Centre,E02270,Premises Related Expenditure  ,Cleaning and Domestic Supplies,BH03,Cleaning Services                       ,"1,038.14",30/04/2016,R,BIRKIN CLEANING SERVICES LTD  
205,Adult Social Care,OP 65 & Over Day Care,Pollards Hill Day Centre,E02270,Premises Related Expenditure  ,Cleaning and Domestic Supplies,BH03,Cleaning Services                       ,"1,304.95",30/04/2016,R,BIRKIN CLEANING SERVICES LTD  
206,Adult Social Care,OP 65 & Over Day Care,Pollards Hill Day Centre,E02270,Premises Related Expenditure  ,Cleaning and Domestic Supplies,BH03,Cleaning Services                       ,"1,497.38",30/04/2016,R,BIRKIN CLEANING SERVICES LTD  
207,Adult Social Care,OP 65 & Over Day Care,Pollards Hill Day Centre,E02270,Premises Related Expenditure  ,Cleaning and Domestic Supplies,BH03,Cleaning Services                       ,"1,623.45",30/04/2016,R,BIRKIN CLEANING SERVICES LTD  
208,Adult Social Care,OP 65 & Over Day Care,Pollards Hill Day Centre,E02270,Premises Related Expenditure  ,Cleaning and Domestic Supplies,BH03,Cleaning Services                       ,"1,764.19",30/04/2016,R,BIRKIN CLEANING SERVICES LTD  
209,Adult Social Care,OP 65 & Over Day Care,Pollards Hill Day Centre,E02270,Premises Related Expenditure  ,Cleaning and Domestic Supplies,BH03,Cleaning Services                       ,"7,302.68",30/04/2016,R,BIRKIN CLEANING SERVICES LTD  
210,Central Services,SupS Facilities,CORPORATE ELECTRICITY RECHARGE,E02275,Premises Related Expenditure  ,Energy Costs                  ,BB02,Electricity                             ,"1,519.36",17/06/2016,R,SCOTTISH POWER                
211,Central Services,SupS Facilities,CORPORATE ELECTRICITY RECHARGE,E02275,Premises Related Expenditure  ,Energy Costs                  ,BB02,Electricity                             ,"28,762.44",17/06/2016,R,SCOTTISH POWER                
212,Cultural Env Reg&Plan Services,Parks & Open Spaces,E & R Buildings,E02344,Premises Related Expenditure  ,RepairsAlterations&MtceOfBldgs,BA03,DDM - Mechanical                        ,542.52,20/06/2016,R,BILFINGER EUROPA FACILITY     
213,Cultural Env Reg&Plan Services,Parks & Open Spaces,E & R Buildings,E02344,Premises Related Expenditure  ,RepairsAlterations&MtceOfBldgs,BA05,DDM - ELECTRICAL                        ,599.53,25/05/2016,R,BILFINGER EUROPA FACILITY     
214,Cultural Env Reg&Plan Services,Parks & Open Spaces,E & R Buildings,E02344,Premises Related Expenditure  ,RepairsAlterations&MtceOfBldgs,BA05,DDM - ELECTRICAL                        ,601.28,31/05/2016,R,BILFINGER EUROPA FACILITY     
215,Adult Social Care,PS u65 Day Care,C & H Buildings,E02345,Premises Related Expenditure  ,RepairsAlterations&MtceOfBldgs,BA01,DDM - General Building                  ,709.87,31/05/2016,R,BILFINGER EUROPA FACILITY     
216,Adult Social Care,PS u65 Day Care,C & H Buildings,E02345,Premises Related Expenditure  ,RepairsAlterations&MtceOfBldgs,BA03,DDM - Mechanical                        ,515.32,20/06/2016,R,BILFINGER EUROPA FACILITY     
217,Cultural Env Reg&Plan Services,Parks & Open Spaces,Leisure Buildings,E02350,Premises Related Expenditure  ,RepairsAlterations&MtceOfBldgs,BA03,DDM - Mechanical                        ,557.76,20/06/2016,R,BILFINGER EUROPA FACILITY     
218,Cultural Env Reg&Plan Services,Parks & Open Spaces,Leisure Buildings,E02350,Premises Related Expenditure  ,RepairsAlterations&MtceOfBldgs,BA05,DDM - ELECTRICAL                        ,548.55,16/06/2016,R,BILFINGER EUROPA FACILITY     
219,Central Services,SupS DOF,AD RESOURCES,E04061,Supplies & Services           ,Services                      ,DF03,Consultants                             ,"5,520.00",19/06/2016,R,PUBLIC SECTOR CONSULTANTS     
220,Central Services,SupS DOF,AD RESOURCES,E04061,Supplies & Services           ,Services                      ,DF03,Consultants                             ,"6,900.00",02/06/2016,R,PUBLIC SECTOR CONSULTANTS     
221,Central Services,Officer support time,Corporately Funded Items,E04065,Supplies & Services           ,Services                      ,DF11,Counsel's Fees                          ,725.00,16/05/2016,R,REDACTED
222,Central Services,SupS Audit and Fraud,Internal Audit&Service Review,E05101,Third Party Payments          ,Other Local Authorities       ,EB01,Payments to OLAs                        ,"150,492.00",21/04/2016,R,L.B.RICHMOND UPON THAMES      
223,Central Services,SupS Strategic Finance,Treasury & Insurance,E06222,Employees                     ,Direct Employee Expenses      ,AA17,Agency Staff & Casual Paymts            ,"1,808.00",08/06/2016,R,HAYS SPECIALIST RECRUITM'T LTD
224,Central Services,SupS Strategic Finance,Treasury & Insurance,E06222,Employees                     ,Direct Employee Expenses      ,AA17,Agency Staff & Casual Paymts            ,"2,260.00",08/06/2016,R,HAYS SPECIALIST RECRUITM'T LTD
225,Central Services,SupS Strategic Finance,Treasury & Insurance,E06222,Employees                     ,Direct Employee Expenses      ,AA17,Agency Staff & Casual Paymts            ,"2,260.00",16/06/2016,R,HAYS SPECIALIST RECRUITM'T LTD
226,Central Services,SupS Strategic Finance,Treasury & Insurance,E06222,Employees                     ,Direct Employee Expenses      ,AA17,Agency Staff & Casual Paymts            ,"2,260.00",24/06/2016,R,HAYS SPECIALIST RECRUITM'T LTD
227,Central Services,GENERATED ACCOUNT,Parking Cash Collect'n Contrct,E06225,Third Party Payments          ,Private Contractors           ,EH02,Miscellaneous Hired Services            ,"11,233.96",31/05/2016,R,JADE SECURITY SERVICE LTD     
228,Central Services,GENERATED ACCOUNT,Establishments' Cash Collect'n,E06226,Third Party Payments          ,Private Contractors           ,EH02,Miscellaneous Hired Services            ,697.50,31/05/2016,R,JADE SECURITY SERVICE LTD     
229,Central Services,Land Charges,Land Charges,E10283,Supplies & Services           ,Services                      ,DF11,Counsel's Fees                          ,625.46,03/06/2016,R,LOCAL GOVERNMENT ASSOCIATION  
230,Central Services,Conducting elections,Election Expenses,E10284,Premises Related Expenditure  ,RepairsAlterations&MtceOfBldgs,BA06,REPAIRS & MAINTENANCE GENERAL           ,"1,075.00",19/05/2016,R,ASHTEAD PLANT HIRE CO LTD     
231,Central Services,Conducting elections,Election Expenses,E10284,Premises Related Expenditure  ,Rents                         ,BC03,Room/venue rental hire                  ,"6,619.86",14/04/2016,R,GREENWICH LEISURE LTD         
232,Central Services,Conducting elections,Election Expenses,E10284,Supplies & Services           ,Equip Furniture/Materials     ,DA03,Hire of Equipment                       ,795.50,23/06/2016,R,STITCHES MARQUEES             
233,Central Services,Conducting elections,Election Expenses,E10284,Supplies & Services           ,Equip Furniture/Materials     ,DA03,Hire of Equipment                       ,"1,656.00",24/06/2016,R,EVENT HIRE COMPANY            
234,Central Services,Conducting elections,Election Expenses,E10284,Supplies & Services           ,Prntng Stnry Gen Off Exp      ,DE50,Ballot Papers/Poll Cards Print          ,900.00,01/05/2016,R,FINANCIAL DATA MANAGEMENT PLC 
235,Central Services,Conducting elections,Election Expenses,E10284,Supplies & Services           ,Prntng Stnry Gen Off Exp      ,DE50,Ballot Papers/Poll Cards Print          ,"6,238.12",01/05/2016,R,FINANCIAL DATA MANAGEMENT PLC 
236,Central Services,Conducting elections,Election Expenses,E10284,Supplies & Services           ,Comms and Computing           ,DG04,Postage - General                       ,518.00,13/06/2016,R,FINANCIAL DATA MANAGEMENT PLC 
237,Central Services,Conducting elections,Election Expenses,E10284,Supplies & Services           ,Comms and Computing           ,DG04,Postage - General                       ,"1,259.30",29/04/2016,R,FINANCIAL DATA MANAGEMENT PLC 
238,Central Services,Conducting elections,Election Expenses,E10284,Supplies & Services           ,Comms and Computing           ,DG04,Postage - General                       ,"1,928.37",13/06/2016,R,ROYAL MAIL GROUP LTD          
239,Central Services,Conducting elections,Election Expenses,E10284,Supplies & Services           ,Comms and Computing           ,DG04,Postage - General                       ,"2,122.91",29/04/2016,R,FINANCIAL DATA MANAGEMENT PLC 
240,Central Services,Conducting elections,Election Expenses,E10284,Supplies & Services           ,Comms and Computing           ,DG04,Postage - General                       ,"2,609.55",20/06/2016,R,ROYAL MAIL GROUP LTD          
241,Central Services,Conducting elections,Election Expenses,E10284,Supplies & Services           ,Comms and Computing           ,DG04,Postage - General                       ,"9,050.16",29/04/2016,R,FINANCIAL DATA MANAGEMENT PLC 
242,Central Services,Conducting elections,Election Expenses,E10284,Supplies & Services           ,Comms and Computing           ,DG04,Postage - General                       ,"33,502.87",20/05/2016,R,FINANCIAL DATA MANAGEMENT PLC 
243,Central Services,Registration of electors,Electoral Registration,E10285,Supplies & Services           ,Prntng Stnry Gen Off Exp      ,DE01,External Printing                       ,696.00,01/05/2016,R,FINANCIAL DATA MANAGEMENT PLC 
244,Central Services,Registration of electors,Electoral Registration,E10285,Supplies & Services           ,Comms and Computing           ,DG04,Postage - General                       ,852.77,29/04/2016,R,FINANCIAL DATA MANAGEMENT PLC 
245,Central Services,SupS Legal,Shared Legal Service,E10288,Supplies & Services           ,Prntng Stnry Gen Off Exp      ,DE30,General Office Expense                  ,760.41,31/05/2016,R,RESTORE PLC                   
246,Central Services,SupS Legal,Richmond Legal,E10289,Supplies & Services           ,Services                      ,DF11,Counsel's Fees                          ,750.00,15/06/2016,R,REDACTED
247,Central Services,SupS Legal,Richmond Legal,E10289,Supplies & Services           ,Services                      ,DF95,Services from Provider                  ,"2,482.00",31/12/2015,R,SHARPE PRITCHARD SOLICITORS   
248,Central Services,SupS Legal,Kingston Legal                          ,E10292,Supplies & Services           ,Services                      ,DF11,Counsel's Fees                          ,"2,000.00",15/06/2016,R,REDACTED
249,Central Services,SupS Legal,Sutton Legal                            ,E10293,Supplies & Services           ,Services                      ,DF11,Counsel's Fees                          ,"1,195.00",09/06/2016,R,REDACTED
250,Central Services,SupS Legal,Sutton Legal                            ,E10293,Supplies & Services           ,Services                      ,DF11,Counsel's Fees                          ,510.00,01/06/2016,R,REDACTED
251,Central Services,SupS Legal,Sutton Legal                            ,E10293,Supplies & Services           ,Services                      ,DF11,Counsel's Fees                          ,520.00,17/06/2016,R,REDACTED
252,Central Services,SupS Legal,Sutton Legal                            ,E10293,Supplies & Services           ,Services                      ,DF11,Counsel's Fees                          ,"2,115.00",26/05/2016,R,REDACTED
253,Central Services,SupS Legal,Sutton Legal                            ,E10293,Supplies & Services           ,Services                      ,DF11,Counsel's Fees                          ,"2,530.00",06/05/2016,R,REDACTED
254,Central Services,SupS Legal,Sutton Legal                            ,E10293,Supplies & Services           ,Services                      ,DF14,Doctors and Other Fees                  ,750.91,25/05/2016,R,WEALDEN PSYCHOLOGY LTD        
255,Central Services,SupS Legal,Sutton Legal                            ,E10293,Supplies & Services           ,Services                      ,DF14,Doctors and Other Fees                  ,"3,800.00",21/04/2016,R,CORAL COMMUNITY ASSESSMENTS   
256,Central Services,SupS Legal,Sutton Legal                            ,E10293,Supplies & Services           ,Services                      ,DF95,Services from Provider                  ,548.60,01/06/2016,R,I J BEIM & ASSOCIATES         
257,Central Services,SupS Legal,Sutton Housing Partnership(SHP          ,E10294,Supplies & Services           ,Services                      ,DF95,Services from Provider                  ,654.93,31/05/2016,R,MASTERS LEGAL COSTS SERV'S LLP
258,Central Services,SupS Legal,Achieving for Children (AFC),E10295,Supplies & Services           ,Services                      ,DF11,Counsel's Fees                          ,"1,750.00",09/06/2016,R,REDACTED
259,Central Services,SupS Legal,Achieving for Children (AFC),E10295,Supplies & Services           ,Services                      ,DF11,Counsel's Fees                          ,520.00,31/05/2016,R,REDACTED
260,Central Services,SupS Legal,Achieving for Children (AFC),E10295,Supplies & Services           ,Services                      ,DF11,Counsel's Fees                          ,781.25,06/06/2016,R,REDACTED
261,Central Services,SupS Legal,Achieving for Children (AFC),E10295,Supplies & Services           ,Services                      ,DF11,Counsel's Fees                          ,930.00,19/04/2016,R,REDACTED
262,Central Services,SupS Legal,Achieving for Children (AFC),E10295,Supplies & Services           ,Services                      ,DF11,Counsel's Fees                          ,960.00,19/05/2016,R,REDACTED
263,Central Services,SupS Legal,Achieving for Children (AFC),E10295,Supplies & Services           ,Services                      ,DF11,Counsel's Fees                          ,"1,176.25",17/05/2016,R,REDACTED
264,Central Services,SupS Legal,Achieving for Children (AFC),E10295,Supplies & Services           ,Services                      ,DF11,Counsel's Fees                          ,"1,240.00",25/05/2016,R,REDACTED
265,Central Services,SupS Legal,Achieving for Children (AFC),E10295,Supplies & Services           ,Services                      ,DF11,Counsel's Fees                          ,"1,250.00",24/05/2016,R,REDACTED
266,Central Services,SupS Legal,Achieving for Children (AFC),E10295,Supplies & Services           ,Services                      ,DF11,Counsel's Fees                          ,"1,890.00",03/06/2016,R,REDACTED
267,Central Services,SupS Legal,Achieving for Children (AFC),E10295,Supplies & Services           ,Services                      ,DF14,Doctors and Other Fees                  ,549.90,17/05/2016,R,BIBBY FACTORS YORKSHIRE LTD   
268,Central Services,SupS Legal,Achieving for Children (AFC),E10295,Supplies & Services           ,Services                      ,DF14,Doctors and Other Fees                  ,"1,909.90",25/05/2016,R,IND SOCIALCARE INVESTIGATIONS 
269,Central Services,SupS Legal,Achieving for Children (AFC),E10295,Supplies & Services           ,Services                      ,DF14,Doctors and Other Fees                  ,"2,340.00",20/04/2016,R,PAI                           
270,Central Services,SupS Legal,Achieving for Children (AFC),E10295,Supplies & Services           ,Services                      ,DF14,Doctors and Other Fees                  ,"3,375.00",06/06/2016,R,REDACTED
271,Central Services,SupS IT,Social Care Info System (SCI)           ,E14357,Employees                     ,Direct Employee Expenses      ,AA17,Agency Staff & Casual Paymts            ,"1,050.00",05/06/2016,R,HAMPTON'S RESOURCING          
272,Central Services,SupS IT,Social Care Info System (SCI)           ,E14357,Employees                     ,Direct Employee Expenses      ,AA17,Agency Staff & Casual Paymts            ,"1,380.00",01/06/2016,R,REDACTED
273,Central Services,SupS IT,Social Care Info System (SCI)           ,E14357,Employees                     ,Direct Employee Expenses      ,AA17,Agency Staff & Casual Paymts            ,"1,403.52",22/05/2016,R,HAMPTON'S RESOURCING          
274,Central Services,SupS IT,Social Care Info System (SCI)           ,E14357,Employees                     ,Direct Employee Expenses      ,AA17,Agency Staff & Casual Paymts            ,"1,403.52",15/05/2016,R,HAMPTON'S RESOURCING          
275,Central Services,SupS IT,Social Care Info System (SCI)           ,E14357,Employees                     ,Direct Employee Expenses      ,AA17,Agency Staff & Casual Paymts            ,"1,575.00",12/06/2016,R,HAMPTON'S RESOURCING          
276,Central Services,SupS IT,Social Care Info System (SCI)           ,E14357,Employees                     ,Direct Employee Expenses      ,AA17,Agency Staff & Casual Paymts            ,"2,000.00",06/06/2016,R,REDACTED
277,Central Services,SupS IT,Social Care Info System (SCI)           ,E14357,Employees                     ,Direct Employee Expenses      ,AA17,Agency Staff & Casual Paymts            ,"2,500.00",17/05/2016,R,REDACTED
278,Central Services,SupS IT,Social Care Info System (SCI)           ,E14357,Employees                     ,Direct Employee Expenses      ,AA17,Agency Staff & Casual Paymts            ,"2,500.00",14/06/2016,R,REDACTED
279,Central Services,SupS IT,Social Care Info System (SCI)           ,E14357,Employees                     ,Direct Employee Expenses      ,AA17,Agency Staff & Casual Paymts            ,"2,775.36",29/05/2016,R,HAMPTON'S RESOURCING          
280,Central Services,SupS IT,Corp Saving-Print Strategy,E14359,Supplies & Services           ,Equip Furniture/Materials     ,DA77,Photocopier Rental                      ,"7,255.93",31/05/2016,R,ALTODIGITAL NETWORKS LTD      
281,Central Services,SupS IT,Corp Saving-Print Strategy,E14359,Supplies & Services           ,Equip Furniture/Materials     ,DA77,Photocopier Rental                      ,"50,977.60",31/05/2016,R,ALTODIGITAL NETWORKS LTD      
282,Central Services,SupS IT,Corp Saving-Print Strategy,E14359,Supplies & Services           ,Prntng Stnry Gen Off Exp      ,DE06,MULTI-FUNCTIONAL PRINTERS               ,"41,545.31",31/05/2016,R,ALTODIGITAL NETWORKS LTD      
283,Central Services,SupS IT,BI IT Projects,E14360,Employees                     ,Direct Employee Expenses      ,AA17,Agency Staff & Casual Paymts            ,"2,800.00",15/06/2016,R,REDACTED
284,Central Services,SupS IT,BI IT Projects,E14360,Employees                     ,Direct Employee Expenses      ,AA17,Agency Staff & Casual Paymts            ,"5,040.00",08/06/2016,R,REDACTED
285,Central Services,SupS IT,BI IT Projects,E14360,Supplies & Services           ,Comms and Computing           ,DG65,Application Licences                    ,"23,205.00",07/06/2016,R,OLM SYSTEMS                   
286,CS -Oth Operating Inc & Expend,SupS Codes No Longer Used,No longer used,E14362,Transfer Payments             ,Housing Benefits              ,FA50,Burial and Cremation                    ,"1,272.00",13/06/2016,R,F.W. PAINE                    
287,CS -Oth Operating Inc & Expend,SupS Codes No Longer Used,No longer used,E14362,Transfer Payments             ,Housing Benefits              ,FA50,Burial and Cremation                    ,"1,272.00",01/06/2016,R,F.W. PAINE                    
288,CS -Oth Operating Inc & Expend,SupS Codes No Longer Used,No longer used,E14362,Transfer Payments             ,Housing Benefits              ,FA50,Burial and Cremation                    ,"1,272.00",14/06/2016,R,F.W. PAINE                    
289,Central Services,SupS IT,AD I&T,E14363,Employees                     ,Direct Employee Expenses      ,AA17,Agency Staff & Casual Paymts            ,"5,265.00",31/05/2016,R,REDACTED
290,Central Services,SupS IT,Systems & Projects,E14366,Supplies & Services           ,Services                      ,DF03,Consultants                             ,"6,412.00",31/05/2016,R,MARCUS DONALD PEOPLE LTD      
291,Central Services,SupS IT,Systems & Projects,E14366,Supplies & Services           ,Services                      ,DF57,Consulting Engineers Fees               ,511.95,22/03/2016,R,CIVICA UK LIMITED             
292,Central Services,SupS IT,Systems & Projects,E14366,Supplies & Services           ,Comms and Computing           ,DG02,Software Licences                       ,"1,750.00",08/06/2016,R,ME LEARNING                   
293,Central Services,SupS IT,Systems & Projects,E14366,Supplies & Services           ,Comms and Computing           ,DG02,Software Licences                       ,"2,000.00",08/06/2016,R,FIBONACCI LTD                 
294,Central Services,SupS IT,Systems & Projects,E14366,Supplies & Services           ,Comms and Computing           ,DG61,Computer Servs Special                  ,"3,351.00",31/05/2016,R,PITNEY BOWES SOFTWARE EUROPE  
295,Central Services,SupS IT,Systems & Projects,E14366,Supplies & Services           ,Comms and Computing           ,DG61,Computer Servs Special                  ,"142,992.80",27/05/2016,R,PITNEY BOWES SOFTWARE EUROPE  
296,Central Services,SupS IT,Systems & Projects,E14366,Supplies & Services           ,Grants and Subscriptions      ,DJ04,Subscriptions                           ,"1,450.00",06/04/2016,R,IDEA                          
297,Central Services,SupS IT,Operations & Telecomms,E14367,Supplies & Services           ,Comms and Computing           ,DG54,Corporate Telephones                    ,"3,957.62",05/06/2016,R,COLT TELECOMMUNICATIONS       
298,Central Services,SupS IT,Operations & Telecomms,E14367,Supplies & Services           ,Comms and Computing           ,DG54,Corporate Telephones                    ,"10,478.98",17/06/2016,R,ORANGE P'MENT PRO'SING AIRTIME
299,Central Services,SupS IT,Operations & Telecomms,E14367,Supplies & Services           ,Comms and Computing           ,DG54,Corporate Telephones                    ,"42,378.42",27/05/2016,R,BRITISH TELECOMMUNICATIONS PLC
300,Central Services,SupS IT,Distributed Services,E14368,Supplies & Services           ,Comms and Computing           ,DG63,Software Licences - Data                ,650.00,12/08/2015,R,TRUECOMMERCE (OLDHAM) LIMITED 
301,Central Services,SupS IT,Distributed Services,E14368,Supplies & Services           ,Comms and Computing           ,DG63,Software Licences - Data                ,"5,000.00",27/05/2016,R,QUOVADIS ONLINE SECURITY LTD  
302,Central Services,SupS IT,Corp Saving-IT Consolidation,E14370,Premises Related Expenditure  ,RepairsAlterations&MtceOfBldgs,BA01,DDM - General Building                  ,"1,980.00",06/06/2016,R,LA BELLE ROOFING CO LTD       
303,Central Services,SupS IT,Corp Saving-IT Consolidation,E14370,Premises Related Expenditure  ,RepairsAlterations&MtceOfBldgs,BA01,DDM - General Building                  ,"3,340.00",22/06/2016,R,NATIONCARE WINDOWS LTD        
304,Central Services,SupS IT,Corp Saving-IT Consolidation,E14370,Premises Related Expenditure  ,RepairsAlterations&MtceOfBldgs,BA03,DDM - Mechanical                        ,"1,164.34",31/05/2016,R,BILFINGER EUROPA FACILITY     
305,Central Services,SupS IT,Corp Saving-IT Consolidation,E14370,Premises Related Expenditure  ,RepairsAlterations&MtceOfBldgs,BA03,DDM - Mechanical                        ,"16,274.00",25/05/2016,R,BILFINGER EUROPA FACILITY     
306,Central Services,SupS IT,No longer used,E14371,Employees                     ,Direct Employee Expenses      ,AA17,Agency Staff & Casual Paymts            ,"2,640.00",08/06/2016,R,HAYS SPECIALIST RECRUITM'T LTD
307,Central Services,SupS IT,No longer used,E14371,Employees                     ,Direct Employee Expenses      ,AA17,Agency Staff & Casual Paymts            ,"3,300.00",15/06/2016,R,HAYS SPECIALIST RECRUITM'T LTD
308,Central Services,SupS IT,No longer used,E14371,Employees                     ,Direct Employee Expenses      ,AA17,Agency Staff & Casual Paymts            ,"3,330.00",01/06/2016,R,HAYS SPECIALIST RECRUITM'T LTD
309,Central Services,SupS IT,No longer used,E14371,Employees                     ,Direct Employee Expenses      ,AA17,Agency Staff & Casual Paymts            ,"12,000.00",20/06/2016,R,MILESTONES COMMUNICATIONS LTD 
310,Central Services,SupS IT,CHAS Projects,E14378,Supplies & Services           ,Comms and Computing           ,DG50,Other IT Expenditure                    ,"23,900.00",27/05/2016,R,GENERAL DYNAMICS IT LIMITED   
311,Cultural Env Reg&Plan Services,Mgt & Support (Env),Senior Mgt. - E.S.C.,G00100,Supplies & Services           ,Services                      ,DF03,Consultants                             ,"1,350.00",01/06/2016,R,SARAH TANBURN ASSOCIATES LTD  
312,Highways & Transport Services,Repair prin/oth rds not split,Walk Sheets,G00127,Third Party Payments          ,Private Contractors           ,EH56,Carriageway/Fway Maint                  ,"2,821.92",27/06/2016,R,FM CONWAY LTD                 
313,Highways & Transport Services,Saf mtc prin/oth rds not split,Traffic Signs.,G00160,Premises Related Expenditure  ,Energy Costs                  ,BB02,Electricity                             ,"(49,570.56)",03/05/2016,R,SCOTTISH POWER                
314,Highways & Transport Services,Saf mtc prin/oth rds not split,Traffic Signs.,G00160,Third Party Payments          ,Private Contractors           ,EH01,Miscellaneous Agency Services           ,629.96,07/06/2016,R,KIER INTEGRATED SERVICES LTD  
315,Highways & Transport Services,Street Lighting.,Street Lighting .,G00260,Third Party Payments          ,Private Contractors           ,EH01,Miscellaneous Agency Services           ,526.00,31/05/2016,R,UK POWER NETWORKS (OPERATIONS)
316,Highways & Transport Services,Street Lighting.,Street Lighting .,G00260,Third Party Payments          ,Private Contractors           ,EH01,Miscellaneous Agency Services           ,642.00,31/05/2016,R,UK POWER NETWORKS (OPERATIONS)
317,Highways & Transport Services,Street Lighting.,Street Lighting .,G00260,Third Party Payments          ,Private Contractors           ,EH01,Miscellaneous Agency Services           ,866.67,07/06/2016,R,KIER INTEGRATED SERVICES LTD  
318,Highways & Transport Services,Off-street parking,Car Parks (Unloc),G00291,Premises Related Expenditure  ,RepairsAlterations&MtceOfBldgs,BA06,REPAIRS & MAINTENANCE GENERAL           ,739.01,07/06/2016,R,KIER INTEGRATED SERVICES LTD  
319,Highways & Transport Services,Off-street parking,Car Parks (Unloc),G00291,Third Party Payments          ,Private Contractors           ,EH02,Miscellaneous Hired Services            ,"3,666.00",31/05/2016,R,COBALT TELEPHONE TECHNOLOGIES 
320,Highways & Transport Services,Off-street parking,Coombe Lane,G00292,Premises Related Expenditure  ,Rents                         ,BC01,Miscellaneous Rents                     ,"11,475.00",07/06/2016,R,CAPITA PROP'TY & INFRASTRUCT'R
321,Highways & Transport Services,Off-street parking,York Close CP,G00298,Premises Related Expenditure  ,Rents                         ,BC01,Miscellaneous Rents                     ,"30,460.50",25/05/2016,R,TRANSPORT TRADING LTD PROP A/C
322,Highways & Transport Services,Off-street parking,St. Georges Car Park EAST,G00300,Premises Related Expenditure  ,Rents                         ,BC01,Miscellaneous Rents                     ,896.65,25/05/2016,R,LLOYDS BANK SF NOMINEES LTD   
323,Highways & Transport Services,Off-street parking,St. Georges Car Park WEST M/S,G00302,Premises Related Expenditure  ,Rents                         ,BC01,Miscellaneous Rents                     ,"3,552.07",03/06/2016,R,REDACTED
324,Highways & Transport Services,Off-street parking,"St. Mks Rd, Multi Sty",G00308,Premises Related Expenditure  ,Rents                         ,BC01,Miscellaneous Rents                     ,"3,680.40",27/05/2016,R,KEMSLEY LLP                   
325,Highways & Transport Services,Parking Enforcement not split,Operational Running Costs,G00331,Supplies & Services           ,Equip Furniture/Materials     ,DA09,Equip-Purchases                         ,605.75,02/06/2016,R,PARKEON LTD                   
326,Highways & Transport Services,Parking Enforcement not split,Operational Running Costs,G00331,Supplies & Services           ,Equip Furniture/Materials     ,DA09,Equip-Purchases                         ,"1,573.00",20/06/2016,R,R.J.H.WELDING                 
327,Highways & Transport Services,Parking Enforcement not split,Operational Running Costs,G00331,Supplies & Services           ,Equip Furniture/Materials     ,DA09,Equip-Purchases                         ,"2,557.00",06/06/2016,R,PARKEON LTD                   
328,Highways & Transport Services,Parking Enforcement not split,Operational Running Costs,G00331,Supplies & Services           ,Equip Furniture/Materials     ,DA09,Equip-Purchases                         ,"3,890.00",23/06/2016,R,PARKEON LTD                   
329,Highways & Transport Services,Parking Enforcement not split,Operational Running Costs,G00331,Supplies & Services           ,Services                      ,DF95,Services from Provider                  ,"3,323.50",26/05/2016,R,REDACTED
330,Highways & Transport Services,Parking Enforcement not split,Operational Running Costs,G00331,Supplies & Services           ,Comms and Computing           ,DG61,Computer Servs Special                  ,"1,650.00",27/05/2016,R,SIEMENS TRAFFIC SOLUTIONS     
331,Highways & Transport Services,Parking Enforcement not split,Operational Running Costs,G00331,Supplies & Services           ,Comms and Computing           ,DG61,Computer Servs Special                  ,"4,342.00",31/05/2016,R,IMPERIAL CIVIL ENFORC.SOLUT.  
332,Highways & Transport Services,Parking Enforcement not split,Operational Running Costs,G00331,Third Party Payments          ,Other Agencies                ,EJ58,Parking Cttee for London                ,"16,702.73",25/05/2016,R,LONDON COUNCILS               
333,Highways & Transport Services,Repair prin/oth rds not split,Flood Risk Management,G00350,Third Party Payments          ,Private Contractors           ,EH10,Contract Payments                       ,"1,980.00",16/06/2016,R,MCCLOY CONSULTING LTD         
334,Highways & Transport Services,Hwys/Rds (struct) not split,Footpath Crossings.,G00390,Third Party Payments          ,Private Contractors           ,EH56,Carriageway/Fway Maint                  ,650.00,31/05/2016,R,UK POWER NETWORKS (OPERATIONS)
335,Highways & Transport Services,Hwys/Rds (struct) not split,Footpath Crossings.,G00390,Third Party Payments          ,Private Contractors           ,EH56,Carriageway/Fway Maint                  ,694.00,18/05/2016,R,UK POWER NETWORKS (OPERATIONS)
336,Highways & Transport Services,Hwys/Rds (struct) not split,Footpath Crossings.,G00390,Third Party Payments          ,Private Contractors           ,EH56,Carriageway/Fway Maint                  ,"1,051.77",27/06/2016,R,FM CONWAY LTD                 
337,Highways & Transport Services,Hwys/Rds (struct) not split,Footpath Crossings.,G00390,Third Party Payments          ,Private Contractors           ,EH56,Carriageway/Fway Maint                  ,"1,298.00",31/05/2016,R,UK POWER NETWORKS (OPERATIONS)
338,Highways & Transport Services,Hwys/Rds (struct) not split,Footpath Crossings.,G00390,Third Party Payments          ,Private Contractors           ,EH56,Carriageway/Fway Maint                  ,"3,683.83",27/06/2016,R,FM CONWAY LTD                 
339,Highways & Transport Services,Hwys/Rds (struct) not split,Footpath Crossings.,G00390,Third Party Payments          ,Private Contractors           ,EH56,Carriageway/Fway Maint                  ,"9,316.79",27/06/2016,R,FM CONWAY LTD                 
340,Cultural Env Reg&Plan Services,Street Clean - Not highways,Street Cleansing (Inc. Gully),G00492,Supplies & Services           ,Equip Furniture/Materials     ,DA09,Equip-Purchases                         ,589.32,14/06/2016,R,GREENHAM                      
341,Cultural Env Reg&Plan Services,Street Clean - Not highways,Street Cleansing (Inc. Gully),G00492,Supplies & Services           ,Equip Furniture/Materials     ,DA09,Equip-Purchases                         ,595.60,15/06/2016,R,GREENHAM TRADING LTD          
342,Cultural Env Reg&Plan Services,Street Clean - Not highways,Street Cleansing (Inc. Gully),G00492,Supplies & Services           ,Equip Furniture/Materials     ,DA09,Equip-Purchases                         ,627.42,09/06/2016,R,GREENHAM                      
343,Cultural Env Reg&Plan Services,Street Clean - Not highways,Street Cleansing (Inc. Gully),G00492,Supplies & Services           ,Equip Furniture/Materials     ,DA09,Equip-Purchases                         ,639.10,03/06/2016,R,GREENHAM TRADING LTD          
344,Cultural Env Reg&Plan Services,Street Clean - Not highways,Street Cleansing (Inc. Gully),G00492,Supplies & Services           ,Equip Furniture/Materials     ,DA31,Waste Sacks & Bags                      ,"4,264.00",31/05/2016,R,IMPERIAL POLYTHENE PRODUCTS LT
345,Cultural Env Reg&Plan Services,Waste Disposal (not separated),Waste Disposal .,G00550,Third Party Payments          ,Private Contractors           ,EH04,C1 Viridor SLWP Landfill Contract       ,"1,859.80",25/05/2016,R,KINGSTON CORPORATION          
346,Cultural Env Reg&Plan Services,Waste Disposal (not separated),Waste Disposal .,G00550,Third Party Payments          ,Private Contractors           ,EH04,C1 Viridor SLWP Landfill Contract       ,"4,281.68",25/05/2016,R,KINGSTON CORPORATION          
347,Cultural Env Reg&Plan Services,Waste Disposal (not separated),Waste Disposal .,G00550,Third Party Payments          ,Private Contractors           ,EH04,C1 Viridor SLWP Landfill Contract       ,"5,525.00",25/05/2016,R,KINGSTON CORPORATION          
348,Cultural Env Reg&Plan Services,Waste Disposal (not separated),Waste Disposal .,G00550,Third Party Payments          ,Private Contractors           ,EH04,C1 Viridor SLWP Landfill Contract       ,"145,888.32",25/05/2016,R,KINGSTON CORPORATION          
349,Cultural Env Reg&Plan Services,Waste Disposal (not separated),Waste Disposal .,G00550,Third Party Payments          ,Private Contractors           ,EH04,C1 Viridor SLWP Landfill Contract       ,"198,476.22",25/05/2016,R,KINGSTON CORPORATION          
350,Cultural Env Reg&Plan Services,Civic Amenity Sites,Garth Road Site,G00580,Premises Related Expenditure  ,RepairsAlterations&MtceOfBldgs,BA70,Maintenance of Weighbridge              ,995.00,31/05/2016,R,PRECIA MOLEN UK LTD           
351,Cultural Env Reg&Plan Services,Civic Amenity Sites,Garth Road Site,G00580,Supplies & Services           ,Equip Furniture/Materials     ,DA01,Equipment - R & M                       ,524.00,24/05/2016,R,MIST-AIR                      
352,Cultural Env Reg&Plan Services,Civic Amenity Sites,Garth Road Site,G00580,Third Party Payments          ,Private Contractors           ,EH04,C1 Viridor SLWP Landfill Contract       ,"18,970.20",25/05/2016,R,KINGSTON CORPORATION          
353,Cultural Env Reg&Plan Services,Civic Amenity Sites,Garth Road Site,G00580,Third Party Payments          ,Private Contractors           ,EH11,SLWP PROCUREMENT COSTS                  ,"1,875.00",06/06/2016,R,KINGSTON CORPORATION          
354,Cultural Env Reg&Plan Services,Civic Amenity Sites,Garth Road Site,G00580,Third Party Payments          ,Private Contractors           ,EH18,SLWP C3 Food Waste Gate Fees            ,"7,605.95",25/05/2016,R,KINGSTON CORPORATION          
355,Cultural Env Reg&Plan Services,Civic Amenity Sites,Garth Road Site,G00580,Third Party Payments          ,Private Contractors           ,EH61,Green Waste Disposal                    ,633.16,25/05/2016,R,KINGSTON CORPORATION          
356,Cultural Env Reg&Plan Services,Civic Amenity Sites,Garth Road Site,G00580,Third Party Payments          ,Private Contractors           ,EH61,Green Waste Disposal                    ,"4,299.15",25/05/2016,R,KINGSTON CORPORATION          
357,Cultural Env Reg&Plan Services,Public Health,Dog Control.,G00620,Third Party Payments          ,Private Contractors           ,EH02,Miscellaneous Hired Services            ,"2,372.00",17/06/2016,R,NOAH'S ARK ENVIRONMENTAL SERV.
358,Cultural Env Reg&Plan Services,Recycling (Collection),Recycling Activities,G00640,Supplies & Services           ,Equip Furniture/Materials     ,DA32,Wheeled Bins                            ,"1,700.00",02/06/2016,R,PLASTIC OMNIUM URBAN SYSTEMS  
359,Cultural Env Reg&Plan Services,Recycling (Collection),Recycling Activities,G00640,Supplies & Services           ,Equip Furniture/Materials     ,DA32,Wheeled Bins                            ,"6,368.00",02/06/2016,R,PLASTIC OMNIUM URBAN SYSTEMS  
360,Cultural Env Reg&Plan Services,Recycling (Collection),Recycling Activities,G00640,Third Party Payments          ,Private Contractors           ,EH03,C3 DRY RECYCLING GATE FEE               ,729.00,06/06/2016,R,KINGSTON CORPORATION          
361,Cultural Env Reg&Plan Services,Recycling (Collection),Recycling Activities,G00640,Third Party Payments          ,Private Contractors           ,EH03,C3 DRY RECYCLING GATE FEE               ,"2,259.62",06/06/2016,R,KINGSTON CORPORATION          
362,Cultural Env Reg&Plan Services,Recycling (Collection),Recycling Activities,G00640,Third Party Payments          ,Private Contractors           ,EH03,C3 DRY RECYCLING GATE FEE               ,"2,623.04",14/06/2016,R,KINGSTON CORPORATION          
363,Cultural Env Reg&Plan Services,Recycling (Collection),Recycling Activities,G00640,Third Party Payments          ,Private Contractors           ,EH03,C3 DRY RECYCLING GATE FEE               ,"8,235.40",25/05/2016,R,KINGSTON CORPORATION          
364,Cultural Env Reg&Plan Services,Recycling (Collection),Recycling Activities,G00640,Third Party Payments          ,Private Contractors           ,EH03,C3 DRY RECYCLING GATE FEE               ,"30,764.59",25/05/2016,R,KINGSTON CORPORATION          
365,Cultural Env Reg&Plan Services,Recycling (Collection),Recycling Activities,G00640,Third Party Payments          ,Private Contractors           ,EH03,C3 DRY RECYCLING GATE FEE               ,"34,480.96",25/05/2016,R,KINGSTON CORPORATION          
366,Cultural Env Reg&Plan Services,Recycling (Collection),Recycling Activities,G00640,Third Party Payments          ,Private Contractors           ,EH03,C3 DRY RECYCLING GATE FEE               ,"34,767.88",14/06/2016,R,KINGSTON CORPORATION          
367,Cultural Env Reg&Plan Services,Recycling (Collection),Recycling Activities,G00640,Third Party Payments          ,Private Contractors           ,EH08,SLWP C1 Haulage Dry Recyclable          ,550.00,25/05/2016,R,KINGSTON CORPORATION          
368,Cultural Env Reg&Plan Services,Recycling (Collection),Recycling Activities,G00640,Third Party Payments          ,Private Contractors           ,EH08,SLWP C1 Haulage Dry Recyclable          ,"1,100.00",14/06/2016,R,KINGSTON CORPORATION          
369,Cultural Env Reg&Plan Services,Recycling (Collection),Recycling Activities,G00640,Third Party Payments          ,Private Contractors           ,EH08,SLWP C1 Haulage Dry Recyclable          ,"3,745.04",25/05/2016,R,KINGSTON CORPORATION          
370,Cultural Env Reg&Plan Services,Recycling (Collection),Recycling Activities,G00640,Third Party Payments          ,Private Contractors           ,EH08,SLWP C1 Haulage Dry Recyclable          ,"26,363.97",25/05/2016,R,KINGSTON CORPORATION          
371,Cultural Env Reg&Plan Services,Recycling (Collection),Recycling Activities,G00640,Third Party Payments          ,Private Contractors           ,EH94,Waste Disposal - Alt. Site              ,"5,598.57",25/05/2016,R,KINGSTON CORPORATION          
372,Cultural Env Reg&Plan Services,Recycling (Collection),Recycling Collection,G00645,Supplies & Services           ,Clothing Unfrms Laundry       ,DC02,Clothing & Uniforms                     ,506.60,03/06/2016,R,GREENHAM                      
373,Cultural Env Reg&Plan Services,Recycling (Collection),Recycling Collection,G00645,Supplies & Services           ,Clothing Unfrms Laundry       ,DC02,Clothing & Uniforms                     ,"2,473.40",09/06/2016,R,GREENHAM                      
374,Cultural Env Reg&Plan Services,Recycling (Collection),Garden Waste Service,G00647,Third Party Payments          ,Private Contractors           ,EH61,Green Waste Disposal                    ,724.60,25/05/2016,R,KINGSTON CORPORATION          
375,Cultural Env Reg&Plan Services,Recycling (Collection),Garden Waste Service,G00647,Third Party Payments          ,Private Contractors           ,EH61,Green Waste Disposal                    ,"1,150.69",25/05/2016,R,KINGSTON CORPORATION          
376,Cultural Env Reg&Plan Services,Recycling (Collection),Garden Waste Service,G00647,Third Party Payments          ,Private Contractors           ,EH61,Green Waste Disposal                    ,"1,758.00",25/05/2016,R,KINGSTON CORPORATION          
377,Cultural Env Reg&Plan Services,Recycling (Collection),Garden Waste Service,G00647,Third Party Payments          ,Private Contractors           ,EH61,Green Waste Disposal                    ,"3,859.00",25/05/2016,R,KINGSTON CORPORATION          
378,Cultural Env Reg&Plan Services,Recycling (Collection),Food Waste Service,G00648,Third Party Payments          ,Private Contractors           ,EH19,SLWP C3 FOOD WASTE HAULAGE              ,"2,785.62",25/05/2016,R,KINGSTON CORPORATION          
379,Cultural Env Reg&Plan Services,Recycling (Collection),Food Waste Service,G00648,Third Party Payments          ,Private Contractors           ,EH19,SLWP C3 FOOD WASTE HAULAGE              ,"2,974.20",25/05/2016,R,KINGSTON CORPORATION          
380,Cultural Env Reg&Plan Services,Trade Waste Collection,Commercial Waste,G00663,Supplies & Services           ,Equip Furniture/Materials     ,DA31,Waste Sacks & Bags                      ,759.20,22/06/2016,R,IMPERIAL POLYTHENE PRODUCTS LT
381,Cultural Env Reg&Plan Services,Trade Waste Collection,Commercial Waste,G00663,Supplies & Services           ,Equip Furniture/Materials     ,DA31,Waste Sacks & Bags                      ,900.00,22/06/2016,R,IMPERIAL POLYTHENE PRODUCTS LT
382,Cultural Env Reg&Plan Services,Trade Waste Collection,Commercial Waste,G00663,Third Party Payments          ,Private Contractors           ,EH04,C1 Viridor SLWP Landfill Contract       ,"32,518.72",25/05/2016,R,KINGSTON CORPORATION          
383,Cultural Env Reg&Plan Services,Trade Waste Collection,Commercial Waste,G00663,Third Party Payments          ,Private Contractors           ,EH08,SLWP C1 Haulage Dry Recyclable          ,"1,365.00",25/05/2016,R,KINGSTON CORPORATION          
384,Cultural Env Reg&Plan Services,Trade Waste Collection,Commercial Waste,G00663,Third Party Payments          ,Private Contractors           ,EH08,SLWP C1 Haulage Dry Recyclable          ,"1,569.46",25/05/2016,R,KINGSTON CORPORATION          
385,Cultural Env Reg&Plan Services,Trade Waste Collection,Commercial Waste Collection,G00665,Supplies & Services           ,Equip Furniture/Materials     ,DA32,Wheeled Bins                            ,"1,280.00",02/06/2016,R,PLASTIC OMNIUM URBAN SYSTEMS  
386,Cultural Env Reg&Plan Services,Household Waste Collection,Phase C Procurement                     ,G00667,Third Party Payments          ,Private Contractors           ,EH11,SLWP PROCUREMENT COSTS                  ,"5,898.54",06/06/2016,R,KINGSTON CORPORATION          
387,Cultural Env Reg&Plan Services,Household Waste Collection,Phase C Procurement                     ,G00667,Third Party Payments          ,Private Contractors           ,EH11,SLWP PROCUREMENT COSTS                  ,"9,977.00",25/05/2016,R,KINGSTON CORPORATION          
388,Cultural Env Reg&Plan Services,Housing Standards,Cycling Champions (TfL)                 ,G00737,Supplies & Services           ,Equip Furniture/Materials     ,DA09,Equip-Purchases                         ,"5,000.00",07/06/2016,R,SPECIALIZED CONCEPT KINGSTON  
389,Cultural Env Reg&Plan Services,Mgt & Support (Env),Waste Management,G00900,Supplies & Services           ,Grants and Subscriptions      ,DJ54,Contributions                           ,"35,000.00",08/04/2016,R,SUSTAINABLE MERTON            
390,Central Services,SupS Env and Regen,LBR - Pollution                         ,G01004,Supplies & Services           ,Equip Furniture/Materials     ,DA09,Equip-Purchases                         ,"4,001.40",22/06/2016,R,BRUEL & KJAER                 
391,Central Services,SupS Env and Regen,LBR - Pollution                         ,G01004,Supplies & Services           ,Equip Furniture/Materials     ,DA09,Equip-Purchases                         ,"11,658.00",03/06/2016,R,KINGS COLLEGE LONDON          
392,Central Services,SupS Env and Regen,LBR - Pollution                         ,G01004,Supplies & Services           ,Equip Furniture/Materials     ,DA09,Equip-Purchases                         ,"13,365.00",28/06/2016,R,ENVIRO TECHNOLOGY SERVICES PLC
393,Central Services,Grants - Voluntary Groups,Vestry Hall,G19290,Premises Related Expenditure  ,Water Services                ,BE01,Use of Water (Metered)                  ,518.82,02/06/2016,R,THAMES WATER UTILITIES LTD    
394,CS -Oth Operating Inc & Expend,Extraordinary Items & PY Adj.,326 London Road,G40312,Premises Related Expenditure  ,RepairsAlterations&MtceOfBldgs,BA01,DDM - General Building                  ,925.00,17/06/2016,R,SALTASH ENTERPRISES LTD       
395,Cultural Env Reg&Plan Services,DC Advice Apps & Reg not split,Development Control,H01130,Supplies & Services           ,Services                      ,DF02,Misc Advertising/Publicity              ,528.00,03/06/2016,R,NEWSQUEST MEDIA GROUP LTD     
396,Cultural Env Reg&Plan Services,DC Advice Apps & Reg not split,Development Control,H01130,Supplies & Services           ,Services                      ,DF02,Misc Advertising/Publicity              ,768.00,15/04/2016,R,NEWSQUEST MEDIA GROUP LTD     
397,Cultural Env Reg&Plan Services,DC Advice Apps & Reg not split,Development Control,H01130,Supplies & Services           ,Services                      ,DF11,Counsel's Fees                          ,"2,325.00",24/05/2016,R,MR DOUGLAS EDWARDS Q.C        
398,Cultural Env Reg&Plan Services,DC Advice Apps & Reg not split,Development Control,H01130,Supplies & Services           ,Comms and Computing           ,DG09,Computer Purchases - Misc               ,750.00,31/05/2016,R,NORTHGATE PUBLIC SERV (UK) LTD
399,Cultural Env Reg&Plan Services,DC Advice Apps & Reg not split,Development Control,H01130,Customer and client receipts  ,Fees                          ,RB56,Application Fees X                      ,"1,155.00",24/06/2016,R,"CALEDONIAN PROPERTY VENTURE ""A"
400,Cultural Env Reg&Plan Services,Planning Policy not split,Spatial Policy,H01173,Supplies & Services           ,Services                      ,DF11,Counsel's Fees                          ,"4,000.00",09/05/2016,R,REDACTED
401,Cultural Env Reg&Plan Services,Planning Policy not split,Spatial Policy,H01173,Third Party Payments          ,Private Contractors           ,EH10,Contract Payments                       ,"1,063.94",06/06/2016,R,BBP REGENERATION              
402,Cultural Env Reg&Plan Services,Planning Policy not split,MAYOR'S AIR QUALITY                     ,H01187,Third Party Payments          ,Private Contractors           ,EH10,Contract Payments                       ,"2,066.00",23/06/2016,R,KINGS COLLEGE LONDON          
403,Cultural Env Reg&Plan Services,Economic Dev (Not separated),NHB-Morden Shopping Parades             ,H01190,Supplies & Services           ,Services                      ,DF03,Consultants                             ,975.00,20/05/2016,R,URBAN ENTERPRISE NETWORK      
404,Cultural Env Reg&Plan Services,Economic Dev (Not separated),NHB-Morden Shopping Parades             ,H01190,Supplies & Services           ,Services                      ,DF03,Consultants                             ,975.00,20/05/2016,R,URBAN ENTERPRISE NETWORK      
405,Cultural Env Reg&Plan Services,Economic Dev (Not separated),NHB-Morden Shopping Parades             ,H01190,Supplies & Services           ,Services                      ,DF03,Consultants                             ,975.00,23/06/2016,R,URBAN ENTERPRISE NETWORK      
406,Cultural Env Reg&Plan Services,Economic Dev (Not separated),NHB-Morden Shopping Parades             ,H01190,Supplies & Services           ,Services                      ,DF03,Consultants                             ,975.00,28/06/2016,R,URBAN ENTERPRISE NETWORK      
407,Cultural Env Reg&Plan Services,Economic Dev (Not separated),NHB-Brighter Business                   ,H01191,Third Party Payments          ,Private Contractors           ,EH10,Contract Payments                       ,540.00,07/06/2016,R,BRIAR ASSOCIATES              
408,Cultural Env Reg&Plan Services,Economic Dev (Not separated),NHB-Brighter Business                   ,H01191,Third Party Payments          ,Private Contractors           ,EH10,Contract Payments                       ,720.00,07/06/2016,R,BRIAR ASSOCIATES              
409,Cultural Env Reg&Plan Services,Economic Dev (Not separated),NHB-Brighter Business                   ,H01191,Third Party Payments          ,Private Contractors           ,EH10,Contract Payments                       ,960.00,07/06/2016,R,BRIAR ASSOCIATES              
410,Cultural Env Reg&Plan Services,Economic Dev (Not separated),NHB-Brighter Business                   ,H01191,Third Party Payments          ,Private Contractors           ,EH10,Contract Payments                       ,960.00,07/06/2016,R,BRIAR ASSOCIATES              
411,Cultural Env Reg&Plan Services,Economic Dev (Not separated),NHB-Brighter Business                   ,H01191,Third Party Payments          ,Private Contractors           ,EH10,Contract Payments                       ,960.00,07/06/2016,R,BRIAR ASSOCIATES              
412,CS -Oth Operating Inc & Expend,Extraordinary Items & PY Adj.,MILES RD GENERATOR,H01203,Premises Related Expenditure  ,Rents                         ,BC01,Miscellaneous Rents                     ,"8,000.00",25/05/2016,R,W&R BUXTON LTD PENSION FUND   
413,Cultural Env Reg&Plan Services,Economic Dev (Not separated),Capt Ambition-Suburban Opprt Z,H01231,Supplies & Services           ,Equip Furniture/Materials     ,DA09,Equip-Purchases                         ,"1,272.00",10/06/2016,R,RED MOON CONCEPTS LTD         
414,Cultural Env Reg&Plan Services,Economic Dev (Not separated),Capt Ambition-Suburban Opprt Z,H01231,Supplies & Services           ,Grants and Subscriptions      ,DJ54,Contributions                           ,"7,655.00",23/05/2016,R,EURO SIGNS & GRAPHICS LTD     
415,CS -Oth Operating Inc & Expend,T/A Vehicle Maintenance etc,Transport-Contract Hire,J01374,Employees                     ,Direct Employee Expenses      ,AA17,Agency Staff & Casual Paymts            ,"9,396.00",03/06/2016,R,REDACTED
416,CS -Oth Operating Inc & Expend,T/A Vehicle Maintenance etc,Transport-Contract Hire,J01374,Transport Related Expenditure ,Direct Transport Costs        ,CA01,Petrol Derv & Oil                       ,"1,515.00",16/06/2016,R,FUELTEK                       
417,CS -Oth Operating Inc & Expend,T/A Vehicle Maintenance etc,Transport-Contract Hire,J01374,Transport Related Expenditure ,Direct Transport Costs        ,CA01,Petrol Derv & Oil                       ,"30,275.00",31/05/2016,R,EMO OILS LTD                  
418,CS -Oth Operating Inc & Expend,T/A Vehicle Maintenance etc,Transport-Contract Hire,J01374,Transport Related Expenditure ,Direct Transport Costs        ,CA01,Petrol Derv & Oil                       ,"30,362.50",20/06/2016,R,EMO OILS LTD                  
419,CS -Oth Operating Inc & Expend,T/A Vehicle Maintenance etc,Transport-Contract Hire,J01374,Transport Related Expenditure ,Direct Transport Costs        ,CA52,Reps Vehicles Ins Claims                ,500.00,09/06/2016,R,FLEETSPEED COACHWORKS LTD.    
420,CS -Oth Operating Inc & Expend,T/A Vehicle Maintenance etc,Transport-Contract Hire,J01374,Transport Related Expenditure ,Contract Hire and Op Leasing  ,CC53,Plant Hire for MRCS                     ,745.00,13/06/2016,R,GULLIVER'S TRUCK HIRE LTD.    
421,CS -Oth Operating Inc & Expend,T/A Vehicle Maintenance etc,Transport-Contract Hire,J01374,Transport Related Expenditure ,Contract Hire and Op Leasing  ,CC53,Plant Hire for MRCS                     ,745.00,20/06/2016,R,GULLIVER'S TRUCK HIRE LTD.    
422,CS -Oth Operating Inc & Expend,T/A Vehicle Maintenance etc,Transport-Contract Hire,J01374,Transport Related Expenditure ,Contract Hire and Op Leasing  ,CC53,Plant Hire for MRCS                     ,"3,168.00",31/05/2016,R,RIVERSIDE TRUCK RENTAL LTD    
423,CS -Oth Operating Inc & Expend,T/A Vehicle Maintenance etc,Transport-Contract Hire,J01374,Transport Related Expenditure ,Contract Hire and Op Leasing  ,CC53,Plant Hire for MRCS                     ,"3,344.00",31/05/2016,R,RIVERSIDE TRUCK RENTAL LTD    
424,CS -Oth Operating Inc & Expend,T/A Vehicle Maintenance etc,Transport-Contract Hire,J01374,Transport Related Expenditure ,Contract Hire and Op Leasing  ,CC53,Plant Hire for MRCS                     ,726.00,31/05/2016,R,REDACTED
425,CS -Oth Operating Inc & Expend,T/A Vehicle Maintenance etc,Transport-Contract Hire,J01374,Transport Related Expenditure ,Contract Hire and Op Leasing  ,CC56,Plant Hire for Leisure                  ,585.00,31/05/2016,R,REDACTED
426,CS -Oth Operating Inc & Expend,T/A Vehicle Maintenance etc,Transport-Contract Hire,J01374,Transport Related Expenditure ,Contract Hire and Op Leasing  ,CC59,HIRING TRANSPORT OPERATIONS             ,"1,452.00",31/05/2016,R,ENTERPRISE RENT-A-CAR UK LTD  
427,CS -Oth Operating Inc & Expend,T/A Vehicle Maintenance etc,Transport-Contract Hire,J01374,Transport Related Expenditure ,Contract Hire and Op Leasing  ,CC59,HIRING TRANSPORT OPERATIONS             ,"1,452.00",31/05/2016,R,ENTERPRISE RENT-A-CAR UK LTD  
428,CS -Oth Operating Inc & Expend,T/A Vehicle Maintenance etc,Transport-Contract Hire,J01374,Transport Related Expenditure ,Contract Hire and Op Leasing  ,CC59,HIRING TRANSPORT OPERATIONS             ,"1,452.00",31/05/2016,R,ENTERPRISE RENT-A-CAR UK LTD  
429,CS -Oth Operating Inc & Expend,T/A Vehicle Maintenance etc,Transport-Contract Hire,J01374,Transport Related Expenditure ,Contract Hire and Op Leasing  ,CC59,HIRING TRANSPORT OPERATIONS             ,559.58,31/05/2016,R,REDACTED
430,CS -Oth Operating Inc & Expend,T/A Vehicle Maintenance etc,Transport-Contract Hire,J01374,Transport Related Expenditure ,Contract Hire and Op Leasing  ,CC59,HIRING TRANSPORT OPERATIONS             ,559.58,31/05/2016,R,REDACTED
431,CS -Oth Operating Inc & Expend,T/A Vehicle Maintenance etc,Transport-Contract Hire,J01374,Transport Related Expenditure ,Contract Hire and Op Leasing  ,CC59,HIRING TRANSPORT OPERATIONS             ,559.58,31/05/2016,R,REDACTED
432,CS -Oth Operating Inc & Expend,T/A Vehicle Maintenance etc,Transport-Contract Hire,J01374,Transport Related Expenditure ,Contract Hire and Op Leasing  ,CC59,HIRING TRANSPORT OPERATIONS             ,559.58,31/05/2016,R,REDACTED
433,CS -Oth Operating Inc & Expend,T/A Vehicle Maintenance etc,Transport-Contract Hire,J01374,Transport Related Expenditure ,Contract Hire and Op Leasing  ,CC64,CSF - SEN CABS (RK02)                   ,"(2,128.00)",30/06/2016,R,PREMIER MINICAB SER.(SURBITON)
434,CS -Oth Operating Inc & Expend,T/A Vehicle Maintenance etc,Transport-Contract Hire,J01374,Transport Related Expenditure ,Contract Hire and Op Leasing  ,CC64,CSF - SEN CABS (RK02)                   ,956.80,30/06/2016,R,PREMIER MINICAB SER.(SURBITON)
435,CS -Oth Operating Inc & Expend,T/A Vehicle Maintenance etc,Transport-Contract Hire,J01374,Transport Related Expenditure ,Contract Hire and Op Leasing  ,CC64,CSF - SEN CABS (RK02)                   ,"1,244.80",30/06/2016,R,PREMIER MINICAB SER.(SURBITON)
436,CS -Oth Operating Inc & Expend,T/A Vehicle Maintenance etc,Transport-Contract Hire,J01374,Transport Related Expenditure ,Contract Hire and Op Leasing  ,CC64,CSF - SEN CABS (RK02)                   ,"1,425.00",30/06/2016,R,PREMIER MINICAB SER.(SURBITON)
437,CS -Oth Operating Inc & Expend,T/A Vehicle Maintenance etc,Transport-Contract Hire,J01374,Transport Related Expenditure ,Contract Hire and Op Leasing  ,CC64,CSF - SEN CABS (RK02)                   ,"1,466.00",30/06/2016,R,PREMIER MINICAB SER.(SURBITON)
438,CS -Oth Operating Inc & Expend,T/A Vehicle Maintenance etc,Transport-Contract Hire,J01374,Transport Related Expenditure ,Contract Hire and Op Leasing  ,CC64,CSF - SEN CABS (RK02)                   ,"1,540.00",30/06/2016,R,BARCLAYS ASSET & SALES FINANCE
439,CS -Oth Operating Inc & Expend,T/A Vehicle Maintenance etc,Transport-Contract Hire,J01374,Transport Related Expenditure ,Contract Hire and Op Leasing  ,CC64,CSF - SEN CABS (RK02)                   ,"1,666.00",30/06/2016,R,PREMIER MINICAB SER.(SURBITON)
440,CS -Oth Operating Inc & Expend,T/A Vehicle Maintenance etc,Transport-Contract Hire,J01374,Transport Related Expenditure ,Contract Hire and Op Leasing  ,CC64,CSF - SEN CABS (RK02)                   ,"1,728.00",30/06/2016,R,BARCLAYS ASSET & SALES FINANCE
441,CS -Oth Operating Inc & Expend,T/A Vehicle Maintenance etc,Transport-Contract Hire,J01374,Transport Related Expenditure ,Contract Hire and Op Leasing  ,CC64,CSF - SEN CABS (RK02)                   ,"1,728.00",30/06/2016,R,BARCLAYS ASSET & SALES FINANCE
442,CS -Oth Operating Inc & Expend,T/A Vehicle Maintenance etc,Transport-Contract Hire,J01374,Transport Related Expenditure ,Contract Hire and Op Leasing  ,CC64,CSF - SEN CABS (RK02)                   ,"1,824.00",30/06/2016,R,BARCLAYS ASSET & SALES FINANCE
443,CS -Oth Operating Inc & Expend,T/A Vehicle Maintenance etc,Transport-Contract Hire,J01374,Transport Related Expenditure ,Contract Hire and Op Leasing  ,CC64,CSF - SEN CABS (RK02)                   ,"2,007.00",27/05/2016,R,SILVERBURN FINANCE (UK) LTD   
444,CS -Oth Operating Inc & Expend,T/A Vehicle Maintenance etc,Transport-Contract Hire,J01374,Transport Related Expenditure ,Contract Hire and Op Leasing  ,CC64,CSF - SEN CABS (RK02)                   ,"2,090.00",30/06/2016,R,PREMIER MINICAB SER.(SURBITON)
445,CS -Oth Operating Inc & Expend,T/A Vehicle Maintenance etc,Transport-Contract Hire,J01374,Transport Related Expenditure ,Contract Hire and Op Leasing  ,CC64,CSF - SEN CABS (RK02)                   ,"2,128.00",30/06/2016,R,PREMIER MINICAB SER.(SURBITON)
446,CS -Oth Operating Inc & Expend,T/A Vehicle Maintenance etc,Transport-Contract Hire,J01374,Transport Related Expenditure ,Contract Hire and Op Leasing  ,CC64,CSF - SEN CABS (RK02)                   ,"2,128.00",30/06/2016,R,PREMIER MINICAB SER.(SURBITON)
447,CS -Oth Operating Inc & Expend,T/A Vehicle Maintenance etc,Transport-Contract Hire,J01374,Transport Related Expenditure ,Contract Hire and Op Leasing  ,CC64,CSF - SEN CABS (RK02)                   ,"2,197.00",30/06/2016,R,PREMIER MINICAB SER.(SURBITON)
448,CS -Oth Operating Inc & Expend,T/A Vehicle Maintenance etc,Transport-Contract Hire,J01374,Transport Related Expenditure ,Contract Hire and Op Leasing  ,CC64,CSF - SEN CABS (RK02)                   ,"2,470.00",30/06/2016,R,BARCLAYS ASSET & SALES FINANCE
449,CS -Oth Operating Inc & Expend,T/A Vehicle Maintenance etc,Transport-Contract Hire,J01374,Transport Related Expenditure ,Contract Hire and Op Leasing  ,CC64,CSF - SEN CABS (RK02)                   ,"2,622.00",28/05/2016,R,WALLINGTON CARS & COURIERS LTD
450,CS -Oth Operating Inc & Expend,T/A Vehicle Maintenance etc,Transport-Contract Hire,J01374,Transport Related Expenditure ,Contract Hire and Op Leasing  ,CC64,CSF - SEN CABS (RK02)                   ,"2,700.00",30/06/2016,R,BARCLAYS ASSET & SALES FINANCE
451,CS -Oth Operating Inc & Expend,T/A Vehicle Maintenance etc,Transport-Contract Hire,J01374,Transport Related Expenditure ,Contract Hire and Op Leasing  ,CC64,CSF - SEN CABS (RK02)                   ,"2,757.00",31/05/2016,R,PREMIER MINICAB SER.(SURBITON)
452,CS -Oth Operating Inc & Expend,T/A Vehicle Maintenance etc,Transport-Contract Hire,J01374,Transport Related Expenditure ,Contract Hire and Op Leasing  ,CC64,CSF - SEN CABS (RK02)                   ,"2,888.00",30/06/2016,R,BARCLAYS ASSET & SALES FINANCE
453,CS -Oth Operating Inc & Expend,T/A Vehicle Maintenance etc,Transport-Contract Hire,J01374,Transport Related Expenditure ,Contract Hire and Op Leasing  ,CC64,CSF - SEN CABS (RK02)                   ,"3,230.00",30/06/2016,R,BARCLAYS ASSET & SALES FINANCE
454,CS -Oth Operating Inc & Expend,T/A Vehicle Maintenance etc,Transport-Contract Hire,J01374,Transport Related Expenditure ,Contract Hire and Op Leasing  ,CC66,CSF - CHILDREN CABS (RK09)              ,"1,190.00",30/06/2016,R,OAKMARKET GROUP LTD           
455,CS -Oth Operating Inc & Expend,T/A Vehicle Maintenance etc,Transport-Contract Hire,J01374,Transport Related Expenditure ,Contract Hire and Op Leasing  ,CC67,C&H - ADULTS CABS (RK08)                ,616.00,30/06/2016,R,PREMIER MINICAB SER.(SURBITON)
456,CS -Oth Operating Inc & Expend,T/A Vehicle Maintenance etc,Transport-Contract Hire,J01374,Transport Related Expenditure ,Contract Hire and Op Leasing  ,CC67,C&H - ADULTS CABS (RK08)                ,672.00,31/05/2016,R,PREMIER MINICAB SER.(SURBITON)
457,CS -Oth Operating Inc & Expend,T/A Vehicle Maintenance etc,Transport-Contract Hire,J01374,Transport Related Expenditure ,Contract Hire and Op Leasing  ,CC67,C&H - ADULTS CABS (RK08)                ,745.50,30/06/2016,R,PREMIER MINICAB SER.(SURBITON)
458,CS -Oth Operating Inc & Expend,T/A Vehicle Maintenance etc,Transport-Contract Hire,J01374,Transport Related Expenditure ,Contract Hire and Op Leasing  ,CC67,C&H - ADULTS CABS (RK08)                ,"1,200.00",30/06/2016,R,PREMIER MINICAB SER.(SURBITON)
459,CS -Oth Operating Inc & Expend,T/A Vehicle Maintenance etc,Transport-Contract Hire,J01374,Transport Related Expenditure ,Contract Hire and Op Leasing  ,CC67,C&H - ADULTS CABS (RK08)                ,"1,280.00",31/05/2016,R,PREMIER MINICAB SER.(SURBITON)
460,CS -Oth Operating Inc & Expend,T/A Vehicle Maintenance etc,Transport-Contract Hire,J01374,Transport Related Expenditure ,Contract Hire and Op Leasing  ,CC67,C&H - ADULTS CABS (RK08)                ,"2,202.17",30/06/2016,R,PREMIER MINICAB SER.(SURBITON)
461,CS -Oth Operating Inc & Expend,T/A Vehicle Maintenance etc,Transport-Contract Hire,J01374,Transport Related Expenditure ,Contract Hire and Op Leasing  ,CC68,CSF - COLLEGES CABS (RK03)              ,575.00,30/06/2016,R,PREMIER MINICAB SER.(SURBITON)
462,CS -Oth Operating Inc & Expend,T/A Vehicle Maintenance etc,Transport-Contract Hire,J01374,Transport Related Expenditure ,Contract Hire and Op Leasing  ,CC68,CSF - COLLEGES CABS (RK03)              ,645.00,30/06/2016,R,PREMIER MINICAB SER.(SURBITON)
463,CS -Oth Operating Inc & Expend,T/A Vehicle Maintenance etc,Transport-Contract Hire,J01374,Transport Related Expenditure ,Contract Hire and Op Leasing  ,CC68,CSF - COLLEGES CABS (RK03)              ,765.00,31/05/2016,R,PREMIER MINICAB SER.(SURBITON)
464,CS -Oth Operating Inc & Expend,T/A Vehicle Maintenance etc,Transport-Contract Hire,J01374,Transport Related Expenditure ,Contract Hire and Op Leasing  ,CC68,CSF - COLLEGES CABS (RK03)              ,"1,124.00",30/06/2016,R,PREMIER MINICAB SER.(SURBITON)
465,CS -Oth Operating Inc & Expend,T/A Vehicle Maintenance etc,Transport-Contract Hire,J01374,Transport Related Expenditure ,Contract Hire and Op Leasing  ,CC68,CSF - COLLEGES CABS (RK03)              ,"1,650.00",30/06/2016,R,PREMIER MINICAB SER.(SURBITON)
466,CS -Oth Operating Inc & Expend,T/A Vehicle Maintenance etc,Transport-Contract Hire,J01374,Transport Related Expenditure ,Contract Hire and Op Leasing  ,CC69,Vehicles - Spot Hire,745.00,31/05/2016,R,GULLIVER'S TRUCK HIRE LTD.    
467,CS -Oth Operating Inc & Expend,T/A Vehicle Maintenance etc,Transport-Contract Hire,J01374,Transport Related Expenditure ,Contract Hire and Op Leasing  ,CC69,Vehicles - Spot Hire,745.00,06/06/2016,R,GULLIVER'S TRUCK HIRE LTD.    
468,CS -Oth Operating Inc & Expend,T/A Vehicle Maintenance etc,Transport-Contract Hire,J01374,Transport Related Expenditure ,Contract Hire and Op Leasing  ,CC69,Vehicles - Spot Hire,"2,856.00",31/05/2016,R,M6 VEHICLE HIRE               
469,CS -Oth Operating Inc & Expend,T/A Vehicle Maintenance etc,Transport-Contract Hire,J01374,Transport Related Expenditure ,Contract Hire and Op Leasing  ,CC69,Vehicles - Spot Hire,558.30,01/06/2016,R,REDACTED
470,CS -Oth Operating Inc & Expend,T/A Vehicle Maintenance etc,Transport-Contract Hire,J01374,Transport Related Expenditure ,Contract Hire and Op Leasing  ,CC69,Vehicles - Spot Hire,585.00,31/05/2016,R,REDACTED
471,CS -Oth Operating Inc & Expend,T/A Vehicle Maintenance etc,Transport-Contract Hire,J01374,Transport Related Expenditure ,Contract Hire and Op Leasing  ,CC69,Vehicles - Spot Hire,585.00,31/05/2016,R,REDACTED
472,CS -Oth Operating Inc & Expend,T/A Vehicle Maintenance etc,Transport-Contract Hire,J01374,Transport Related Expenditure ,Contract Hire and Op Leasing  ,CC69,Vehicles - Spot Hire,585.00,31/05/2016,R,REDACTED
473,CS -Oth Operating Inc & Expend,T/A Vehicle Maintenance etc,Transport-Contract Hire,J01374,Transport Related Expenditure ,Contract Hire and Op Leasing  ,CC69,Vehicles - Spot Hire,726.00,31/05/2016,R,REDACTED
474,CS -Oth Operating Inc & Expend,T/A Vehicle Maintenance etc,Transport-Contract Hire,J01374,Transport Related Expenditure ,Contract Hire and Op Leasing  ,CC69,Vehicles - Spot Hire,"1,430.00",31/05/2016,R,REDACTED
475,CS -Oth Operating Inc & Expend,T/A Vehicle Maintenance etc,Transport-Workshop,J01376,Premises Related Expenditure  ,RepairsAlterations&MtceOfBldgs,BA03,DDM - Mechanical                        ,549.64,20/06/2016,R,BILFINGER EUROPA FACILITY     
476,CS -Oth Operating Inc & Expend,T/A Vehicle Maintenance etc,Transport-Workshop,J01376,Transport Related Expenditure ,Contract Hire and Op Leasing  ,CC65,Vehicle Hire for Education              ,850.00,14/06/2016,R,PC COACHES                    
477,CS -Oth Operating Inc & Expend,T/A Vehicle Maintenance etc,Transport-Workshop,J01376,Transport Related Expenditure ,Contract Hire and Op Leasing  ,CC65,Vehicle Hire for Education              ,"1,515.00",16/03/2016,R,CHIVERS COACHES LTD           
478,CS -Oth Operating Inc & Expend,T/A Vehicle Maintenance etc,Transport-Workshop,J01376,Supplies & Services           ,Comms and Computing           ,DG07,Computer Software                       ,"10,000.00",08/06/2016,R,KAPPA LAMBDA SQUARED LTD      
479,CS -Oth Operating Inc & Expend,T/A Vehicle Maintenance etc,Vehicle Workshops,J01378,Employees                     ,Direct Employee Expenses      ,AA17,Agency Staff & Casual Paymts            ,513.00,01/06/2016,R,REDACTED
480,CS -Oth Operating Inc & Expend,T/A Vehicle Maintenance etc,Vehicle Workshops,J01378,Employees                     ,Direct Employee Expenses      ,AA17,Agency Staff & Casual Paymts            ,513.00,08/06/2016,R,REDACTED
481,CS -Oth Operating Inc & Expend,T/A Vehicle Maintenance etc,Vehicle Workshops,J01378,Employees                     ,Direct Employee Expenses      ,AA17,Agency Staff & Casual Paymts            ,855.00,15/06/2016,R,REDACTED
482,CS -Oth Operating Inc & Expend,T/A Vehicle Maintenance etc,Vehicle Workshops,J01378,Transport Related Expenditure ,Direct Transport Costs        ,CA02,Tyres                                   ,"7,071.97",31/05/2016,R,DIRECT TYRE MANAGEMENT LTD    
483,CS -Oth Operating Inc & Expend,T/A Vehicle Maintenance etc,Vehicle Workshops,J01378,Transport Related Expenditure ,Direct Transport Costs        ,CA55,Specialist Maint. (Off Site)            ,999.10,15/06/2016,R,P D VEHICLE SERVICES          
484,CS -Oth Operating Inc & Expend,T/A Vehicle Maintenance etc,Vehicle Workshops,J01378,Transport Related Expenditure ,Direct Transport Costs        ,CA55,Specialist Maint. (Off Site)            ,"1,822.10",20/06/2016,R,HTC CROYDON                   
485,CS -Oth Operating Inc & Expend,T/A Vehicle Maintenance etc,Vehicle Workshops,J01378,Transport Related Expenditure ,Direct Transport Costs        ,CA55,Specialist Maint. (Off Site)            ,"1,054.75",20/06/2016,R,REDACTED
486,CS -Oth Operating Inc & Expend,T/A Vehicle Maintenance etc,Vehicle Workshops,J01378,Transport Related Expenditure ,Direct Transport Costs        ,CA56,Specialist Maint. (On Site)             ,661.00,23/06/2016,R,GALLOWAY VEHICLE SERVICES     
487,CS -Oth Operating Inc & Expend,T/A Vehicle Maintenance etc,Vehicle Workshops,J01378,Transport Related Expenditure ,Direct Transport Costs        ,CA56,Specialist Maint. (On Site)             ,"1,982.66",10/06/2016,R,GEESINK NORBA                 
488,CS -Oth Operating Inc & Expend,T/A Vehicle Maintenance etc,Vehicle Workshops,J01378,Transport Related Expenditure ,Direct Transport Costs        ,CA56,Specialist Maint. (On Site)             ,"2,205.50",23/06/2016,R,GVS HIRE LTD                  
489,CS -Oth Operating Inc & Expend,T/A Vehicle Maintenance etc,Vehicle Workshops,J01378,Transport Related Expenditure ,Direct Transport Costs        ,CA56,Specialist Maint. (On Site)             ,"2,845.08",26/05/2016,R,FREIGHT TRANSPORT ASSOCIATION 
490,CS -Oth Operating Inc & Expend,T/A Vehicle Maintenance etc,Vehicle Workshops,J01378,Transport Related Expenditure ,Direct Transport Costs        ,CA56,Specialist Maint. (On Site)             ,897.45,23/06/2016,R,REDACTED
491,CS -Oth Operating Inc & Expend,T/A Vehicle Maintenance etc,Vehicle Workshops,J01378,Transport Related Expenditure ,Direct Transport Costs        ,CA56,Specialist Maint. (On Site)             ,915.60,23/06/2016,R,REDACTED
492,CS -Oth Operating Inc & Expend,T/A Vehicle Maintenance etc,Vehicle Workshops,J01378,Transport Related Expenditure ,Direct Transport Costs        ,CA56,Specialist Maint. (On Site)             ,977.82,23/06/2016,R,REDACTED
493,CS -Oth Operating Inc & Expend,T/A Vehicle Maintenance etc,Vehicle Workshops,J01378,Transport Related Expenditure ,Direct Transport Costs        ,CA56,Specialist Maint. (On Site)             ,"1,197.85",14/06/2016,R,REDACTED
494,CS -Oth Operating Inc & Expend,T/A Vehicle Maintenance etc,Vehicle Workshops,J01378,Transport Related Expenditure ,Direct Transport Costs        ,CA56,Specialist Maint. (On Site)             ,"1,538.40",14/06/2016,R,REDACTED
495,CS -Oth Operating Inc & Expend,T/A Vehicle Maintenance etc,Vehicle Workshops,J01378,Transport Related Expenditure ,Direct Transport Costs        ,CA72,Vehicle Parts                           ,507.50,06/06/2016,R,HITACHI CAPITAL INV. FINANCE  
496,CS -Oth Operating Inc & Expend,T/A Vehicle Maintenance etc,Vehicle Workshops,J01378,Transport Related Expenditure ,Direct Transport Costs        ,CA72,Vehicle Parts                           ,524.45,16/06/2016,R,ROSSETTS COMMERCIALS          
497,CS -Oth Operating Inc & Expend,T/A Vehicle Maintenance etc,Vehicle Workshops,J01378,Transport Related Expenditure ,Direct Transport Costs        ,CA72,Vehicle Parts                           ,600.00,13/06/2016,R,GEESINK NORBA                 
498,CS -Oth Operating Inc & Expend,T/A Vehicle Maintenance etc,Vehicle Workshops,J01378,Transport Related Expenditure ,Direct Transport Costs        ,CA72,Vehicle Parts                           ,600.00,31/05/2016,R,GEESINK NORBA                 
499,CS -Oth Operating Inc & Expend,T/A Vehicle Maintenance etc,Vehicle Workshops,J01378,Transport Related Expenditure ,Direct Transport Costs        ,CA72,Vehicle Parts                           ,622.44,08/06/2016,R,DENNIS EAGLE LIMITED          
500,CS -Oth Operating Inc & Expend,T/A Vehicle Maintenance etc,Vehicle Workshops,J01378,Transport Related Expenditure ,Direct Transport Costs        ,CA72,Vehicle Parts                           ,805.13,13/06/2016,R,SCARAB SWEEPERS LTD           
501,CS -Oth Operating Inc & Expend,T/A Vehicle Maintenance etc,Vehicle Workshops,J01378,Transport Related Expenditure ,Direct Transport Costs        ,CA72,Vehicle Parts                           ,"1,072.00",15/06/2016,R,SCANIA(GREAT BRITAIN)LIMITED  
502,CS -Oth Operating Inc & Expend,T/A Vehicle Maintenance etc,Vehicle Workshops,J01378,Transport Related Expenditure ,Direct Transport Costs        ,CA72,Vehicle Parts                           ,"1,370.60",13/06/2016,R,HEIL FARID EUROPEAN CO LTD    
503,CS -Oth Operating Inc & Expend,T/A Vehicle Maintenance etc,Vehicle Workshops,J01378,Transport Related Expenditure ,Direct Transport Costs        ,CA72,Vehicle Parts                           ,"2,040.00",27/05/2016,R,GEESINK NORBA                 
504,Cultural Env Reg&Plan Services,Mgt & Support (Env),Estates Mgt,J01420,Supplies & Services           ,Services                      ,DF11,Counsel's Fees                          ,585.00,27/05/2016,R,REDACTED
505,Cultural Env Reg&Plan Services,Mgt & Support (Env),Estates Mgt,J01420,Supplies & Services           ,Services                      ,DF50,Estate Management                       ,"1,250.00",15/06/2016,R,AMSY LIMITED                  
506,Cultural Env Reg&Plan Services,Mgt & Support (Env),Estates Mgt,J01420,Supplies & Services           ,Comms and Computing           ,DG07,Computer Software                       ,850.00,01/06/2016,R,KEL COMPUTING LTD             
507,Cultural Env Reg&Plan Services,Mgt & Support (Env),Estates Mgt,J01420,Supplies & Services           ,Comms and Computing           ,DG07,Computer Software                       ,"1,170.00",01/06/2016,R,KEL COMPUTING LTD             
508,CS -Oth Operating Inc & Expend,Extraordinary Items & PY Adj.,Pollards Hill Comm Cntre,J08074,Premises Related Expenditure  ,RepairsAlterations&MtceOfBldgs,BA03,DDM - Mechanical                        ,617.24,20/06/2016,R,BILFINGER EUROPA FACILITY     
509,Childrens & Education Services,Statutory & Regulatory Duties,Senior Mngt & Support Services,K01005,Supplies & Services           ,Services                      ,DF11,Counsel's Fees                          ,510.00,15/06/2016,R,REDACTED
510,Childrens & Education Services,Statutory & Regulatory Duties,Senior Mngt & Support Services,K01005,Supplies & Services           ,Services                      ,DF11,Counsel's Fees                          ,570.00,17/06/2016,R,REDACTED
511,Childrens & Education Services,Statutory & Regulatory Duties,Senior Mngt & Support Services,K01005,Supplies & Services           ,Services                      ,DF11,Counsel's Fees                          ,775.00,09/05/2016,R,REDACTED
512,Childrens & Education Services,Statutory & Regulatory Duties,Senior Mngt & Support Services,K01005,Supplies & Services           ,Services                      ,DF11,Counsel's Fees                          ,850.00,10/06/2016,R,REDACTED
513,Childrens & Education Services,Statutory & Regulatory Duties,Senior Mngt & Support Services,K01005,Supplies & Services           ,Services                      ,DF11,Counsel's Fees                          ,950.00,17/06/2016,R,REDACTED
514,Childrens & Education Services,Statutory & Regulatory Duties,Senior Mngt & Support Services,K01005,Supplies & Services           ,Services                      ,DF11,Counsel's Fees                          ,"3,810.00",10/06/2016,R,REDACTED
515,Childrens & Education Services,Support for Cult. & Related Ed,Merton Music Foundation,K01090,Supplies & Services           ,Grants and Subscriptions      ,DJ01,Grants                                  ,"46,000.00",28/06/2016,R,MERTON MUSIC FOUNDATION       
516,Childrens & Education Services,Statutory & Regulatory Duties,Schools IT Support,K02008,Supplies & Services           ,Comms and Computing           ,DG50,Other IT Expenditure                    ,950.00,03/06/2016,R,ATOMWIDE LTD                  
517,Childrens & Education Services,Statutory & Regulatory Duties,Schools IT Support,K02008,Supplies & Services           ,Comms and Computing           ,DG50,Other IT Expenditure                    ,"8,663.38",28/06/2016,R,LONDON GRID FOR LEARNING TRUST
518,Childrens & Education Services,Statutory & Regulatory Duties,Schools IT Support,K02008,Supplies & Services           ,Comms and Computing           ,DG50,Other IT Expenditure                    ,"11,608.20",01/06/2016,R,LONDON GRID FOR LEARNING TRUST
519,Childrens & Education Services,Statutory & Regulatory Duties,Schools IT Support,K02008,Supplies & Services           ,Comms and Computing           ,DG50,Other IT Expenditure                    ,"337,495.34",01/06/2016,R,LONDON GRID FOR LEARNING TRUST
520,Childrens & Education Services,Asset Management,PFI Unitary Charges,K03023,Supplies & Services           ,Services                      ,DF95,Services from Provider                  ,"6,328.70",12/06/2016,R,TROWERS & HAMLINS             
521,Childrens & Education Services,Asset Management,PFI Unitary Charges,K03023,Third Party Payments          ,Private Contractors           ,EH02,Miscellaneous Hired Services            ,"2,119.00",15/06/2016,R,NEWSCHOOLS (MERTON) LIMITED   
522,Childrens & Education Services,Asset Management,PFI Unitary Charges,K03023,Third Party Payments          ,Private Contractors           ,EH02,Miscellaneous Hired Services            ,"4,603.89",15/06/2016,R,NEWSCHOOLS (MERTON) LIMITED   
523,Childrens & Education Services,Asset Management,PFI Unitary Charges,K03023,Third Party Payments          ,Private Contractors           ,EH10,Contract Payments                       ,"(59,957.57)",28/04/2016,R,NEWSCHOOLS (MERTON) LIMITED   
524,Childrens & Education Services,Asset Management,PFI Unitary Charges,K03023,Third Party Payments          ,Private Contractors           ,EH10,Contract Payments                       ,"(4,681.24)",07/04/2016,R,NEWSCHOOLS (MERTON) LIMITED   
525,Childrens & Education Services,Asset Management,PFI Unitary Charges,K03023,Third Party Payments          ,Private Contractors           ,EH10,Contract Payments                       ,"1,294,073.85",07/06/2016,R,NEWSCHOOLS (MERTON) LIMITED   
526,Childrens & Education Services,Education Psychology Service,Education Psychology.,K04018,Employees                     ,Direct Employee Expenses      ,AA17,Agency Staff & Casual Paymts            ,"1,000.00",08/06/2016,R,REDACTED
527,Childrens & Education Services,Education Psychology Service,Education Psychology.,K04018,Employees                     ,Direct Employee Expenses      ,AA17,Agency Staff & Casual Paymts            ,"1,000.00",08/06/2016,R,REDACTED
528,Childrens & Education Services,Education Psychology Service,Education Psychology.,K04018,Employees                     ,Direct Employee Expenses      ,AA17,Agency Staff & Casual Paymts            ,"1,200.00",08/06/2016,R,REDACTED
529,Childrens & Education Services,Education Psychology Service,Education Psychology.,K04018,Employees                     ,Direct Employee Expenses      ,AA17,Agency Staff & Casual Paymts            ,"48,000.00",09/05/2016,R,SOUTHAMPTON UNIVSERSITY       
530,Childrens & Education Services,Education Psychology Service,Education Psychology.,K04018,Employees                     ,Direct Employee Expenses      ,AA17,Agency Staff & Casual Paymts            ,"1,600.00",13/06/2016,R,REDACTED
531,Childrens & Education Services,Education Psychology Service,Education Psychology.,K04018,Employees                     ,Direct Employee Expenses      ,AA17,Agency Staff & Casual Paymts            ,"2,400.00",13/06/2016,R,REDACTED
532,Childrens & Education Services,Education Psychology Service,Education Psychology.,K04018,Employees                     ,Direct Employee Expenses      ,AA17,Agency Staff & Casual Paymts            ,"4,000.00",29/06/2016,R,REDACTED
533,Childrens & Education Services,Education Psychology Service,Education Psychology.,K04018,Employees                     ,Direct Employee Expenses      ,AA17,Agency Staff & Casual Paymts            ,"4,400.00",30/05/2016,R,REDACTED
534,Childrens & Education Services,Support for SEN Pupils,Statementing-Transport,K04023,Transport Related Expenditure ,Public Transport              ,CD50,Home Sch/Coll Trans(Trav Exps)          ,937.50,06/06/2016,R,WISDOM SUPPORT SERVICES LTD   
535,Childrens & Education Services,Support for SEN Pupils,Statementing-Transport,K04023,Transport Related Expenditure ,Public Transport              ,CD50,Home Sch/Coll Trans(Trav Exps)          ,"1,366.00",27/05/2016,R,ST MARY'S WRESTWOOD CHILDRENS 
536,Childrens & Education Services,Support for SEN Pupils,Statementing-Transport,K04023,Transport Related Expenditure ,Public Transport              ,CD50,Home Sch/Coll Trans(Trav Exps)          ,541.26,23/05/2016,R,REDACTED
537,Childrens & Education Services,Support for SEN Pupils,Statementing-Transport,K04023,Transport Related Expenditure ,Public Transport              ,CD50,Home Sch/Coll Trans(Trav Exps)          ,810.00,29/06/2016,R,REDACTED
538,Childrens & Education Services,Support for SEN Pupils,Statement Support Team,K04034,Supplies & Services           ,Services                      ,DF09,Miscellaneous Fees                      ,"2,375.00",01/06/2016,R,REDACTED
539,Childrens & Education Services,Support for SEN Pupils,Statement Support Team,K04034,Supplies & Services           ,Services                      ,DF09,Miscellaneous Fees                      ,"2,662.86",06/05/2016,R,REDACTED
540,Childrens & Education Services,Oth U5s Provn Not Prim or Spec,Provider Support,K05078,Supplies & Services           ,Comms and Computing           ,DG50,Other IT Expenditure                    ,"12,000.00",31/05/2016,R,CACI LIMITED                  
541,Childrens & Education Services,Oth U5s Provn Not Prim or Spec,GSSG Workforce Development,K05111,Employees                     ,Indirect Employee Expenses    ,AB56,Internal Training Costs                 ,"1,320.83",22/04/2016,R,HSBC INVOICE FINANCE (UK) LTD 
542,Childrens & Education Services,Oth U5s Provn Not Prim or Spec,GSSG Workforce Development,K05111,Supplies & Services           ,Equip Furniture/Materials     ,DA09,Equip-Purchases                         ,"4,152.50",10/06/2016,R,PREMIER BLINDS & AWNINGS      
543,Childrens & Education Services,GENERATED ACCOUNT,Children's centres,K05137,Supplies & Services           ,Expenses                      ,DH02,Conferences                             ,600.00,07/06/2016,R,REDACTED
544,Childrens & Education Services,Nursery schools,GSSG Central Administration,K05400,Supplies & Services           ,Comms and Computing           ,DG08,Computer Hardware                       ,"1,083.00",16/06/2016,R,NETCALL TELECOM LIMITED       
545,Childrens & Education Services,Nursery schools,GSSG Recruitment,K05401,Premises Related Expenditure  ,Cleaning and Domestic Supplies,BH03,Cleaning Services                       ,545.67,30/05/2016,R,JULIUS RUTHERFOORD & CO LTD   
546,Childrens & Education Services,Nursery schools,Lavender CC Non Childcare,K05415,Supplies & Services           ,Equip Furniture/Materials     ,DA09,Equip-Purchases                         ,860.00,27/04/2016,R,COMMUNITY PRODUCTS (UK) LTD.  
547,Childrens & Education Services,Nursery schools,E.Years-Intergenerational Cntr,K05416,Premises Related Expenditure  ,RepairsAlterations&MtceOfBldgs,BA06,REPAIRS & MAINTENANCE GENERAL           ,564.93,19/04/2016,R,STORMSAVER LTD                
548,Childrens & Education Services,Vocational - Adult Education,AE-additional learner SF,K06046,Supplies & Services           ,Services                      ,DF09,Miscellaneous Fees                      ,687.32,01/06/2016,R,JK CARE T/A DEES DAY NURSERY  
549,Childrens & Education Services,Vocational - Adult Education,AE-additional learner SF,K06046,Supplies & Services           ,Services                      ,DF09,Miscellaneous Fees                      ,747.84,01/06/2016,R,JK CARE T/A DEES DAY NURSERY  
550,Childrens & Education Services,Vocational - Adult Education,AE-additional learner SF,K06046,Supplies & Services           ,Services                      ,DF09,Miscellaneous Fees                      ,"1,680.00",13/06/2016,R,BUMBLE BEES'S DAY NURSERY-COCC
551,Childrens & Education Services,Vocational - Adult Education,AE-additional learner SF,K06046,Supplies & Services           ,Services                      ,DF09,Miscellaneous Fees                      ,825.00,16/05/2016,R,REDACTED
552,Childrens & Education Services,Vocational - Adult Education,AE-Adult Education Main,K06049,Premises Related Expenditure  ,Energy Costs                  ,BB03,Gas (incl. Butane)                      ,917.49,19/05/2016,R,GAZPROM MARKETING&TRADING LTD 
553,Childrens & Education Services,Vocational - Adult Education,AE-Adult Education Main,K06049,Supplies & Services           ,Services                      ,DF03,Consultants                             ,"3,110.30",06/06/2016,R,TCMD LTD                      
554,Childrens & Education Services,Vocational - Adult Education,AE-Adult Education Main,K06049,Supplies & Services           ,Services                      ,DF27,Examination Fees                        ,"1,505.25",09/06/2016,R,UCLES                         
555,Childrens & Education Services,Vocational - Adult Education,AE-Adult Education Main,K06049,Supplies & Services           ,Services                      ,DF27,Examination Fees                        ,"2,458.50",16/06/2016,R,UCLES                         
556,Childrens & Education Services,Vocational - Adult Education,AE-Adult Education Main,K06049,Supplies & Services           ,Comms and Computing           ,DG04,Postage - General                       ,"1,639.39",16/06/2016,R,NEOPOST FINANCE LIMITED       
557,Childrens & Education Services,Vocational - Adult Education,MAE- CATERING SERVICES 2011>,K06052,Supplies & Services           ,Catering                      ,DB01,Contract Catering                       ,706.55,23/05/2016,R,2468 LIMITED                  
558,Childrens & Education Services,Youth Centres (Residential),Leyton Rd Premises Costs.,K06054,Premises Related Expenditure  ,RepairsAlterations&MtceOfBldgs,BA06,REPAIRS & MAINTENANCE GENERAL           ,"1,324.00",20/06/2016,R,PJ HARVEY & CO LTD            
559,Childrens & Education Services,Youth Centres (Residential),PAYP Moving Forward in Life,K06092,Premises Related Expenditure  ,Rents                         ,BC01,Miscellaneous Rents                     ,"6,750.00",06/06/2016,R,GOLDPLAZA (MITCHAM) LIMITED   
560,Childrens & Education Services,Facilitating School Improvemnt,Virtual Schools (Balance),K07109,Supplies & Services           ,Grants and Subscriptions      ,DJ01,Grants                                  ,600.00,14/06/2016,R,BAY HOUSE SCHOOL              
561,Childrens & Education Services,Facilitating School Improvemnt,Virtual Schools (Balance),K07109,Supplies & Services           ,Grants and Subscriptions      ,DJ01,Grants                                  ,600.00,14/06/2016,R,BURNTWOOD SCHOOL              
562,Childrens & Education Services,Facilitating School Improvemnt,Virtual Schools (Balance),K07109,Supplies & Services           ,Grants and Subscriptions      ,DJ01,Grants                                  ,600.00,14/06/2016,R,CAREW ACADEMY                 
563,Childrens & Education Services,Facilitating School Improvemnt,Virtual Schools (Balance),K07109,Supplies & Services           ,Grants and Subscriptions      ,DJ01,Grants                                  ,600.00,14/06/2016,R,CARSHALTON HIGH SCH FOR GIRLS 
564,Childrens & Education Services,Facilitating School Improvemnt,Virtual Schools (Balance),K07109,Supplies & Services           ,Grants and Subscriptions      ,DJ01,Grants                                  ,600.00,14/06/2016,R,CHURCHFIELDS INFANTS SCHOOL   
565,Childrens & Education Services,Facilitating School Improvemnt,Virtual Schools (Balance),K07109,Supplies & Services           ,Grants and Subscriptions      ,DJ01,Grants                                  ,600.00,14/06/2016,R,CLIFTON HILL SCHOOL           
566,Childrens & Education Services,Facilitating School Improvemnt,Virtual Schools (Balance),K07109,Supplies & Services           ,Grants and Subscriptions      ,DJ01,Grants                                  ,600.00,14/06/2016,R,CUDDINGTON COMMUNITY P. SCHOOL
567,Childrens & Education Services,Facilitating School Improvemnt,Virtual Schools (Balance),K07109,Supplies & Services           ,Grants and Subscriptions      ,DJ01,Grants                                  ,600.00,24/06/2016,R,DYMCHURCH PRIMARY SCHOOL      
568,Childrens & Education Services,Facilitating School Improvemnt,Virtual Schools (Balance),K07109,Supplies & Services           ,Grants and Subscriptions      ,DJ01,Grants                                  ,600.00,24/06/2016,R,FURZEDOWN PRIMARY SCHOOL      
569,Childrens & Education Services,Facilitating School Improvemnt,Virtual Schools (Balance),K07109,Supplies & Services           ,Grants and Subscriptions      ,DJ01,Grants                                  ,600.00,24/06/2016,R,GLENTHORNE HIGH SCHOOL        
570,Childrens & Education Services,Facilitating School Improvemnt,Virtual Schools (Balance),K07109,Supplies & Services           ,Grants and Subscriptions      ,DJ01,Grants                                  ,600.00,24/06/2016,R,GLENTHORNE HIGH SCHOOL        
571,Childrens & Education Services,Facilitating School Improvemnt,Virtual Schools (Balance),K07109,Supplies & Services           ,Grants and Subscriptions      ,DJ01,Grants                                  ,600.00,24/06/2016,R,GRAVENEY SCHOOL               
572,Childrens & Education Services,Facilitating School Improvemnt,Virtual Schools (Balance),K07109,Supplies & Services           ,Grants and Subscriptions      ,DJ01,Grants                                  ,600.00,24/06/2016,R,HAWES DOWN JUNIOR SCHOOL      
573,Childrens & Education Services,Facilitating School Improvemnt,Virtual Schools (Balance),K07109,Supplies & Services           ,Grants and Subscriptions      ,DJ01,Grants                                  ,600.00,24/06/2016,R,IVY DALE PRIMARY              
574,Childrens & Education Services,Facilitating School Improvemnt,Virtual Schools (Balance),K07109,Supplies & Services           ,Grants and Subscriptions      ,DJ01,Grants                                  ,600.00,24/06/2016,R,IVY DALE PRIMARY              
575,Childrens & Education Services,Facilitating School Improvemnt,Virtual Schools (Balance),K07109,Supplies & Services           ,Grants and Subscriptions      ,DJ01,Grants                                  ,600.00,24/06/2016,R,LANGLEY PARK SCHOOL FOR BOYS  
576,Childrens & Education Services,Facilitating School Improvemnt,Virtual Schools (Balance),K07109,Supplies & Services           ,Grants and Subscriptions      ,DJ01,Grants                                  ,600.00,24/06/2016,R,LANGLEY PARK SCHOOL FOR GIRLS 
577,Childrens & Education Services,Facilitating School Improvemnt,Virtual Schools (Balance),K07109,Supplies & Services           ,Grants and Subscriptions      ,DJ01,Grants                                  ,600.00,24/06/2016,R,LINDEN LODGE SCHOOL           
578,Childrens & Education Services,Facilitating School Improvemnt,Virtual Schools (Balance),K07109,Supplies & Services           ,Grants and Subscriptions      ,DJ01,Grants                                  ,600.00,24/06/2016,R,LINDEN LODGE SCHOOL           
579,Childrens & Education Services,Facilitating School Improvemnt,Virtual Schools (Balance),K07109,Supplies & Services           ,Grants and Subscriptions      ,DJ01,Grants                                  ,600.00,24/06/2016,R,THE LINK SECONDARY SCHOOL     
580,Childrens & Education Services,Facilitating School Improvemnt,Virtual Schools (Balance),K07109,Supplies & Services           ,Grants and Subscriptions      ,DJ01,Grants                                  ,600.00,24/06/2016,R,THE MULBERRY BUSH ORGANISATION
581,Childrens & Education Services,Facilitating School Improvemnt,Virtual Schools (Balance),K07109,Supplies & Services           ,Grants and Subscriptions      ,DJ01,Grants                                  ,600.00,24/06/2016,R,NORBURY MANOR & ENTER. COLLEGE
582,Childrens & Education Services,Facilitating School Improvemnt,Virtual Schools (Balance),K07109,Supplies & Services           ,Grants and Subscriptions      ,DJ01,Grants                                  ,600.00,24/06/2016,R,NORBURY MANOR & ENTER. COLLEGE
583,Childrens & Education Services,Facilitating School Improvemnt,Virtual Schools (Balance),K07109,Supplies & Services           ,Grants and Subscriptions      ,DJ01,Grants                                  ,600.00,24/06/2016,R,THE NORTH SCHOOL              
584,Childrens & Education Services,Facilitating School Improvemnt,Virtual Schools (Balance),K07109,Supplies & Services           ,Grants and Subscriptions      ,DJ01,Grants                                  ,600.00,24/06/2016,R,OXTED SCHOOL                  
585,Childrens & Education Services,Facilitating School Improvemnt,Virtual Schools (Balance),K07109,Supplies & Services           ,Grants and Subscriptions      ,DJ01,Grants                                  ,600.00,24/06/2016,R,ST JOHN FISHER CATH'LC COMP SC
586,Childrens & Education Services,Facilitating School Improvemnt,Virtual Schools (Balance),K07109,Supplies & Services           ,Grants and Subscriptions      ,DJ01,Grants                                  ,600.00,24/06/2016,R,ST JOSEPH'S COLLEGE           
587,Childrens & Education Services,Facilitating School Improvemnt,Virtual Schools (Balance),K07109,Supplies & Services           ,Grants and Subscriptions      ,DJ01,Grants                                  ,600.00,24/06/2016,R,TOLWORTH GIRLS SCH & 6TH FORM 
588,Childrens & Education Services,Facilitating School Improvemnt,Virtual Schools (Balance),K07109,Supplies & Services           ,Grants and Subscriptions      ,DJ01,Grants                                  ,600.00,24/06/2016,R,THE WATERLOO SCHOOL           
589,Childrens & Education Services,Facilitating School Improvemnt,Virtual Schools (Balance),K07109,Supplies & Services           ,Grants and Subscriptions      ,DJ01,Grants                                  ,600.00,24/06/2016,R,WOODMANSTERNE PRIMARY SCHOOL  
590,Childrens & Education Services,Facilitating School Improvemnt,Virtual Schools (Balance),K07109,Supplies & Services           ,Grants and Subscriptions      ,DJ01,Grants                                  ,600.00,15/06/2016,R,CHEAM HIGH SCHOOL             
591,Childrens & Education Services,Facilitating School Improvemnt,Virtual Schools (Balance),K07109,Supplies & Services           ,Grants and Subscriptions      ,DJ01,Grants                                  ,"1,200.00",24/06/2016,R,ST MARY'S C OF E JUNIOR SCHOOL
592,Childrens & Education Services,Asset Management,S106 Bid,K08077,Supplies & Services           ,Prntng Stnry Gen Off Exp      ,DE52,Office Removal Expenses                 ,"1,860.00",10/06/2016,R,DF20 LTD                      
593,Childrens & Education Services,Asset Management,S106 Bid,K08077,Supplies & Services           ,Services                      ,DF57,Consulting Engineers Fees               ,"3,200.00",28/06/2016,R,BRADY MALLALIEU ARCHITECTS    
594,Childrens & Education Services,Asset Management,Centre Commissioned Servs,K08078,Supplies & Services           ,Grants and Subscriptions      ,DJ01,Grants                                  ,"9,737.50",26/05/2016,R,BARNARDOS                     
595,Childrens & Education Services,Facilitating School Improvemnt,SSQ,K09077,Supplies & Services           ,Equip Furniture/Materials     ,DA58,Education Materials                     ,700.00,07/06/2016,R,HERTS FOR LEARNING LTD        
596,Childrens & Education Services,Facilitating School Improvemnt,SSQ,K09077,Supplies & Services           ,Services                      ,DF03,Consultants                             ,"1,800.00",26/06/2016,R,REDACTED
597,Childrens & Education Services,Facilitating School Improvemnt,SSQ,K09077,Supplies & Services           ,Grants and Subscriptions      ,DJ04,Subscriptions                           ,"1,500.00",22/06/2016,R,STONEWALL EQUALITY LTD        
598,Childrens & Education Services,Asset Management,Stouthall,K09082,Premises Related Expenditure  ,Ground Maintenance Costs      ,BL03,Maintenance of Grounds                  ,"1,000.00",31/05/2016,R,A Y LANDSCAPES LTD            
599,Childrens & Education Services,Sch Meals & Milk-Not Delegated,Free School Meals,K90002,Premises Related Expenditure  ,RepairsAlterations&MtceOfBldgs,BA01,DDM - General Building                  ,"1,072.00",10/06/2016,R,DF20 LTD                      
600,Childrens & Education Services,Sch Meals & Milk-Not Delegated,Free School Meals,K90002,Supplies & Services           ,Grants and Subscriptions      ,DJ80,Free School Meals                       ,"6,166.60",11/04/2016,R,PARENTPAY LTD                 
601,Childrens & Education Services,Facilitating School Improvemnt,Virtual Schools - PEA's,K90016,Employees                     ,Direct Employee Expenses      ,AA17,Agency Staff & Casual Paymts            ,"1,692.50",26/05/2016,R,REDACTED
602,Childrens & Education Services,Support for SEN Pupils,Non-Delegated Statements,K90024,Employees                     ,Direct Employee Expenses      ,AA17,Agency Staff & Casual Paymts            ,800.00,27/05/2016,R,REDACTED
603,Childrens & Education Services,Support for SEN Pupils,Non-Delegated Statements,K90024,Employees                     ,Direct Employee Expenses      ,AA17,Agency Staff & Casual Paymts            ,884.00,26/04/2016,R,REDACTED
604,Childrens & Education Services,Support for SEN Pupils,Non-Delegated Statements,K90024,Employees                     ,Direct Employee Expenses      ,AA17,Agency Staff & Casual Paymts            ,"2,185.00",31/05/2016,R,REDACTED
605,Childrens & Education Services,Support for SEN Pupils,Non-Delegated Statements,K90024,Employees                     ,Direct Employee Expenses      ,AA17,Agency Staff & Casual Paymts            ,"2,400.00",06/06/2016,R,REDACTED
606,Childrens & Education Services,Support for SEN Pupils,Non-Delegated Statements,K90024,Supplies & Services           ,Services                      ,DF09,Miscellaneous Fees                      ,540.00,09/05/2016,R,RIVER COUNSELLING AGENCY      
607,Childrens & Education Services,Support for SEN Pupils,Non-Delegated Statements,K90024,Supplies & Services           ,Services                      ,DF09,Miscellaneous Fees                      ,570.00,02/05/2016,R,RIVER COUNSELLING AGENCY      
608,Childrens & Education Services,Support for SEN Pupils,Non-Delegated Statements,K90024,Supplies & Services           ,Services                      ,DF09,Miscellaneous Fees                      ,580.00,16/05/2016,R,RIVER COUNSELLING AGENCY      
609,Childrens & Education Services,Support for SEN Pupils,Non-Delegated Statements,K90024,Supplies & Services           ,Services                      ,DF09,Miscellaneous Fees                      ,950.00,18/04/2016,R,RIVER COUNSELLING AGENCY      
610,Childrens & Education Services,Support for SEN Pupils,Non-Delegated Statements,K90024,Supplies & Services           ,Services                      ,DF09,Miscellaneous Fees                      ,"1,030.00",25/04/2016,R,RIVER COUNSELLING AGENCY      
611,Childrens & Education Services,Support for SEN Pupils,Non-Delegated Statements,K90024,Supplies & Services           ,Services                      ,DF09,Miscellaneous Fees                      ,"4,320.00",18/03/2015,R,PERSEID SCHOOL                
612,Childrens & Education Services,Support for SEN Pupils,Non-Delegated Statements,K90024,Supplies & Services           ,Services                      ,DF09,Miscellaneous Fees                      ,"4,320.00",17/09/2015,R,PERSEID SCHOOL                
613,Childrens & Education Services,Support for SEN Pupils,Non-Delegated Statements,K90024,Supplies & Services           ,Services                      ,DF09,Miscellaneous Fees                      ,"4,400.00",08/03/2016,R,PERSEID SCHOOL                
614,Childrens & Education Services,Support for SEN Pupils,Non-Delegated Statements,K90024,Supplies & Services           ,Services                      ,DF09,Miscellaneous Fees                      ,"5,865.00",13/05/2016,R,CLIFTON HILL SCHOOL           
615,Childrens & Education Services,Support for SEN Pupils,Non-Delegated Statements,K90024,Supplies & Services           ,Services                      ,DF09,Miscellaneous Fees                      ,"14,300.00",09/03/2016,R,PERSEID SCHOOL                
616,Childrens & Education Services,Support for SEN Pupils,Non-Delegated Statements,K90024,Supplies & Services           ,Services                      ,DF11,Counsel's Fees                          ,750.00,04/06/2016,R,REDACTED
617,Childrens & Education Services,Support for SEN Pupils,Non-Delegated Statements,K90024,Supplies & Services           ,Services                      ,DF11,Counsel's Fees                          ,"1,000.00",17/05/2016,R,REDACTED
618,Childrens & Education Services,Support for SEN Pupils,Non-Delegated Statements,K90024,Supplies & Services           ,Services                      ,DF14,Doctors and Other Fees                  ,"1,125.00",25/05/2016,R,RUTH JACOBS CHILDRENS THERAPY 
619,Childrens & Education Services,Support for SEN Pupils,Non-Delegated Statements,K90024,Supplies & Services           ,Services                      ,DF14,Doctors and Other Fees                  ,533.32,23/05/2016,R,REDACTED
620,Childrens & Education Services,Support for SEN Pupils,Non-Delegated Statements,K90024,Third Party Payments          ,Other Local Authorities       ,EB48,OLA PAYMENTS-STATEMENTS                 ,"6,676.70",16/06/2016,R,SOUTHFIELDS  ACADEMY          
621,Childrens & Education Services,Support for SEN Pupils,Non-Delegated Statements,K90024,Third Party Payments          ,Other Local Authorities       ,EB50,OLA-Payments - Day Schools              ,"6,344.67",21/06/2016,R,CAREW ACADEMY                 
622,Childrens & Education Services,Support for SEN Pupils,Non-Delegated Statements,K90024,Third Party Payments          ,Other Establishments          ,EG01,Alternative SEN Provision               ,685.00,26/05/2016,R,HA TUTORS LTD                 
623,Childrens & Education Services,Support for SEN Pupils,Non-Delegated Statements,K90024,Third Party Payments          ,Other Establishments          ,EG01,Alternative SEN Provision               ,855.00,26/05/2016,R,HA TUTORS LTD                 
624,Childrens & Education Services,Support for SEN Pupils,Non-Delegated Statements,K90024,Third Party Payments          ,Other Establishments          ,EG01,Alternative SEN Provision               ,"1,008.00",30/04/2016,R,FLEET EDUCATION SERVICES LTD  
625,Childrens & Education Services,Support for SEN Pupils,Non-Delegated Statements,K90024,Third Party Payments          ,Other Establishments          ,EG01,Alternative SEN Provision               ,"1,425.00",26/05/2016,R,HA TUTORS LTD                 
626,Childrens & Education Services,Support for SEN Pupils,Non-Delegated Statements,K90024,Third Party Payments          ,Other Establishments          ,EG01,Alternative SEN Provision               ,"1,710.00",26/05/2016,R,HA TUTORS LTD                 
627,Childrens & Education Services,Support for SEN Pupils,Non-Delegated Statements,K90024,Third Party Payments          ,Other Establishments          ,EG01,Alternative SEN Provision               ,"1,895.00",26/05/2016,R,HA TUTORS LTD                 
628,Childrens & Education Services,Support for SEN Pupils,Non-Delegated Statements,K90024,Third Party Payments          ,Other Establishments          ,EG01,Alternative SEN Provision               ,"2,016.00",31/05/2016,R,FLEET EDUCATION SERVICES LTD  
629,Childrens & Education Services,Support for SEN Pupils,Non-Delegated Statements,K90024,Third Party Payments          ,Other Establishments          ,EG01,Alternative SEN Provision               ,"2,045.00",26/05/2016,R,HA TUTORS LTD                 
630,Childrens & Education Services,Support for SEN Pupils,Non-Delegated Statements,K90024,Third Party Payments          ,Other Establishments          ,EG01,Alternative SEN Provision               ,"2,095.00",26/05/2016,R,HA TUTORS LTD                 
631,Childrens & Education Services,Support for SEN Pupils,Non-Delegated Statements,K90024,Third Party Payments          ,Other Establishments          ,EG01,Alternative SEN Provision               ,"2,305.00",26/05/2016,R,HA TUTORS LTD                 
632,Childrens & Education Services,Support for SEN Pupils,Non-Delegated Statements,K90024,Third Party Payments          ,Other Establishments          ,EG01,Alternative SEN Provision               ,"3,162.50",26/05/2016,R,HA TUTORS LTD                 
633,Childrens & Education Services,Support for SEN Pupils,Non-Delegated Statements,K90024,Third Party Payments          ,Other Establishments          ,EG01,Alternative SEN Provision               ,"2,762.50",03/06/2016,R,REDACTED
634,Childrens & Education Services,Support for SEN Pupils,Non-Delegated Statements,K90024,Third Party Payments          ,Other Establishments          ,EG50,Ind Day Schs Payments                   ,"2,743.00",19/05/2016,R,FRANK BARNES SCHOOL           
635,Childrens & Education Services,Support for SEN Pupils,Non-Delegated Statements,K90024,Third Party Payments          ,Other Establishments          ,EG50,Ind Day Schs Payments                   ,"10,973.00",19/05/2016,R,FRANK BARNES SCHOOL           
636,Childrens & Education Services,Support for SEN Pupils,Non-Delegated Statements,K90024,Third Party Payments          ,Other Establishments          ,EG50,Ind Day Schs Payments                   ,"12,195.12",01/06/2016,R,CRESSEY OASIS EDUCATION       
637,Childrens & Education Services,Support for SEN Pupils,Non-Delegated Statements,K90024,Third Party Payments          ,Other Establishments          ,EG50,Ind Day Schs Payments                   ,"12,345.06",01/06/2016,R,CRESSEY OASIS EDUCATION       
638,Childrens & Education Services,Support for SEN Pupils,Non-Delegated Statements,K90024,Third Party Payments          ,Other Establishments          ,EG50,Ind Day Schs Payments                   ,"12,345.06",01/06/2016,R,CRESSEY OASIS EDUCATION       
639,Childrens & Education Services,Support for SEN Pupils,Non-Delegated Statements,K90024,Third Party Payments          ,Other Establishments          ,EG50,Ind Day Schs Payments                   ,"15,993.60",01/06/2016,R,CRESSEY OASIS EDUCATION       
640,Childrens & Education Services,Support for SEN Pupils,Non-Delegated Statements,K90024,Third Party Payments          ,Other Establishments          ,EG50,Ind Day Schs Payments                   ,"16,466.67",01/06/2016,R,EAGLE HOUSE SCHOOL            
641,Childrens & Education Services,Support for SEN Pupils,Non-Delegated Statements,K90024,Third Party Payments          ,Other Establishments          ,EG50,Ind Day Schs Payments                   ,"16,618.33",01/06/2016,R,EAGLE HOUSE SCHOOL (SUTTON)   
642,Childrens & Education Services,Support for SEN Pupils,Non-Delegated Statements,K90024,Third Party Payments          ,Other Establishments          ,EG50,Ind Day Schs Payments                   ,"16,618.33",01/06/2016,R,EAGLE HOUSE SCHOOL (SUTTON)   
643,Childrens & Education Services,Support for SEN Pupils,Non-Delegated Statements,K90024,Third Party Payments          ,Other Establishments          ,EG50,Ind Day Schs Payments                   ,"16,618.33",01/06/2016,R,EAGLE HOUSE SCHOOL (SUTTON)   
644,Childrens & Education Services,Support for SEN Pupils,Non-Delegated Statements,K90024,Third Party Payments          ,Other Establishments          ,EG50,Ind Day Schs Payments                   ,"17,207.67",01/06/2016,R,EAGLE HOUSE SCHOOL            
645,Childrens & Education Services,Support for SEN Pupils,Non-Delegated Statements,K90024,Third Party Payments          ,Other Establishments          ,EG50,Ind Day Schs Payments                   ,"17,339.14",01/06/2016,R,CRESSEY OASIS EDUCATION       
646,Childrens & Education Services,Support for SEN Pupils,Non-Delegated Statements,K90024,Third Party Payments          ,Other Establishments          ,EG50,Ind Day Schs Payments                   ,"17,631.18",01/06/2016,R,CRESSEY OASIS EDUCATION       
647,Childrens & Education Services,Support for SEN Pupils,Non-Delegated Statements,K90024,Third Party Payments          ,Other Establishments          ,EG50,Ind Day Schs Payments                   ,"18,326.00",01/06/2016,R,CRESSEY OASIS EDUCATION       
648,Childrens & Education Services,Support for SEN Pupils,Non-Delegated Statements,K90024,Third Party Payments          ,Other Establishments          ,EG50,Ind Day Schs Payments                   ,"57,330.35",24/03/2016,R,THE LINK SECONDARY SCHOOL     
649,Childrens & Education Services,Behavioural Support,Sensory Team,K90026,Supplies & Services           ,Services                      ,DF73,Advocacy & Mentoring Service            ,"2,151.80",26/05/2016,R,MERTON VISION                 
650,Childrens & Education Services,Facilitating School Improvemnt,SSQ CORE OFFER (DSG),K90040,Third Party Payments          ,Other Local Authorities       ,EB01,Payments to OLAs                        ,"15,000.00",31/05/2016,R,LONDON BOROUGH OF SUTTON      
651,Childrens & Education Services,Facilitating School Improvemnt,SSQ CORE OFFER - EMAG (DSG),K90041,Supplies & Services           ,Equip Furniture/Materials     ,DA58,Education Materials                     ,"21,643.00",07/06/2016,R,HERTS FOR LEARNING LTD        
652,Childrens & Education Services,Nursery schools,EARLY YEARS NURSERY GRANTS,K90042,Supplies & Services           ,Grants and Subscriptions      ,DJ58,Nursery Grant Payment-3yr olds          ,"1,005.38",29/06/2016,R,REDACTED
653,Childrens & Education Services,Oth U5s Provn Not Prim or Spec,DAVID NICHOLAS CRECHE,K90045,Supplies & Services           ,Equip Furniture/Materials     ,DA70,Milk and Meals                          ,569.10,10/06/2016,R,ISS COLLECTIONS LTD           
654,Childrens & Education Services,Support for SEN Pupils,ART SEN Residential (DSG),K90050,Supplies & Services           ,Services                      ,DF04,Miscellaneous Expenses                  ,"15,000.00",29/03/2016,R,LONDON BOROUGH OF CROYDON     
655,Childrens & Education Services,Support for SEN Pupils,ART SEN Residential (DSG),K90050,Third Party Payments          ,Other Establishments          ,EG51,Ind Resid Schs Payments                 ,"4,369.20",19/05/2016,R,CAMBIAN ASPERGER SYNDROME SERV
656,Childrens & Education Services,Support for SEN Pupils,ART SEN Residential (DSG),K90050,Third Party Payments          ,Other Establishments          ,EG51,Ind Resid Schs Payments                 ,"13,330.00",01/04/2016,R,POTTON HOMES                  
657,Childrens & Education Services,Support for SEN Pupils,ART SEN Residential (DSG),K90050,Third Party Payments          ,Other Establishments          ,EG51,Ind Resid Schs Payments                 ,"21,000.00",06/04/2016,R,FARNEY CLOSE SCHOOL LTD       
658,Childrens & Education Services,Support for SEN Pupils,ART SEN Residential (DSG),K90050,Third Party Payments          ,Other Establishments          ,EG51,Ind Resid Schs Payments                 ,"38,182.67",04/05/2016,R,PRIORS COURT FOUNDATION       
659,Childrens & Education Services,Support for SEN Pupils,ART SEN Residential (DSG),K90050,Third Party Payments          ,Other Establishments          ,EG51,Ind Resid Schs Payments                 ,"50,000.00",24/03/2016,R,ACORN PARK SCHOOL             
660,Childrens & Education Services,Support for SEN Pupils,Non-Maintained Post 16 SEN              ,K90052,Third Party Payments          ,Other Establishments          ,EG53,Ind Specialist Providers                ,"3,101.00",02/02/2016,R,PLUMPTON COLLEGE              
661,Childrens & Education Services,Support for SEN Pupils,Non-Maintained Post 16 SEN              ,K90052,Third Party Payments          ,Other Establishments          ,EG53,Ind Specialist Providers                ,"21,791.98",31/03/2016,R,YOUNG EPILEPSY                
662,Cultural Env Reg&Plan Services,Library DoS not split,Libraries Service-Civic Centre,L50001,Supplies & Services           ,Prntng Stnry Gen Off Exp      ,DE03,Stationery                              ,"1,338.00",18/05/2016,R,SPECTRUM PLASTICS             
663,Cultural Env Reg&Plan Services,Library DoS not split,Libraries Service-Civic Centre,L50001,Supplies & Services           ,Comms and Computing           ,DG04,Postage - General                       ,718.83,31/03/2016,R,AXIELL                        
664,Cultural Env Reg&Plan Services,Library DoS not split,Libraries Service-Civic Centre,L50001,Supplies & Services           ,Comms and Computing           ,DG50,Other IT Expenditure                    ,600.00,01/04/2016,R,TOWNSWEB ARCHIVING LTD        
665,Cultural Env Reg&Plan Services,Library DoS not split,Media Fund,L83081,Supplies & Services           ,Equip Furniture/Materials     ,DA60,Lending                                 ,531.40,12/05/2016,R,REDACTED
666,Cultural Env Reg&Plan Services,Library DoS not split,Media Fund,L83081,Supplies & Services           ,Equip Furniture/Materials     ,DA60,Lending                                 ,561.92,12/05/2016,R,REDACTED
667,Cultural Env Reg&Plan Services,Library DoS not split,Media Fund,L83081,Supplies & Services           ,Equip Furniture/Materials     ,DA60,Lending                                 ,564.31,19/05/2016,R,REDACTED
668,Cultural Env Reg&Plan Services,Library DoS not split,Media Fund,L83081,Supplies & Services           ,Equip Furniture/Materials     ,DA60,Lending                                 ,577.61,19/05/2016,R,REDACTED
669,Cultural Env Reg&Plan Services,Library DoS not split,Media Fund,L83081,Supplies & Services           ,Equip Furniture/Materials     ,DA60,Lending                                 ,588.54,12/05/2016,R,REDACTED
670,Cultural Env Reg&Plan Services,Library DoS not split,Media Fund,L83081,Supplies & Services           ,Equip Furniture/Materials     ,DA60,Lending                                 ,598.29,19/05/2016,R,REDACTED
671,Cultural Env Reg&Plan Services,Library DoS not split,Media Fund,L83081,Supplies & Services           ,Equip Furniture/Materials     ,DA60,Lending                                 ,606.10,12/05/2016,R,REDACTED
672,Cultural Env Reg&Plan Services,Library DoS not split,Media Fund,L83081,Supplies & Services           ,Equip Furniture/Materials     ,DA60,Lending                                 ,612.64,12/05/2016,R,REDACTED
673,Cultural Env Reg&Plan Services,Library DoS not split,Media Fund,L83081,Supplies & Services           ,Equip Furniture/Materials     ,DA60,Lending                                 ,619.03,19/05/2016,R,REDACTED
674,Cultural Env Reg&Plan Services,Library DoS not split,Media Fund,L83081,Supplies & Services           ,Equip Furniture/Materials     ,DA60,Lending                                 ,634.66,19/05/2016,R,REDACTED
675,Cultural Env Reg&Plan Services,Library DoS not split,Media Fund,L83081,Supplies & Services           ,Equip Furniture/Materials     ,DA60,Lending                                 ,645.19,19/05/2016,R,REDACTED
676,Cultural Env Reg&Plan Services,Library DoS not split,Media Fund,L83081,Supplies & Services           ,Equip Furniture/Materials     ,DA60,Lending                                 ,645.67,19/05/2016,R,REDACTED
677,Cultural Env Reg&Plan Services,Library DoS not split,Media Fund,L83081,Supplies & Services           ,Equip Furniture/Materials     ,DA60,Lending                                 ,645.73,19/05/2016,R,REDACTED
678,Cultural Env Reg&Plan Services,Library DoS not split,Media Fund,L83081,Supplies & Services           ,Equip Furniture/Materials     ,DA60,Lending                                 ,652.05,19/05/2016,R,REDACTED
679,Cultural Env Reg&Plan Services,Library DoS not split,Media Fund,L83081,Supplies & Services           ,Equip Furniture/Materials     ,DA60,Lending                                 ,656.50,19/05/2016,R,REDACTED
680,Cultural Env Reg&Plan Services,Library DoS not split,Media Fund,L83081,Supplies & Services           ,Equip Furniture/Materials     ,DA60,Lending                                 ,672.92,12/05/2016,R,REDACTED
681,Cultural Env Reg&Plan Services,Library DoS not split,Media Fund,L83081,Supplies & Services           ,Equip Furniture/Materials     ,DA60,Lending                                 ,678.05,12/05/2016,R,REDACTED
682,Cultural Env Reg&Plan Services,Library DoS not split,Media Fund,L83081,Supplies & Services           ,Equip Furniture/Materials     ,DA60,Lending                                 ,683.25,19/05/2016,R,REDACTED
683,Cultural Env Reg&Plan Services,Library DoS not split,Media Fund,L83081,Supplies & Services           ,Equip Furniture/Materials     ,DA60,Lending                                 ,689.44,12/05/2016,R,REDACTED
684,Cultural Env Reg&Plan Services,Library DoS not split,Media Fund,L83081,Supplies & Services           ,Equip Furniture/Materials     ,DA60,Lending                                 ,690.22,19/05/2016,R,REDACTED
685,Cultural Env Reg&Plan Services,Library DoS not split,Media Fund,L83081,Supplies & Services           ,Equip Furniture/Materials     ,DA60,Lending                                 ,694.04,12/05/2016,R,REDACTED
686,Cultural Env Reg&Plan Services,Library DoS not split,Media Fund,L83081,Supplies & Services           ,Equip Furniture/Materials     ,DA60,Lending                                 ,694.56,12/05/2016,R,REDACTED
687,Cultural Env Reg&Plan Services,Library DoS not split,Media Fund,L83081,Supplies & Services           ,Equip Furniture/Materials     ,DA88,Childrens Materials,621.83,20/05/2016,R,PETERS LTD                    
688,Cultural Env Reg&Plan Services,Library DoS not split,Media Fund,L83081,Supplies & Services           ,Equip Furniture/Materials     ,DA88,Childrens Materials,640.16,20/05/2016,R,PETERS LTD                    
689,Cultural Env Reg&Plan Services,Library DoS not split,Media Fund,L83081,Supplies & Services           ,Equip Furniture/Materials     ,DA88,Childrens Materials,710.69,20/05/2016,R,PETERS LTD                    
690,Cultural Env Reg&Plan Services,Library DoS not split,Media Fund,L83081,Supplies & Services           ,Equip Furniture/Materials     ,DA88,Childrens Materials,719.84,20/05/2016,R,PETERS LTD                    
691,Cultural Env Reg&Plan Services,Library DoS not split,Media Fund,L83081,Supplies & Services           ,Equip Furniture/Materials     ,DA88,Childrens Materials,890.17,20/05/2016,R,PETERS LTD                    
692,Cultural Env Reg&Plan Services,Library DoS not split,Media Fund,L83081,Supplies & Services           ,Equip Furniture/Materials     ,DA88,Childrens Materials,895.79,20/05/2016,R,PETERS LTD                    
693,Cultural Env Reg&Plan Services,Library DoS not split,Media Fund,L83081,Supplies & Services           ,Comms and Computing           ,DG04,Postage - General                       ,"1,227.20",31/03/2016,R,EXCEL GROUP SERVICES          
694,Cultural Env Reg&Plan Services,Library DoS not split,Media Fund,L83081,Supplies & Services           ,Comms and Computing           ,DG04,Postage - General                       ,"1,534.00",31/05/2016,R,EXCEL GROUP SERVICES          
695,Cultural Env Reg&Plan Services,Library DoS not split,Raynes Park Library,L84083,Premises Related Expenditure  ,Rents                         ,BC01,Miscellaneous Rents                     ,643.00,01/03/2016,R,FIRST PORT RETIREMENT PROPERTY
696,Cultural Env Reg&Plan Services,Library DoS not split,Raynes Park Library,L84083,Premises Related Expenditure  ,Rents                         ,BC01,Miscellaneous Rents                     ,705.50,01/03/2011,R,FIRST PORT RETIREMENT PROPERTY
697,Cultural Env Reg&Plan Services,Library DoS not split,Raynes Park Library,L84083,Premises Related Expenditure  ,Rents                         ,BC01,Miscellaneous Rents                     ,969.56,01/09/2011,R,FIRST PORT RETIREMENT PROPERTY
698,Cultural Env Reg&Plan Services,Cultural Codes No Longer Used,Description lookup failed,L85093,Third Party Payments          ,Private Contractors           ,EH01,Miscellaneous Agency Services           ,"4,125.00",03/06/2016,R,TOWNSWEB ARCHIVING LTD        
699,Housing Services,Bed / breakfast accommodation,TEMPORARY ACCOMMODATION,N47160,Third Party Payments          ,Private Contractors           ,EH01,Miscellaneous Agency Services           ,825.00,31/05/2016,R,ASSETGROVE LETTINGS LTD       
700,Housing Services,Bed / breakfast accommodation,TEMPORARY ACCOMMODATION,N47160,Third Party Payments          ,Private Contractors           ,EH01,Miscellaneous Agency Services           ,"1,457.00",31/05/2016,R,ASSETGROVE LETTINGS LTD       
701,Housing Services,Bed / breakfast accommodation,TEMPORARY ACCOMMODATION,N47160,Third Party Payments          ,Private Contractors           ,EH01,Miscellaneous Agency Services           ,"1,457.00",31/05/2016,R,ASSETGROVE LETTINGS LTD       
702,Housing Services,Bed / breakfast accommodation,TEMPORARY ACCOMMODATION,N47160,Third Party Payments          ,Private Contractors           ,EH01,Miscellaneous Agency Services           ,"1,457.00",31/05/2016,R,ASSETGROVE LETTINGS LTD       
703,Housing Services,Bed / breakfast accommodation,TEMPORARY ACCOMMODATION,N47160,Third Party Payments          ,Private Contractors           ,EH01,Miscellaneous Agency Services           ,"1,457.00",31/05/2016,R,ASSETGROVE LETTINGS LTD       
704,Housing Services,Bed / breakfast accommodation,TEMPORARY ACCOMMODATION,N47160,Third Party Payments          ,Private Contractors           ,EH01,Miscellaneous Agency Services           ,"1,457.00",31/05/2016,R,ASSETGROVE LETTINGS LTD       
705,Housing Services,Bed / breakfast accommodation,TEMPORARY ACCOMMODATION,N47160,Third Party Payments          ,Private Contractors           ,EH01,Miscellaneous Agency Services           ,"2,015.00",01/06/2016,R,ASSETGROVE LETTINGS LTD       
706,Housing Services,Bed / breakfast accommodation,TEMPORARY ACCOMMODATION,N47160,Third Party Payments          ,Private Contractors           ,EH01,Miscellaneous Agency Services           ,600.00,01/06/2016,R,LONDON RENTALS AND SALES LTD  
707,Housing Services,Bed / breakfast accommodation,TEMPORARY ACCOMMODATION,N47160,Third Party Payments          ,Private Contractors           ,EH01,Miscellaneous Agency Services           ,720.00,31/05/2016,R,EURO HOTELS (HOUNSLOW)        
708,Housing Services,Bed / breakfast accommodation,TEMPORARY ACCOMMODATION,N47160,Third Party Payments          ,Private Contractors           ,EH01,Miscellaneous Agency Services           ,930.00,31/05/2016,R,EURO HOTELS (HOUNSLOW)        
709,Housing Services,Bed / breakfast accommodation,TEMPORARY ACCOMMODATION,N47160,Third Party Payments          ,Private Contractors           ,EH01,Miscellaneous Agency Services           ,990.00,31/05/2016,R,FINEFAIR LTD                  
710,Housing Services,Bed / breakfast accommodation,TEMPORARY ACCOMMODATION,N47160,Third Party Payments          ,Private Contractors           ,EH01,Miscellaneous Agency Services           ,"1,085.00",31/05/2016,R,EURO HOTELS (HOUNSLOW)        
711,Housing Services,Bed / breakfast accommodation,TEMPORARY ACCOMMODATION,N47160,Third Party Payments          ,Private Contractors           ,EH01,Miscellaneous Agency Services           ,"1,085.00",31/05/2016,R,EURO HOTELS (HOUNSLOW)        
712,Housing Services,Bed / breakfast accommodation,TEMPORARY ACCOMMODATION,N47160,Third Party Payments          ,Private Contractors           ,EH01,Miscellaneous Agency Services           ,"1,085.00",31/05/2016,R,EURO HOTELS (HOUNSLOW)        
713,Housing Services,Bed / breakfast accommodation,TEMPORARY ACCOMMODATION,N47160,Third Party Payments          ,Private Contractors           ,EH01,Miscellaneous Agency Services           ,"1,085.00",31/05/2016,R,EURO HOTELS (HOUNSLOW)        
714,Housing Services,Bed / breakfast accommodation,TEMPORARY ACCOMMODATION,N47160,Third Party Payments          ,Private Contractors           ,EH01,Miscellaneous Agency Services           ,"1,085.00",31/05/2016,R,EURO HOTELS (HOUNSLOW)        
715,Housing Services,Bed / breakfast accommodation,TEMPORARY ACCOMMODATION,N47160,Third Party Payments          ,Private Contractors           ,EH01,Miscellaneous Agency Services           ,"1,116.00",31/05/2016,R,SW LONDON LETTINGS LTD        
716,Housing Services,Bed / breakfast accommodation,TEMPORARY ACCOMMODATION,N47160,Third Party Payments          ,Private Contractors           ,EH01,Miscellaneous Agency Services           ,"1,116.00",31/05/2016,R,SW LONDON LETTINGS LTD        
717,Housing Services,Bed / breakfast accommodation,TEMPORARY ACCOMMODATION,N47160,Third Party Payments          ,Private Contractors           ,EH01,Miscellaneous Agency Services           ,"1,116.00",31/05/2016,R,SW LONDON LETTINGS LTD        
718,Housing Services,Bed / breakfast accommodation,TEMPORARY ACCOMMODATION,N47160,Third Party Payments          ,Private Contractors           ,EH01,Miscellaneous Agency Services           ,"1,170.00",01/04/2016,R,FASTMOVE PROPERTIES           
719,Housing Services,Bed / breakfast accommodation,TEMPORARY ACCOMMODATION,N47160,Third Party Payments          ,Private Contractors           ,EH01,Miscellaneous Agency Services           ,"1,200.00",01/04/2016,R,FASTMOVE PROPERTIES           
720,Housing Services,Bed / breakfast accommodation,TEMPORARY ACCOMMODATION,N47160,Third Party Payments          ,Private Contractors           ,EH01,Miscellaneous Agency Services           ,"1,209.00",01/05/2016,R,FASTMOVE PROPERTIES           
721,Housing Services,Bed / breakfast accommodation,TEMPORARY ACCOMMODATION,N47160,Third Party Payments          ,Private Contractors           ,EH01,Miscellaneous Agency Services           ,"1,209.00",01/03/2016,R,FASTMOVE PROPERTIES           
722,Housing Services,Bed / breakfast accommodation,TEMPORARY ACCOMMODATION,N47160,Third Party Payments          ,Private Contractors           ,EH01,Miscellaneous Agency Services           ,"1,240.00",01/05/2016,R,FASTMOVE PROPERTIES           
723,Housing Services,Bed / breakfast accommodation,TEMPORARY ACCOMMODATION,N47160,Third Party Payments          ,Private Contractors           ,EH01,Miscellaneous Agency Services           ,"1,240.00",01/05/2016,R,FASTMOVE PROPERTIES           
724,Housing Services,Bed / breakfast accommodation,TEMPORARY ACCOMMODATION,N47160,Third Party Payments          ,Private Contractors           ,EH01,Miscellaneous Agency Services           ,"1,240.00",01/03/2016,R,FASTMOVE PROPERTIES           
725,Housing Services,Bed / breakfast accommodation,TEMPORARY ACCOMMODATION,N47160,Third Party Payments          ,Private Contractors           ,EH01,Miscellaneous Agency Services           ,"1,271.00",31/05/2016,R,SW LONDON LETTINGS LTD        
726,Housing Services,Bed / breakfast accommodation,TEMPORARY ACCOMMODATION,N47160,Third Party Payments          ,Private Contractors           ,EH01,Miscellaneous Agency Services           ,"1,581.00",31/05/2016,R,EURO HOTELS (HOUNSLOW)        
727,Housing Services,Bed / breakfast accommodation,TEMPORARY ACCOMMODATION,N47160,Third Party Payments          ,Private Contractors           ,EH01,Miscellaneous Agency Services           ,"1,605.00",01/04/2016,R,FASTMOVE PROPERTIES           
728,Housing Services,Bed / breakfast accommodation,TEMPORARY ACCOMMODATION,N47160,Third Party Payments          ,Private Contractors           ,EH01,Miscellaneous Agency Services           ,"1,658.50",01/05/2016,R,FASTMOVE PROPERTIES           
729,Housing Services,Bed / breakfast accommodation,TEMPORARY ACCOMMODATION,N47160,Third Party Payments          ,Private Contractors           ,EH01,Miscellaneous Agency Services           ,"1,658.50",01/03/2016,R,FASTMOVE PROPERTIES           
730,Housing Services,Bed / breakfast accommodation,TEMPORARY ACCOMMODATION,N47160,Third Party Payments          ,Private Contractors           ,EH01,Miscellaneous Agency Services           ,"1,658.50",31/05/2016,R,SW LONDON LETTINGS LTD        
731,Housing Services,Bed / breakfast accommodation,TEMPORARY ACCOMMODATION,N47160,Third Party Payments          ,Private Contractors           ,EH01,Miscellaneous Agency Services           ,"1,658.50",31/05/2016,R,SW LONDON LETTINGS LTD        
732,Housing Services,Bed / breakfast accommodation,TEMPORARY ACCOMMODATION,N47160,Third Party Payments          ,Private Contractors           ,EH01,Miscellaneous Agency Services           ,"1,658.50",31/05/2016,R,SW LONDON LETTINGS LTD        
733,Housing Services,Bed / breakfast accommodation,TEMPORARY ACCOMMODATION,N47160,Third Party Payments          ,Private Contractors           ,EH01,Miscellaneous Agency Services           ,"1,658.50",31/05/2016,R,SW LONDON LETTINGS LTD        
734,Housing Services,Bed / breakfast accommodation,TEMPORARY ACCOMMODATION,N47160,Third Party Payments          ,Private Contractors           ,EH01,Miscellaneous Agency Services           ,"1,658.50",31/05/2016,R,SW LONDON LETTINGS LTD        
735,Housing Services,Bed / breakfast accommodation,TEMPORARY ACCOMMODATION,N47160,Third Party Payments          ,Private Contractors           ,EH01,Miscellaneous Agency Services           ,"1,658.50",31/05/2016,R,SW LONDON LETTINGS LTD        
736,Housing Services,Bed / breakfast accommodation,TEMPORARY ACCOMMODATION,N47160,Third Party Payments          ,Private Contractors           ,EH01,Miscellaneous Agency Services           ,"1,658.50",31/05/2016,R,SW LONDON LETTINGS LTD        
737,Housing Services,Bed / breakfast accommodation,TEMPORARY ACCOMMODATION,N47160,Third Party Payments          ,Private Contractors           ,EH01,Miscellaneous Agency Services           ,"1,658.50",31/05/2016,R,SW LONDON LETTINGS LTD        
738,Housing Services,Bed / breakfast accommodation,TEMPORARY ACCOMMODATION,N47160,Third Party Payments          ,Private Contractors           ,EH01,Miscellaneous Agency Services           ,"1,805.25",01/02/2016,R,E HOMES AND SHELTERS          
739,Housing Services,Bed / breakfast accommodation,TEMPORARY ACCOMMODATION,N47160,Third Party Payments          ,Private Contractors           ,EH01,Miscellaneous Agency Services           ,"1,867.50",30/04/2016,R,E HOMES AND SHELTERS          
740,Housing Services,Bed / breakfast accommodation,TEMPORARY ACCOMMODATION,N47160,Third Party Payments          ,Private Contractors           ,EH01,Miscellaneous Agency Services           ,"2,015.00",31/05/2016,R,EURO HOTELS (HOUNSLOW)        
741,Housing Services,Bed / breakfast accommodation,TEMPORARY ACCOMMODATION,N47160,Third Party Payments          ,Private Contractors           ,EH01,Miscellaneous Agency Services           ,"2,100.00",01/04/2016,R,FASTMOVE PROPERTIES           
742,Housing Services,Bed / breakfast accommodation,TEMPORARY ACCOMMODATION,N47160,Third Party Payments          ,Private Contractors           ,EH01,Miscellaneous Agency Services           ,"2,170.00",01/05/2016,R,FASTMOVE PROPERTIES           
743,Housing Services,Bed / breakfast accommodation,TEMPORARY ACCOMMODATION,N47160,Third Party Payments          ,Private Contractors           ,EH01,Miscellaneous Agency Services           ,"2,170.00",01/03/2016,R,FASTMOVE PROPERTIES           
744,Housing Services,Bed / breakfast accommodation,TEMPORARY ACCOMMODATION,N47160,Third Party Payments          ,Private Contractors           ,EH01,Miscellaneous Agency Services           ,"2,325.00",31/05/2016,R,SW LONDON LETTINGS LTD        
745,Housing Services,Bed / breakfast accommodation,TEMPORARY ACCOMMODATION,N47160,Third Party Payments          ,Private Contractors           ,EH01,Miscellaneous Agency Services           ,"3,521.67",31/05/2016,R,E HOMES AND SHELTERS          
746,Housing Services,Bed / breakfast accommodation,TEMPORARY ACCOMMODATION,N47160,Third Party Payments          ,Private Contractors           ,EH01,Miscellaneous Agency Services           ,"4,557.00",01/04/2016,R,SK HOUSING LTD                
747,Housing Services,Bed / breakfast accommodation,TEMPORARY ACCOMMODATION,N47160,Third Party Payments          ,Private Contractors           ,EH01,Miscellaneous Agency Services           ,"4,557.00",01/06/2016,R,SK HOUSING LTD                
748,Housing Services,Bed / breakfast accommodation,TEMPORARY ACCOMMODATION,N47160,Third Party Payments          ,Private Contractors           ,EH01,Miscellaneous Agency Services           ,"7,409.00",31/05/2016,R,STENFORD PROPERTY LTD         
749,Housing Services,Bed / breakfast accommodation,TEMPORARY ACCOMMODATION,N47160,Transfer Payments             ,Housing Benefits              ,FA12,Rent Deposits                           ,"8,129.00",01/06/2016,R,RENT CONNECT LLP              
750,Housing Services,Bed / breakfast accommodation,Homelessness Prevention,N47171,Transfer Payments             ,Housing Benefits              ,FA11,Sanctuary Scheme Rent Rescue            ,812.41,21/06/2016,R,CIRCLE HOUSING MERTON PRIORY  
751,Housing Services,Bed / breakfast accommodation,Homelessness Prevention,N47171,Transfer Payments             ,Housing Benefits              ,FA11,Sanctuary Scheme Rent Rescue            ,"1,725.00",28/06/2016,R,WANDLE HOUSING ASSOCIATION LTD
752,Housing Services,Bed / breakfast accommodation,Homelessness Prevention,N47171,Transfer Payments             ,Housing Benefits              ,FA12,Rent Deposits                           ,"1,350.00",14/06/2016,R,COUNTY PRIVATE CLIENT LTD     
753,Housing Services,Bed / breakfast accommodation,Homelessness Prevention,N47171,Transfer Payments             ,Housing Benefits              ,FA12,Rent Deposits                           ,"1,800.00",10/06/2016,R,FILEY PROPERTIES              
754,Housing Services,Bed / breakfast accommodation,Homelessness Prevention,N47171,Transfer Payments             ,Housing Benefits              ,FA12,Rent Deposits                           ,"2,000.00",16/06/2016,R,REDACTED
755,Housing Services,Bed / breakfast accommodation,Homelessness Prevention,N47171,Transfer Payments             ,Housing Benefits              ,FA12,Rent Deposits                           ,"2,000.00",22/06/2016,R,REDACTED
756,Housing Services,Bed / breakfast accommodation,Homelessness Prevention,N47171,Transfer Payments             ,Housing Benefits              ,FA12,Rent Deposits                           ,"2,476.24",17/06/2016,R,REDACTED
757,Housing Services,Bed / breakfast accommodation,Homelessness Prevention,N47171,Transfer Payments             ,Housing Benefits              ,FA12,Rent Deposits                           ,"4,000.00",15/06/2016,R,REDACTED
758,Housing Services,Bed / breakfast accommodation,Homelessness Prevention,N47171,Transfer Payments             ,Housing Benefits              ,FA12,Rent Deposits                           ,"4,000.00",15/06/2016,R,REDACTED
759,Housing Services,Bed / breakfast accommodation,Homelessness Prevention,N47171,Transfer Payments             ,Housing Benefits              ,FA12,Rent Deposits                           ,"4,000.00",15/06/2016,R,REDACTED
760,Housing Services,Hsg Dept Supp Staff & Costs,Housing Needs & Enablg-central,N51000,Supplies & Services           ,Services                      ,DF14,Doctors and Other Fees                  ,"1,119.39",01/04/2016,R,REDACTED
761,Housing Services,Hsg Dept Supp Staff & Costs,Housing Needs & Enablg-central,N51000,Supplies & Services           ,Services                      ,DF14,Doctors and Other Fees                  ,"1,119.39",04/05/2016,R,REDACTED
762,Housing Services,Hsg Dept Supp Staff & Costs,Housing Needs & Enablg-central,N51000,Supplies & Services           ,Services                      ,DF14,Doctors and Other Fees                  ,"1,119.39",01/06/2016,R,REDACTED
763,Housing Services,Hsg Dept Supp Staff & Costs,Housing Needs & Enablg-central,N51000,Supplies & Services           ,Grants and Subscriptions      ,DJ04,Subscriptions                           ,583.33,09/06/2016,R,GREATER LONDON AUTHORITY      
764,Highways & Transport Services,Saf mtc prin/oth rds not split,Highways GM Contract                    ,P04006,Premises Related Expenditure  ,Ground Maintenance Costs      ,BL50,Nature Conservation                     ,675.00,13/04/2016,R,BARKLANDS TREE SPECIALISTS    
765,Highways & Transport Services,Saf mtc prin/oth rds not split,Highways GM Contract                    ,P04006,Premises Related Expenditure  ,Ground Maintenance Costs      ,BL50,Nature Conservation                     ,"4,796.92",13/04/2016,R,BARKLANDS TREE SPECIALISTS    
766,Highways & Transport Services,Saf mtc prin/oth rds not split,Highways GM Contract                    ,P04006,Premises Related Expenditure  ,Ground Maintenance Costs      ,BL50,Nature Conservation                     ,"7,837.50",13/04/2016,R,BARKLANDS TREE SPECIALISTS    
767,Cultural Env Reg&Plan Services,Parks & Open Spaces,Park Utilities                          ,P04007,Premises Related Expenditure  ,Energy Costs                  ,BB03,Gas (incl. Butane)                      ,536.47,03/06/2016,R,GAZPROM MARKETING&TRADING LTD 
768,Cultural Env Reg&Plan Services,Parks & Open Spaces,Park Utilities                          ,P04007,Premises Related Expenditure  ,Energy Costs                  ,BB03,Gas (incl. Butane)                      ,713.60,19/05/2016,R,GAZPROM MARKETING&TRADING LTD 
769,Cultural Env Reg&Plan Services,Sports Dev & Community Rec,OLYMPICS&PARA LOOK&FEEL FUND,P04810,Third Party Payments          ,Private Contractors           ,EH02,Miscellaneous Hired Services            ,"4,486.42",21/06/2016,R,FULHAM FOOTBALL CLUB FOUNDAT. 
770,Cultural Env Reg&Plan Services,Sports Dev & Community Rec,OLYMPICS&PARA LOOK&FEEL FUND,P04810,Third Party Payments          ,Private Contractors           ,EH02,Miscellaneous Hired Services            ,"4,867.42",28/04/2016,R,FULHAM FOOTBALL CLUB FOUNDAT. 
771,Cultural Env Reg&Plan Services,Parks & Open Spaces,"Pks,Rec Grds (Unloc)",P05005,Premises Related Expenditure  ,RepairsAlterations&MtceOfBldgs,BA01,DDM - General Building                  ,680.00,27/04/2016,R,TAYLOR BUILDING COMPANY LTD   
772,Cultural Env Reg&Plan Services,Parks & Open Spaces,"Pks,Rec Grds (Unloc)",P05005,Premises Related Expenditure  ,RepairsAlterations&MtceOfBldgs,BA01,DDM - General Building                  ,"3,690.00",14/06/2016,R,TAYLOR BUILDING COMPANY LTD   
773,Cultural Env Reg&Plan Services,Parks & Open Spaces,"Pks,Rec Grds (Unloc)",P05005,Premises Related Expenditure  ,RepairsAlterations&MtceOfBldgs,BA06,REPAIRS & MAINTENANCE GENERAL           ,"1,645.00",23/06/2016,R,JUST METAL UK LTD             
774,Cultural Env Reg&Plan Services,Parks & Open Spaces,"Pks,Rec Grds (Unloc)",P05005,Premises Related Expenditure  ,RepairsAlterations&MtceOfBldgs,BA06,REPAIRS & MAINTENANCE GENERAL           ,"3,450.00",17/06/2016,R,USTIGATE LTD                  
775,Cultural Env Reg&Plan Services,Parks & Open Spaces,"Pks,Rec Grds (Unloc)",P05005,Premises Related Expenditure  ,RepairsAlterations&MtceOfBldgs,BA06,REPAIRS & MAINTENANCE GENERAL           ,"4,038.17",17/06/2016,R,USTIGATE LTD                  
776,Cultural Env Reg&Plan Services,Parks & Open Spaces,"Pks,Rec Grds (Unloc)",P05005,Premises Related Expenditure  ,Ground Maintenance Costs      ,BL51,Playground Maintenance                  ,"1,373.40",03/06/2016,R,MELCOURT INDUSTRIES LTD       
777,Cultural Env Reg&Plan Services,Parks & Open Spaces,Morden Rec Ground,P05031,Supplies & Services           ,Prntng Stnry Gen Off Exp      ,DE22,Marketing                               ,995.00,08/06/2016,R,TIM MARTYN                    
778,Cultural Env Reg&Plan Services,Sports Dev & Community Rec,Leisure Development,P05068,Third Party Payments          ,Private Contractors           ,EH02,Miscellaneous Hired Services            ,540.00,13/06/2016,R,RIDGWAY STABLES               
779,Cultural Env Reg&Plan Services,Parks & Open Spaces,Wimbledon Tennis Fortnight,P05096,Customer and client receipts  ,Charges                       ,RC66,Car Park Chrges S                       ,"3,400.00",09/06/2016,R,REDACTED
780,Cultural Env Reg&Plan Services,Parks & Open Spaces,Events & Entertainments - Gen,P05102,Supplies & Services           ,Expenses                      ,DH10,Entertainment Licences                  ,"1,715.73",21/06/2016,R,PRS FOR MUSIC                 
781,Cultural Env Reg&Plan Services,Parks & Open Spaces,Mitcham Parks,P05109,Premises Related Expenditure  ,Ground Maintenance Costs      ,BL03,Maintenance of Grounds                  ,"7,548.06",20/06/2016,R,BOVERTON NURSERIES LTD        
782,Cultural Env Reg&Plan Services,Parks & Open Spaces,Mitcham Parks,P05109,Supplies & Services           ,Equip Furniture/Materials     ,DA01,Equipment - R & M                       ,"2,951.04",02/06/2016,R,SPALDINGS (UK) LTD            
783,Cultural Env Reg&Plan Services,Parks & Open Spaces,Mitcham Parks,P05109,Supplies & Services           ,Equip Furniture/Materials     ,DA04,Materials                               ,"2,623.50",23/05/2016,R,RIGBY TAYLOR LTD              
784,Cultural Env Reg&Plan Services,Parks & Open Spaces,Mitcham Parks,P05109,Supplies & Services           ,Equip Furniture/Materials     ,DA04,Materials                               ,"3,461.50",07/04/2016,R,RIGBY TAYLOR LTD              
785,Cultural Env Reg&Plan Services,Parks & Open Spaces,Wimbledon Parks,P05111,Premises Related Expenditure  ,Rents                         ,BC01,Miscellaneous Rents                     ,666.34,25/05/2016,R,TRANSPORT TRADING LTD PROP A/C
786,Cultural Env Reg&Plan Services,Parks & Open Spaces,Wimbledon Parks,P05111,Premises Related Expenditure  ,Cleaning and Domestic Supplies,BH03,Cleaning Services                       ,"(1,167.29)",08/04/2016,R,BIRKIN CLEANING SERVICES LTD  
787,Cultural Env Reg&Plan Services,Parks & Open Spaces,Wimbledon Parks,P05111,Premises Related Expenditure  ,Cleaning and Domestic Supplies,BH03,Cleaning Services                       ,"1,167.29",11/09/2015,R,BIRKIN CLEANING SERVICES LTD  
788,Cultural Env Reg&Plan Services,Parks & Open Spaces,Wimbledon Parks,P05111,Premises Related Expenditure  ,Cleaning and Domestic Supplies,BH03,Cleaning Services                       ,"5,088.00",11/09/2015,R,BIRKIN CLEANING SERVICES LTD  
789,Cultural Env Reg&Plan Services,Parks & Open Spaces,Wimbledon Parks,P05111,Supplies & Services           ,Equip Furniture/Materials     ,DA09,Equip-Purchases                         ,"2,857.95",06/06/2016,R,LANDSCAPE SUPPLY COMPANY      
790,Cultural Env Reg&Plan Services,Parks & Open Spaces,Mitcham Carnival                        ,P05122,Supplies & Services           ,Equip Furniture/Materials     ,DA03,Hire of Equipment                       ,"2,000.00",12/06/2016,R,RADIANCE PRODUCTION           
791,Cultural Env Reg&Plan Services,Open Spaces Tsp Plant W/S HA,"Trans,Plnt WHA(Unl)",P08110,Transport Related Expenditure ,Direct Transport Costs        ,CA01,Petrol Derv & Oil                       ,"2,453.40",27/05/2016,R,HALL FUELS                    
792,Cultural Env Reg&Plan Services,Cemeteries,London Road Cemetery,P10128,Premises Related Expenditure  ,Ground Maintenance Costs      ,BL03,Maintenance of Grounds                  ,600.00,06/06/2016,R,WIMBLEDON TREE SURGEONS       
793,Cultural Env Reg&Plan Services,Arts Development & Support,Arts (General Funding),P14172,Supplies & Services           ,Expenses                      ,DH50,Special Projects                        ,560.00,11/06/2016,R,REDACTED
794,Cultural Env Reg&Plan Services,Arts Development & Support,Arts (General Funding),P14172,Third Party Payments          ,Private Contractors           ,EH02,Miscellaneous Hired Services            ,"3,000.00",11/06/2016,R,HUNG & DISTILLED              
795,Cultural Env Reg&Plan Services,Arts Development & Support,Arts (General Funding),P14172,Third Party Payments          ,Private Contractors           ,EH02,Miscellaneous Hired Services            ,"1,500.00",12/06/2016,R,REDACTED
796,Cultural Env Reg&Plan Services,Arts Development & Support,Cultural Diversity Fund,P14173,Supplies & Services           ,Expenses                      ,DH50,Special Projects                        ,"1,183.70",10/06/2016,R,SMIDDEREENS                   
797,Cultural Env Reg&Plan Services,Indoor Sports & Rec,Clnt Offrs-CivicCntr,P17203,Premises Related Expenditure  ,Energy Costs                  ,BB02,Electricity                             ,"1,078.21",07/06/2016,R,SCOTTISH POWER                
798,Cultural Env Reg&Plan Services,Indoor Sports & Rec,Clnt Offrs-CivicCntr,P17203,Premises Related Expenditure  ,Energy Costs                  ,BB02,Electricity                             ,"3,540.50",07/06/2016,R,SCOTTISH POWER                
799,Cultural Env Reg&Plan Services,Indoor Sports & Rec,Clnt Offrs-CivicCntr,P17203,Premises Related Expenditure  ,Energy Costs                  ,BB02,Electricity                             ,"7,793.66",07/06/2016,R,SCOTTISH POWER                
800,Cultural Env Reg&Plan Services,Indoor Sports & Rec,Clnt Offrs-CivicCntr,P17203,Premises Related Expenditure  ,Energy Costs                  ,BB03,Gas (incl. Butane)                      ,"2,122.08",03/06/2016,R,GAZPROM MARKETING&TRADING LTD 
801,Cultural Env Reg&Plan Services,Indoor Sports & Rec,Clnt Offrs-CivicCntr,P17203,Premises Related Expenditure  ,Energy Costs                  ,BB03,Gas (incl. Butane)                      ,"2,390.63",19/05/2016,R,GAZPROM MARKETING&TRADING LTD 
802,Cultural Env Reg&Plan Services,Indoor Sports & Rec,Clnt Offrs-CivicCntr,P17203,Premises Related Expenditure  ,Energy Costs                  ,BB03,Gas (incl. Butane)                      ,"2,659.55",03/06/2016,R,GAZPROM MARKETING&TRADING LTD 
803,Cultural Env Reg&Plan Services,Indoor Sports & Rec,Clnt Offrs-CivicCntr,P17203,Premises Related Expenditure  ,Energy Costs                  ,BB03,Gas (incl. Butane)                      ,"2,894.03",03/06/2016,R,GAZPROM MARKETING&TRADING LTD 
804,Cultural Env Reg&Plan Services,Indoor Sports & Rec,Clnt Offrs-CivicCntr,P17203,Premises Related Expenditure  ,Energy Costs                  ,BB03,Gas (incl. Butane)                      ,"3,701.77",19/05/2016,R,GAZPROM MARKETING&TRADING LTD 
805,Cultural Env Reg&Plan Services,Indoor Sports & Rec,Clnt Offrs-CivicCntr,P17203,Premises Related Expenditure  ,Energy Costs                  ,BB03,Gas (incl. Butane)                      ,"7,476.97",19/05/2016,R,GAZPROM MARKETING&TRADING LTD 
806,,,Mtchm Cmmon Consvtors,W0000W,Premises Related Expenditure  ,Ground Maintenance Costs      ,BL03,Maintenance of Grounds                  ,500.00,10/06/2016,R,LITTLE OAK TREE CARE          
807,Childrens & Education Services,CS - Commiss'ing & Social Work,CH Central Services,W1AA00,Employees                     ,Direct Employee Expenses      ,AA17,Agency Staff & Casual Paymts            ,"5,049.00",16/06/2016,R,REDACTED
808,Childrens & Education Services,CS - Commiss'ing & Social Work,CH Central Services,W1AA00,Employees                     ,Direct Employee Expenses      ,AA17,Agency Staff & Casual Paymts            ,"5,287.05",23/06/2016,R,REDACTED
809,Childrens & Education Services,CS - Commiss'ing & Social Work,CH Central Services,W1AA00,Employees                     ,Direct Employee Expenses      ,AA17,Agency Staff & Casual Paymts            ,"6,448.95",18/05/2016,R,REDACTED
810,Adult Social Care,CS-Commissioning & Social Work,SD-Student Sup/UniFees/PracTch,W1BA03,Supplies & Services           ,Services                      ,DF03,Consultants                             ,"4,500.00",11/05/2016,R,REDACTED
811,Adult Social Care,CS-Commissioning & Social Work,SD NVQ PROGRAMME,W1BA06,Employees                     ,Indirect Employee Expenses    ,AB57,EXTERNAL TRAINING COSTS                 ,785.44,22/03/2016,R,VEILIG OPGROEIEN CONSULTANCY  
812,Adult Social Care,CS-Commissioning & Social Work,SD NVQ PROGRAMME,W1BA06,Employees                     ,Indirect Employee Expenses    ,AB57,EXTERNAL TRAINING COSTS                 ,"9,625.00",29/03/2016,R,KINGSTON UNIVERSITY           
813,Adult Social Care,CS-Commissioning & Social Work,SD NVQ PROGRAMME,W1BA06,Employees                     ,Indirect Employee Expenses    ,AB57,EXTERNAL TRAINING COSTS                 ,"11,000.00",29/03/2016,R,KINGSTON UNIVERSITY           
814,Childrens & Education Services,CS - Commiss'ing & Social Work,SD LSCB Development,W1BD05,Supplies & Services           ,Services                      ,DF03,Consultants                             ,"1,000.00",12/06/2016,R,REDACTED
815,Childrens & Education Services,CS - Commiss'ing & Social Work,SD Finance & Admin,W1BE02,Supplies & Services           ,Services                      ,DF56,Bank and Giro Charges                   ,965.31,17/06/2016,R,ADVANCED PAYMENT SOLUTIONS LTD
816,Childrens & Education Services,CS - Commiss'ing & Social Work,SD Finance & Admin,W1BE02,Supplies & Services           ,Services                      ,DF56,Bank and Giro Charges                   ,"1,511.94",17/06/2016,R,ADVANCED PAYMENT SOLUTIONS LTD
817,Childrens & Education Services,CS - Commiss'ing & Social Work,SD Finance & Admin,W1BE02,Supplies & Services           ,Services                      ,DF56,Bank and Giro Charges                   ,"4,493.71",11/06/2016,R,ADVANCED PAYMENT SOLUTIONS LTD
818,Childrens & Education Services,CS - Commiss'ing & Social Work,SD Finance & Admin,W1BE02,Supplies & Services           ,Services                      ,DF56,Bank and Giro Charges                   ,"5,383.35",11/06/2016,R,ADVANCED PAYMENT SOLUTIONS LTD
819,Childrens & Education Services,Other - Other Ch & Fam,SD Corporate Parenting,W1BF03,Supplies & Services           ,Expenses                      ,DH12,Young Peoples Expenses                  ,"2,116.00",13/06/2016,R,LY WOODROW HIGH HOUSE         
820,Childrens & Education Services,Other - Other Ch & Fam,MASH & Child Protection Srvs,W1CA00,Employees                     ,Direct Employee Expenses      ,AA17,Agency Staff & Casual Paymts            ,"9,775.00",03/06/2016,R,REDACTED
821,Childrens & Education Services,CS - Commiss'ing & Social Work,Children's Central SW Serv              ,W1CB01,Employees                     ,Direct Employee Expenses      ,AA17,Agency Staff & Casual Paymts            ,935.68,22/05/2016,R,HAMPTON'S RESOURCING          
822,Childrens & Education Services,CS - Commiss'ing & Social Work,Children's Central SW Serv              ,W1CB01,Employees                     ,Direct Employee Expenses      ,AA17,Agency Staff & Casual Paymts            ,935.68,15/05/2016,R,HAMPTON'S RESOURCING          
823,Childrens & Education Services,CS - Commiss'ing & Social Work,Children's Central SW Serv              ,W1CB01,Employees                     ,Direct Employee Expenses      ,AA17,Agency Staff & Casual Paymts            ,"1,050.00",05/06/2016,R,HAMPTON'S RESOURCING          
824,Childrens & Education Services,CS - Commiss'ing & Social Work,Children's Central SW Serv              ,W1CB01,Employees                     ,Direct Employee Expenses      ,AA17,Agency Staff & Casual Paymts            ,"1,050.00",12/06/2016,R,HAMPTON'S RESOURCING          
825,Childrens & Education Services,CS - Commiss'ing & Social Work,Children's Central SW Serv              ,W1CB01,Employees                     ,Direct Employee Expenses      ,AA17,Agency Staff & Casual Paymts            ,"1,850.24",29/05/2016,R,HAMPTON'S RESOURCING          
826,Childrens & Education Services,Services for Under 8s,CS Family Support at Bond Road,W1CD00,Premises Related Expenditure  ,Cleaning and Domestic Supplies,BH03,Cleaning Services                       ,688.16,30/05/2016,R,JULIUS RUTHERFOORD & CO LTD   
827,Childrens & Education Services,Services for Under 8s,CS Family Support at Bond Road,W1CD00,Supplies & Services           ,Services                      ,DF03,Consultants                             ,"7,671.70",31/05/2016,R,REDACTED
828,Childrens & Education Services,Services for Under 8s,CS Family Support at Bond Road,W1CD00,Supplies & Services           ,Services                      ,DF14,Doctors and Other Fees                  ,"1,329.90",12/05/2016,R,YVONNE WILSON LTD             
829,Childrens & Education Services,Leaving Care Services,"MASH, FR and VCT NRTPF                  ",W1CE39,Third Party Payments          ,Private Contractors           ,EH04,C1 Viridor SLWP Landfill Contract       ,"1,300.00",29/06/2016,R,ANDREWS LETTING & MGMENT LTD  
830,Childrens & Education Services,Leaving Care Services,"MASH, FR and VCT NRTPF                  ",W1CE39,Third Party Payments          ,Private Contractors           ,EH04,C1 Viridor SLWP Landfill Contract       ,"1,300.00",29/06/2016,R,ANDREWS LETTING & MGMENT LTD  
831,Childrens & Education Services,Leaving Care Services,"MASH, FR and VCT NRTPF                  ",W1CE39,Third Party Payments          ,Private Contractors           ,EH04,C1 Viridor SLWP Landfill Contract       ,500.00,08/06/2016,R,REDACTED
832,Childrens & Education Services,Leaving Care Services,"MASH, FR and VCT NRTPF                  ",W1CE39,Third Party Payments          ,Private Contractors           ,EH04,C1 Viridor SLWP Landfill Contract       ,500.00,08/06/2016,R,REDACTED
833,Childrens & Education Services,Leaving Care Services,"MASH, FR and VCT NRTPF                  ",W1CE39,Third Party Payments          ,Private Contractors           ,EH04,C1 Viridor SLWP Landfill Contract       ,800.00,08/06/2016,R,REDACTED
834,Childrens & Education Services,Leaving Care Services,"MASH, FR and VCT NRTPF                  ",W1CE39,Third Party Payments          ,Private Contractors           ,EH04,C1 Viridor SLWP Landfill Contract       ,800.00,22/06/2016,R,REDACTED
835,Childrens & Education Services,Family - Direct Payments,CS Direct Payments,W1CF36,Third Party Payments          ,Private Contractors           ,EH73,Direct Payments                         ,551.60,29/06/2016,R,REDACTED
836,Childrens & Education Services,Family - Direct Payments,CS Direct Payments,W1CF36,Third Party Payments          ,Private Contractors           ,EH73,Direct Payments                         ,551.60,29/06/2016,R,REDACTED
837,Childrens & Education Services,Family - Direct Payments,CS Direct Payments,W1CF36,Third Party Payments          ,Private Contractors           ,EH73,Direct Payments                         ,551.60,29/06/2016,R,REDACTED
838,Childrens & Education Services,Family - Direct Payments,CS Direct Payments,W1CF36,Third Party Payments          ,Private Contractors           ,EH73,Direct Payments                         ,551.60,29/06/2016,R,REDACTED
839,Childrens & Education Services,Family - Direct Payments,CS Direct Payments,W1CF36,Third Party Payments          ,Private Contractors           ,EH73,Direct Payments                         ,575.10,15/06/2016,R,REDACTED
840,Childrens & Education Services,Family - Direct Payments,CS Direct Payments,W1CF36,Third Party Payments          ,Private Contractors           ,EH73,Direct Payments                         ,"1,160.65",29/06/2016,R,REDACTED
841,Childrens & Education Services,Family - Direct Payments,CS Direct Payments,W1CF36,Third Party Payments          ,Private Contractors           ,EH73,Direct Payments                         ,"1,160.65",29/06/2016,R,REDACTED
842,Childrens & Education Services,Family - Direct Payments,CS Direct Payments,W1CF36,Third Party Payments          ,Private Contractors           ,EH73,Direct Payments                         ,"1,160.65",29/06/2016,R,REDACTED
843,Childrens & Education Services,Family - Direct Payments,CS Direct Payments,W1CF36,Third Party Payments          ,Private Contractors           ,EH73,Direct Payments                         ,"1,160.65",29/06/2016,R,REDACTED
844,Childrens & Education Services,Family - Other Services,CS SWD Personal support                 ,W1CF49,Third Party Payments          ,Private Contractors           ,EH01,Miscellaneous Agency Services           ,607.08,02/06/2016,R,PULSE HEALTHCARE LTD          
